Creditor Name,Voucher Number,Payment Date,Goods Amount,CIPFA Subjective,CIPFA Sub group,Directorate,Section,
1st Clearflow Ltd,03841512,07/07/2010,750.00,New Construction and Conversion,,Chilren & Young People's Trust,Director Childrens Services,
1st Clearflow Ltd,03870680,16/07/2010,"1,000.00",New Construction and Conversion,,Chilren & Young People's Trust,Director Childrens Services,
21/22 Burlington Street Limited,03835968,07/07/2010,"1,250.00",Supplies and Services,Services,"Housing, Culture & Capital",Housing Strategy,
21/22 Burlington Street Limited,03883923,21/07/2010,"1,440.00",Supplies and Services,Services,"Housing, Culture & Capital",Housing Strategy,
3663 BFS Group Ltd,03893146,23/07/2010,679.47,Supplies and Services,Catering,Section 75 South Downs Health,Contrib to S31 Partnership,
4 Print & Design Ltd,03870651,16/07/2010,"1,260.00",Supplies and Services,Miscellaneous Expenses,Section 75 Adult Social Care,Contrib to S31 Partnership,
64 Church Road Limited,0037554,07/07/2010,715.00,Premises Related,Rents Payable,"Housing, Culture & Capital",Housing Strategy,
64 Church Road Limited,0037555,07/07/2010,715.00,Premises Related,Rents Payable,"Housing, Culture & Capital",Housing Strategy,
64 Church Road Limited,0038105,28/07/2010,550.00,Premises Related,Rents Payable,"Housing, Culture & Capital",Housing Strategy,
A A Taylor Ltd,03873218,21/07/2010,525.00,Premises Related,Repair Maintenance and Alterations,"Housing, Culture & Capital",Housing Strategy,
Abacus Property Maintenance Ltd,03872316,16/07/2010,838.00,Premises Related,Repair Maintenance and Alterations,Environment,Leisure,
Abbey Care Group Ltd-Saxon Court,CF01392990,14/07/2010,-71.15,Customer and Client Receipts,Fees and Charges,Section 75 Adult Social Care,Contrib to S31 Partnership,
Abbey Care Group Ltd-Saxon Court,CF01392990,14/07/2010,765.44,Third Party Payments,Other Establishments,Section 75 Adult Social Care,Contrib to S31 Partnership,
Abbey Care Group Ltd-Saxon Court,CF01392991,14/07/2010,-71.15,Customer and Client Receipts,Fees and Charges,Section 75 Adult Social Care,Contrib to S31 Partnership,
Abbey Care Group Ltd-Saxon Court,CF01392991,14/07/2010,765.44,Third Party Payments,Other Establishments,Section 75 Adult Social Care,Contrib to S31 Partnership,
Abbey Care Group Ltd-Saxon Court,CF01392992,14/07/2010,-71.15,Customer and Client Receipts,Fees and Charges,Section 75 Adult Social Care,Contrib to S31 Partnership,
Abbey Care Group Ltd-Saxon Court,CF01392992,14/07/2010,765.44,Third Party Payments,Other Establishments,Section 75 Adult Social Care,Contrib to S31 Partnership,
Abbey Care Group Ltd-Saxon Court,CF01392993,14/07/2010,-71.15,Customer and Client Receipts,Fees and Charges,Section 75 Adult Social Care,Contrib to S31 Partnership,
Abbey Care Group Ltd-Saxon Court,CF01392993,14/07/2010,765.44,Third Party Payments,Other Establishments,Section 75 Adult Social Care,Contrib to S31 Partnership,
Abbey Care Group Ltd-Saxon Court,CF01392994,14/07/2010,-71.15,Customer and Client Receipts,Fees and Charges,Section 75 Adult Social Care,Contrib to S31 Partnership,
Abbey Care Group Ltd-Saxon Court,CF01392994,14/07/2010,808.71,Third Party Payments,Other Establishments,Section 75 Adult Social Care,Contrib to S31 Partnership,
Abbey Care Group Ltd-Saxon Court,CF01392995,14/07/2010,-71.15,Customer and Client Receipts,Fees and Charges,Section 75 Adult Social Care,Contrib to S31 Partnership,
Abbey Care Group Ltd-Saxon Court,CF01392995,14/07/2010,808.71,Third Party Payments,Other Establishments,Section 75 Adult Social Care,Contrib to S31 Partnership,
Abbey Care Group Ltd-Saxon Court,CF01392996,14/07/2010,-71.15,Customer and Client Receipts,Fees and Charges,Section 75 Adult Social Care,Contrib to S31 Partnership,
Abbey Care Group Ltd-Saxon Court,CF01392996,14/07/2010,808.71,Third Party Payments,Other Establishments,Section 75 Adult Social Care,Contrib to S31 Partnership,
Abbey Care Group Ltd-Saxon Court,CF01392997,14/07/2010,-71.15,Customer and Client Receipts,Fees and Charges,Section 75 Adult Social Care,Contrib to S31 Partnership,
Abbey Care Group Ltd-Saxon Court,CF01392997,14/07/2010,808.71,Third Party Payments,Other Establishments,Section 75 Adult Social Care,Contrib to S31 Partnership,
Abi House,CF01393083,09/07/2010,-96.10,Customer and Client Receipts,Fees and Charges,Adult Social Care,Adult Social Care,
Abi House,CF01393083,09/07/2010,"1,519.30",Third Party Payments,Other Establishments,Adult Social Care,Adult Social Care,
Abi House,CF01393084,09/07/2010,-96.10,Customer and Client Receipts,Fees and Charges,Adult Social Care,Adult Social Care,
Abi House,CF01393084,09/07/2010,"1,519.30",Third Party Payments,Other Establishments,Adult Social Care,Adult Social Care,
Abi House,CF01393085,09/07/2010,-96.10,Customer and Client Receipts,Fees and Charges,Adult Social Care,Adult Social Care,
Abi House,CF01393085,09/07/2010,"1,519.30",Third Party Payments,Other Establishments,Adult Social Care,Adult Social Care,
Abi House,CF01393086,09/07/2010,-96.10,Customer and Client Receipts,Fees and Charges,Adult Social Care,Adult Social Care,
Abi House,CF01393086,09/07/2010,"1,519.30",Third Party Payments,Other Establishments,Adult Social Care,Adult Social Care,
Accountant General of the Senior Courts,03838949,08/07/2010,"216,096.26",Supplies and Services,Miscellaneous Expenses,Adult Social Care,Adult Social Care,
Accurate Roofing Ltd,03841237,07/07/2010,"23,151.38",New Construction and Conversion,,Chilren & Young People's Trust,Director Childrens Services,
Ace Travel Ltd,03878064,21/07/2010,913.20,Transport Related,Other Transport Costs,Chilren & Young People's Trust,Learning Schools & Skills,
Ace Travel Ltd,03878077,21/07/2010,"1,671.68",Transport Related,Other Transport Costs,Chilren & Young People's Trust,Learning Schools & Skills,
Ace Travel Ltd,03878093,21/07/2010,"1,270.00",Transport Related,Other Transport Costs,Chilren & Young People's Trust,Learning Schools & Skills,
Ace Travel Ltd,03878103,21/07/2010,"4,187.80",Transport Related,Other Transport Costs,Chilren & Young People's Trust,Learning Schools & Skills,
Acorn Web Offset Ltd,03850914,23/07/2010,"6,404.02",Supplies and Services,Miscellaneous Expenses,Strategy & Governance,Communications,
Acoustiguide Limited,03901818,28/07/2010,"1,650.00",Supplies and Services,Equipment Furniture and Materials,"Housing, Culture & Capital",Royal Pavilion & Museums,
Acoustiguide Limited,03901834,28/07/2010,"1,650.00",Supplies and Services,Equipment Furniture and Materials,"Housing, Culture & Capital",Royal Pavilion & Museums,
Acoustiguide Limited,03901850,28/07/2010,"6,930.00",Supplies and Services,Equipment Furniture and Materials,"Housing, Culture & Capital",Royal Pavilion & Museums,
ACPH Ltd T/a Hopscotch Nursery,UL01390975,07/07/2010,"2,775.00",Supplies and Services,Grants and Subscriptions,Chilren & Young People's Trust,Area Integrated Working,
ACPH Ltd T/a Hopscotch Nursery,UL01390976,07/07/2010,"2,838.00",Supplies and Services,Grants and Subscriptions,Chilren & Young People's Trust,Area Integrated Working,
ACPH Ltd T/a Hopscotch Nursery,UL01390977,07/07/2010,"5,444.00",Supplies and Services,Grants and Subscriptions,Chilren & Young People's Trust,Area Integrated Working,
Action For Bevendean Community,03904051,28/07/2010,900.00,Supplies and Services,Grants and Subscriptions,Strategy & Governance,Communities & Equality,
A C Wallbridge & Co Ltd,03908743,30/07/2010,"1,148.00",Premises Related,Repair Maintenance and Alterations,Finance & Resources,Property & Design,
Payment to Individual,CF01407909,23/07/2010,979.20,Third Party Payments,Other Establishments,Section 75 Adult Social Care,Contrib to S31 Partnership,
Payment to Individual,CF01407910,23/07/2010,979.20,Third Party Payments,Other Establishments,Section 75 Adult Social Care,Contrib to S31 Partnership,
Payment to Individual,CF01407911,23/07/2010,979.20,Third Party Payments,Other Establishments,Section 75 Adult Social Care,Contrib to S31 Partnership,
Payment to Individual,CF01407912,23/07/2010,979.20,Third Party Payments,Other Establishments,Section 75 Adult Social Care,Contrib to S31 Partnership,
Payment to Individual,CF01407917,23/07/2010,556.80,Third Party Payments,Other Establishments,Section 75 Adult Social Care,Contrib to S31 Partnership,
Payment to Individual,CF01407918,23/07/2010,556.80,Third Party Payments,Other Establishments,Section 75 Adult Social Care,Contrib to S31 Partnership,
Payment to Individual,CF01407919,23/07/2010,556.80,Third Party Payments,Other Establishments,Section 75 Adult Social Care,Contrib to S31 Partnership,
Payment to Individual,CF01407920,23/07/2010,556.80,Third Party Payments,Other Establishments,Section 75 Adult Social Care,Contrib to S31 Partnership,
Adelaide Nursing Home,CF01391053,07/07/2010,546.30,Third Party Payments,Other Establishments,Adult Social Care,Adult Social Care,
Adelaide Nursing Home,CF01391054,07/07/2010,546.30,Third Party Payments,Other Establishments,Adult Social Care,Adult Social Care,
Adelaide Nursing Home,CF01391055,07/07/2010,546.30,Third Party Payments,Other Establishments,Adult Social Care,Adult Social Care,
Adelaide Nursing Home,CF01391056,07/07/2010,780.43,Third Party Payments,Other Establishments,Adult Social Care,Adult Social Care,
Adelaide Nursing Home,CF01411143,28/07/2010,-125.55,Customer and Client Receipts,Fees and Charges,Adult Social Care,Adult Social Care,
Adelaide Nursing Home,CF01411143,28/07/2010,644.40,Third Party Payments,Other Establishments,Adult Social Care,Adult Social Care,
Adelaide Nursing Home,CF01411144,28/07/2010,-125.55,Customer and Client Receipts,Fees and Charges,Adult Social Care,Adult Social Care,
Adelaide Nursing Home,CF01411144,28/07/2010,644.40,Third Party Payments,Other Establishments,Adult Social Care,Adult Social Care,
Adelaide Nursing Home,CF01411145,28/07/2010,-125.55,Customer and Client Receipts,Fees and Charges,Adult Social Care,Adult Social Care,
Adelaide Nursing Home,CF01411145,28/07/2010,644.40,Third Party Payments,Other Establishments,Adult Social Care,Adult Social Care,
Adelaide Nursing Home,CF01411146,28/07/2010,-125.55,Customer and Client Receipts,Fees and Charges,Adult Social Care,Adult Social Care,
Adelaide Nursing Home,CF01411146,28/07/2010,644.40,Third Party Payments,Other Establishments,Adult Social Care,Adult Social Care,
Adelaide Nursing Home,CF01411147,28/07/2010,546.30,Third Party Payments,Other Establishments,Adult Social Care,Adult Social Care,
Adelaide Nursing Home,CF01411148,28/07/2010,546.30,Third Party Payments,Other Establishments,Adult Social Care,Adult Social Care,
Adelaide Nursing Home,CF01411149,28/07/2010,546.30,Third Party Payments,Other Establishments,Adult Social Care,Adult Social Care,
Adelaide Nursing Home,CF01411150,28/07/2010,546.30,Third Party Payments,Other Establishments,Adult Social Care,Adult Social Care,
Adelaide Nursing Home,CF01411151,28/07/2010,546.30,Third Party Payments,Other Establishments,Adult Social Care,Adult Social Care,
Adelaide Nursing Home,CF01411152,28/07/2010,546.30,Third Party Payments,Other Establishments,Adult Social Care,Adult Social Care,
Adelaide Nursing Home,CF01411153,28/07/2010,546.30,Third Party Payments,Other Establishments,Adult Social Care,Adult Social Care,
Adelaide Nursing Home,CF01411154,28/07/2010,546.30,Third Party Payments,Other Establishments,Adult Social Care,Adult Social Care,
Adelaide Nursing Home,CF01411163,28/07/2010,539.40,Third Party Payments,Other Establishments,Adult Social Care,Adult Social Care,
Adelaide Nursing Home,CF01411164,28/07/2010,539.40,Third Party Payments,Other Establishments,Adult Social Care,Adult Social Care,
Adelaide Nursing Home,CF01411165,28/07/2010,539.40,Third Party Payments,Other Establishments,Adult Social Care,Adult Social Care,
Adelaide Nursing Home,CF01411166,28/07/2010,539.40,Third Party Payments,Other Establishments,Adult Social Care,Adult Social Care,
Adelaide Nursing Home,CF01411175,28/07/2010,551.30,Third Party Payments,Other Establishments,Adult Social Care,Adult Social Care,
Adelaide Nursing Home,CF01411176,28/07/2010,551.30,Third Party Payments,Other Establishments,Adult Social Care,Adult Social Care,
Adelaide Nursing Home,CF01411177,28/07/2010,551.30,Third Party Payments,Other Establishments,Adult Social Care,Adult Social Care,
Adelaide Nursing Home,CF01411178,28/07/2010,551.30,Third Party Payments,Other Establishments,Adult Social Care,Adult Social Care,
Adelphi Court Services Limited,0038223,30/07/2010,"9,603.00",Premises Related,Rents Payable,"Housing, Culture & Capital",Housing Strategy,
Adoption UK,03877829,21/07/2010,"1,030.75",Supplies and Services,Miscellaneous Expenses,Chilren & Young People's Trust,Area Integrated Working,
ADT Fire & Security Plc,03841444,07/07/2010,866.04,Premises Related,Repair Maintenance and Alterations,Environment,Leisure,
ADT Fire & Security Plc,03855621,14/07/2010,"1,136.41",Premises Related,Repair Maintenance and Alterations,"Housing, Culture & Capital",Tourism & Venues,
ADT Fire & Security Plc,03857357,14/07/2010,855.23,Premises Related,Repair Maintenance and Alterations,Finance & Resources,Property & Design,
ADT Fire & Security Plc,03859478,14/07/2010,"1,775.34",Premises Related,Repair Maintenance and Alterations,Adult Social Care,Housing Management,
Advanced Connections Ltd,03830015,09/07/2010,"2,069.00",Plant Machinery and Equipment,,Chilren & Young People's Trust,Director Childrens Services,
Advanced Connections Ltd,03851337,23/07/2010,"7,557.00",New Construction and Conversion,,Chilren & Young People's Trust,Director Childrens Services,
Adventure Playground Engineers Ltd,03900301,28/07/2010,"1,191.00",New Construction and Conversion,,Environment,Quality of Life & Green Spaces,
Adventure Playground Engineers Ltd,03900330,28/07/2010,"1,191.00",New Construction and Conversion,,Environment,Quality of Life & Green Spaces,
Adventure Unlimited,03846805,09/07/2010,"2,500.00",Supplies and Services,Grants and Subscriptions,Strategy & Governance,Communities & Equality,
A & F Pilbeam Ltd,03841266,07/07/2010,"21,517.21",New Construction and Conversion,,Environment,Leisure,
A & F Pilbeam Ltd,03903599,28/07/2010,"3,574.47",New Construction and Conversion,,"Housing, Culture & Capital",Housing Strategy,
"Age Concern Brighton, Hove & Portslade",03845686,09/07/2010,"7,500.00",Supplies and Services,Grants and Subscriptions,Strategy & Governance,Communities & Equality,
"Age Concern Brighton, Hove & Portslade",03859818,14/07/2010,"10,000.00",Supplies and Services,Grants and Subscriptions,Strategy & Governance,Communities & Equality,
"Age Concern Brighton, Hove & Portslade",03869785,16/07/2010,"4,500.00",Third Party Payments,Voluntary Associations,Adult Social Care,Adult Social Care,
"Age Concern Brighton, Hove & Portslade",03876778,21/07/2010,"14,308.00",Third Party Payments,Other Establishments,Adult Social Care,Adult Social Care,
"Age Concern Brighton, Hove & Portslade",03882814,21/07/2010,"13,693.50",Third Party Payments,Other Establishments,Adult Social Care,Adult Social Care,
"Age Concern Brighton, Hove & Portslade",03882827,21/07/2010,"11,309.00",Third Party Payments,Other Establishments,Adult Social Care,Adult Social Care,
"Age Concern Brighton, Hove & Portslade",03889011,23/07/2010,"4,799.00",Third Party Payments,Other Establishments,Adult Social Care,Adult Social Care,
Agincare UK Ltd,CF01389115,07/07/2010,-68.00,Customer and Client Receipts,Fees and Charges,Adult Social Care,Adult Social Care,
Agincare UK Ltd,CF01389115,07/07/2010,833.56,Third Party Payments,Other Establishments,Adult Social Care,Adult Social Care,
Agincare UK Ltd,CF01389116,07/07/2010,-68.00,Customer and Client Receipts,Fees and Charges,Adult Social Care,Adult Social Care,
Agincare UK Ltd,CF01389116,07/07/2010,750.19,Third Party Payments,Other Establishments,Adult Social Care,Adult Social Care,
Agincare UK Ltd,CF01389229,07/07/2010,-75.00,Customer and Client Receipts,Fees and Charges,Adult Social Care,Adult Social Care,
Agincare UK Ltd,CF01389229,07/07/2010,678.23,Third Party Payments,Other Establishments,Adult Social Care,Adult Social Care,
Agincare UK Ltd,CF01402546,16/07/2010,-68.00,Customer and Client Receipts,Fees and Charges,Adult Social Care,Adult Social Care,
Agincare UK Ltd,CF01402546,16/07/2010,782.94,Third Party Payments,Other Establishments,Adult Social Care,Adult Social Care,
Agincare UK Ltd,CF01402547,16/07/2010,-68.00,Customer and Client Receipts,Fees and Charges,Adult Social Care,Adult Social Care,
Agincare UK Ltd,CF01402547,16/07/2010,776.57,Third Party Payments,Other Establishments,Adult Social Care,Adult Social Care,
Agincare UK Ltd,CF01402591,16/07/2010,-75.00,Customer and Client Receipts,Fees and Charges,Adult Social Care,Adult Social Care,
Agincare UK Ltd,CF01402591,16/07/2010,678.23,Third Party Payments,Other Establishments,Adult Social Care,Adult Social Care,
Agincare UK Ltd,CF01416635,30/07/2010,-75.00,Customer and Client Receipts,Fees and Charges,Adult Social Care,Adult Social Care,
Agincare UK Ltd,CF01416635,30/07/2010,678.23,Third Party Payments,Other Establishments,Adult Social Care,Adult Social Care,
A G M Floors Ltd,03839223,07/07/2010,825.16,Premises Related,Repair Maintenance and Alterations,"Housing, Culture & Capital",Tourism & Venues,
A G M Floors Ltd,03839236,07/07/2010,"1,023.36",Premises Related,Repair Maintenance and Alterations,"Housing, Culture & Capital",Tourism & Venues,
A G M Floors Ltd,03839249,07/07/2010,"1,767.75",Premises Related,Repair Maintenance and Alterations,"Housing, Culture & Capital",Tourism & Venues,
Payment to Individual,0037967,23/07/2010,700.00,Premises Related,Rents Payable,"Housing, Culture & Capital",Housing Strategy,
a.i.d Training & Operations Ltd,03894323,28/07/2010,"1,025.00",Third Party Payments,Other Establishments,Chilren & Young People's Trust,Learning Schools & Skills,
Airconaire Ltd,03881239,21/07/2010,"2,795.96",Premises Related,Repair Maintenance and Alterations,Adult Social Care,Housing Management,
Aitch Care Homes (London) Ltd,CF01389933,07/07/2010,-71.15,Customer and Client Receipts,Fees and Charges,Section 75 Adult Social Care,Contrib to S31 Partnership,
Aitch Care Homes (London) Ltd,CF01389933,07/07/2010,"1,289.50",Third Party Payments,Other Establishments,Section 75 Adult Social Care,Contrib to S31 Partnership,
Aitch Care Homes (London) Ltd,CF01389934,07/07/2010,-71.15,Customer and Client Receipts,Fees and Charges,Section 75 Adult Social Care,Contrib to S31 Partnership,
Aitch Care Homes (London) Ltd,CF01389934,07/07/2010,"1,289.50",Third Party Payments,Other Establishments,Section 75 Adult Social Care,Contrib to S31 Partnership,
Aitch Care Homes (London) Ltd,CF01389935,07/07/2010,-71.15,Customer and Client Receipts,Fees and Charges,Section 75 Adult Social Care,Contrib to S31 Partnership,
Aitch Care Homes (London) Ltd,CF01389935,07/07/2010,"1,289.50",Third Party Payments,Other Establishments,Section 75 Adult Social Care,Contrib to S31 Partnership,
Aitch Care Homes (London) Ltd,CF01389936,07/07/2010,-71.15,Customer and Client Receipts,Fees and Charges,Section 75 Adult Social Care,Contrib to S31 Partnership,
Aitch Care Homes (London) Ltd,CF01389936,07/07/2010,"1,289.50",Third Party Payments,Other Establishments,Section 75 Adult Social Care,Contrib to S31 Partnership,
Aitch Care Homes (London) Ltd,CF01389937,07/07/2010,-84.80,Customer and Client Receipts,Fees and Charges,Section 75 Adult Social Care,Contrib to S31 Partnership,
Aitch Care Homes (London) Ltd,CF01389937,07/07/2010,"1,100.00",Third Party Payments,Other Establishments,Section 75 Adult Social Care,Contrib to S31 Partnership,
Aitch Care Homes (London) Ltd,CF01389938,07/07/2010,-84.80,Customer and Client Receipts,Fees and Charges,Section 75 Adult Social Care,Contrib to S31 Partnership,
Aitch Care Homes (London) Ltd,CF01389938,07/07/2010,"1,100.00",Third Party Payments,Other Establishments,Section 75 Adult Social Care,Contrib to S31 Partnership,
Aitch Care Homes (London) Ltd,CF01389939,07/07/2010,-84.80,Customer and Client Receipts,Fees and Charges,Section 75 Adult Social Care,Contrib to S31 Partnership,
Aitch Care Homes (London) Ltd,CF01389939,07/07/2010,"1,100.00",Third Party Payments,Other Establishments,Section 75 Adult Social Care,Contrib to S31 Partnership,
Aitch Care Homes (London) Ltd,CF01389940,07/07/2010,-84.80,Customer and Client Receipts,Fees and Charges,Section 75 Adult Social Care,Contrib to S31 Partnership,
Aitch Care Homes (London) Ltd,CF01389940,07/07/2010,"1,100.00",Third Party Payments,Other Establishments,Section 75 Adult Social Care,Contrib to S31 Partnership,
Aitch Care Homes (London) Ltd,CF01389941,07/07/2010,-84.10,Customer and Client Receipts,Fees and Charges,Section 75 Adult Social Care,Contrib to S31 Partnership,
Aitch Care Homes (London) Ltd,CF01389941,07/07/2010,"1,572.00",Third Party Payments,Other Establishments,Section 75 Adult Social Care,Contrib to S31 Partnership,
Aitch Care Homes (London) Ltd,CF01389942,07/07/2010,-84.10,Customer and Client Receipts,Fees and Charges,Section 75 Adult Social Care,Contrib to S31 Partnership,
Aitch Care Homes (London) Ltd,CF01389942,07/07/2010,"1,572.00",Third Party Payments,Other Establishments,Section 75 Adult Social Care,Contrib to S31 Partnership,
Aitch Care Homes (London) Ltd,CF01389943,07/07/2010,-84.10,Customer and Client Receipts,Fees and Charges,Section 75 Adult Social Care,Contrib to S31 Partnership,
Aitch Care Homes (London) Ltd,CF01389943,07/07/2010,"1,572.00",Third Party Payments,Other Establishments,Section 75 Adult Social Care,Contrib to S31 Partnership,
Aitch Care Homes (London) Ltd,CF01389944,07/07/2010,-84.10,Customer and Client Receipts,Fees and Charges,Section 75 Adult Social Care,Contrib to S31 Partnership,
Aitch Care Homes (London) Ltd,CF01389944,07/07/2010,"1,572.00",Third Party Payments,Other Establishments,Section 75 Adult Social Care,Contrib to S31 Partnership,
Aitch Care Homes (London) Ltd,CF01389945,07/07/2010,-84.80,Customer and Client Receipts,Fees and Charges,Section 75 Adult Social Care,Contrib to S31 Partnership,
Aitch Care Homes (London) Ltd,CF01389945,07/07/2010,"1,523.50",Third Party Payments,Other Establishments,Section 75 Adult Social Care,Contrib to S31 Partnership,
Aitch Care Homes (London) Ltd,CF01389946,07/07/2010,-84.80,Customer and Client Receipts,Fees and Charges,Section 75 Adult Social Care,Contrib to S31 Partnership,
Aitch Care Homes (London) Ltd,CF01389946,07/07/2010,"1,523.50",Third Party Payments,Other Establishments,Section 75 Adult Social Care,Contrib to S31 Partnership,
Aitch Care Homes (London) Ltd,CF01389947,07/07/2010,-84.80,Customer and Client Receipts,Fees and Charges,Section 75 Adult Social Care,Contrib to S31 Partnership,
Aitch Care Homes (London) Ltd,CF01389947,07/07/2010,"1,523.50",Third Party Payments,Other Establishments,Section 75 Adult Social Care,Contrib to S31 Partnership,
Aitch Care Homes (London) Ltd,CF01389948,07/07/2010,-84.80,Customer and Client Receipts,Fees and Charges,Section 75 Adult Social Care,Contrib to S31 Partnership,
Aitch Care Homes (London) Ltd,CF01389948,07/07/2010,"1,523.50",Third Party Payments,Other Establishments,Section 75 Adult Social Care,Contrib to S31 Partnership,
Aitch Care Homes (London) Ltd,CF01389949,07/07/2010,-84.10,Customer and Client Receipts,Fees and Charges,Section 75 Adult Social Care,Contrib to S31 Partnership,
Aitch Care Homes (London) Ltd,CF01389949,07/07/2010,"1,347.00",Third Party Payments,Other Establishments,Section 75 Adult Social Care,Contrib to S31 Partnership,
Aitch Care Homes (London) Ltd,CF01389950,07/07/2010,-84.10,Customer and Client Receipts,Fees and Charges,Section 75 Adult Social Care,Contrib to S31 Partnership,
Aitch Care Homes (London) Ltd,CF01389950,07/07/2010,"1,347.00",Third Party Payments,Other Establishments,Section 75 Adult Social Care,Contrib to S31 Partnership,
Aitch Care Homes (London) Ltd,CF01389951,07/07/2010,-84.10,Customer and Client Receipts,Fees and Charges,Section 75 Adult Social Care,Contrib to S31 Partnership,
Aitch Care Homes (London) Ltd,CF01389951,07/07/2010,"1,347.00",Third Party Payments,Other Establishments,Section 75 Adult Social Care,Contrib to S31 Partnership,
Aitch Care Homes (London) Ltd,CF01389952,07/07/2010,-84.10,Customer and Client Receipts,Fees and Charges,Section 75 Adult Social Care,Contrib to S31 Partnership,
Aitch Care Homes (London) Ltd,CF01389952,07/07/2010,"1,347.00",Third Party Payments,Other Establishments,Section 75 Adult Social Care,Contrib to S31 Partnership,
Aitch Care Homes (London) Ltd,CF01389953,07/07/2010,-57.55,Customer and Client Receipts,Fees and Charges,Section 75 Adult Social Care,Contrib to S31 Partnership,
Aitch Care Homes (London) Ltd,CF01389953,07/07/2010,"1,285.00",Third Party Payments,Other Establishments,Section 75 Adult Social Care,Contrib to S31 Partnership,
Aitch Care Homes (London) Ltd,CF01389954,07/07/2010,-57.55,Customer and Client Receipts,Fees and Charges,Section 75 Adult Social Care,Contrib to S31 Partnership,
Aitch Care Homes (London) Ltd,CF01389954,07/07/2010,"1,285.00",Third Party Payments,Other Establishments,Section 75 Adult Social Care,Contrib to S31 Partnership,
Aitch Care Homes (London) Ltd,CF01389955,07/07/2010,-57.55,Customer and Client Receipts,Fees and Charges,Section 75 Adult Social Care,Contrib to S31 Partnership,
Aitch Care Homes (London) Ltd,CF01389955,07/07/2010,"1,285.00",Third Party Payments,Other Establishments,Section 75 Adult Social Care,Contrib to S31 Partnership,
Aitch Care Homes (London) Ltd,CF01389956,07/07/2010,-57.55,Customer and Client Receipts,Fees and Charges,Section 75 Adult Social Care,Contrib to S31 Partnership,
Aitch Care Homes (London) Ltd,CF01389956,07/07/2010,"1,285.00",Third Party Payments,Other Establishments,Section 75 Adult Social Care,Contrib to S31 Partnership,
Aitch Care Homes (London) Ltd,CF01389957,07/07/2010,-71.15,Customer and Client Receipts,Fees and Charges,Section 75 Adult Social Care,Contrib to S31 Partnership,
Aitch Care Homes (London) Ltd,CF01389957,07/07/2010,"1,676.00",Third Party Payments,Other Establishments,Section 75 Adult Social Care,Contrib to S31 Partnership,
Aitch Care Homes (London) Ltd,CF01389958,07/07/2010,-71.15,Customer and Client Receipts,Fees and Charges,Section 75 Adult Social Care,Contrib to S31 Partnership,
Aitch Care Homes (London) Ltd,CF01389958,07/07/2010,"1,676.00",Third Party Payments,Other Establishments,Section 75 Adult Social Care,Contrib to S31 Partnership,
Aitch Care Homes (London) Ltd,CF01389959,07/07/2010,-71.15,Customer and Client Receipts,Fees and Charges,Section 75 Adult Social Care,Contrib to S31 Partnership,
Aitch Care Homes (London) Ltd,CF01389959,07/07/2010,"1,676.00",Third Party Payments,Other Establishments,Section 75 Adult Social Care,Contrib to S31 Partnership,
Aitch Care Homes (London) Ltd,CF01389960,07/07/2010,-71.15,Customer and Client Receipts,Fees and Charges,Section 75 Adult Social Care,Contrib to S31 Partnership,
Aitch Care Homes (London) Ltd,CF01389960,07/07/2010,"1,676.00",Third Party Payments,Other Establishments,Section 75 Adult Social Care,Contrib to S31 Partnership,
Aitch Care Homes (London) Ltd,CF01389961,07/07/2010,-57.55,Customer and Client Receipts,Fees and Charges,Section 75 Adult Social Care,Contrib to S31 Partnership,
Aitch Care Homes (London) Ltd,CF01389961,07/07/2010,"1,169.50",Third Party Payments,Other Establishments,Section 75 Adult Social Care,Contrib to S31 Partnership,
Aitch Care Homes (London) Ltd,CF01389962,07/07/2010,-57.55,Customer and Client Receipts,Fees and Charges,Section 75 Adult Social Care,Contrib to S31 Partnership,
Aitch Care Homes (London) Ltd,CF01389962,07/07/2010,"1,169.50",Third Party Payments,Other Establishments,Section 75 Adult Social Care,Contrib to S31 Partnership,
Aitch Care Homes (London) Ltd,CF01389963,07/07/2010,-57.55,Customer and Client Receipts,Fees and Charges,Section 75 Adult Social Care,Contrib to S31 Partnership,
Aitch Care Homes (London) Ltd,CF01389963,07/07/2010,"1,169.50",Third Party Payments,Other Establishments,Section 75 Adult Social Care,Contrib to S31 Partnership,
Aitch Care Homes (London) Ltd,CF01389964,07/07/2010,-57.55,Customer and Client Receipts,Fees and Charges,Section 75 Adult Social Care,Contrib to S31 Partnership,
Aitch Care Homes (London) Ltd,CF01389964,07/07/2010,"1,169.50",Third Party Payments,Other Establishments,Section 75 Adult Social Care,Contrib to S31 Partnership,
Aitch Care Homes (London) Ltd,CF01389965,07/07/2010,-84.10,Customer and Client Receipts,Fees and Charges,Section 75 Adult Social Care,Contrib to S31 Partnership,
Aitch Care Homes (London) Ltd,CF01389965,07/07/2010,"1,571.00",Third Party Payments,Other Establishments,Section 75 Adult Social Care,Contrib to S31 Partnership,
Aitch Care Homes (London) Ltd,CF01389966,07/07/2010,-84.10,Customer and Client Receipts,Fees and Charges,Section 75 Adult Social Care,Contrib to S31 Partnership,
Aitch Care Homes (London) Ltd,CF01389966,07/07/2010,"1,571.00",Third Party Payments,Other Establishments,Section 75 Adult Social Care,Contrib to S31 Partnership,
Aitch Care Homes (London) Ltd,CF01389967,07/07/2010,-84.10,Customer and Client Receipts,Fees and Charges,Section 75 Adult Social Care,Contrib to S31 Partnership,
Aitch Care Homes (London) Ltd,CF01389967,07/07/2010,"1,571.00",Third Party Payments,Other Establishments,Section 75 Adult Social Care,Contrib to S31 Partnership,
Aitch Care Homes (London) Ltd,CF01389968,07/07/2010,-84.10,Customer and Client Receipts,Fees and Charges,Section 75 Adult Social Care,Contrib to S31 Partnership,
Aitch Care Homes (London) Ltd,CF01389968,07/07/2010,"1,571.00",Third Party Payments,Other Establishments,Section 75 Adult Social Care,Contrib to S31 Partnership,
A J Taylor Electrical Contractors Ltd,03892163,23/07/2010,505.00,Premises Related,Repair Maintenance and Alterations,Environment,Leisure,
Albion Design & Fabrication Ltd,03909137,30/07/2010,"1,058.82",Supplies and Services,Equipment Furniture and Materials,Strategy & Governance,Communications,
Aldred Associates Limited,03884621,23/07/2010,"1,000.00",Third Party Payments,Private Contractors,Environment,Quality of Life & Green Spaces,
Aldred Associates Limited,03885044,23/07/2010,"2,450.00",Supplies and Services,Equipment Furniture and Materials,Environment,Quality of Life & Green Spaces,
Aldred Associates Limited,03911455,30/07/2010,"1,000.00",Third Party Payments,Private Contractors,Environment,Quality of Life & Green Spaces,
Alere Ltd,03900398,28/07/2010,"2,131.98",Supplies and Services,Equipment Furniture and Materials,Environment,Public Safety,
Alexander Advertising(International)Ltd,03851405,14/07/2010,"1,906.31",Supplies and Services,Miscellaneous Expenses,Environment,City Planning,
Payment to Individual,0037574,07/07/2010,775.00,Premises Related,Rents Payable,"Housing, Culture & Capital",Housing Strategy,
Alfa Electric Ltd,03871498,16/07/2010,796.96,Premises Related,Repair Maintenance and Alterations,Finance & Resources,Property & Design,
Payment to Individual,0038098,28/07/2010,875.00,Premises Related,Rents Payable,"Housing, Culture & Capital",Housing Strategy,
Payment to Individual,0038099,28/07/2010,875.00,Premises Related,Rents Payable,"Housing, Culture & Capital",Housing Strategy,
Alfred Cox & Sons (Brighton) Ltd,03874877,21/07/2010,"9,538.00",Capital Grants,,"Housing, Culture & Capital",Housing Strategy,
Payment to Individual,03884317,21/07/2010,"1,312.70",Supplies and Services,Catering,Finance & Resources,ICT,
SuperDad  ,03837717,07/07/2010,"1,200.00",Third Party Payments,Other Establishments,Chilren & Young People's Trust,Learning Schools & Skills,
A-List Properties Limited,0037732,14/07/2010,850.00,Premises Related,Rents Payable,"Housing, Culture & Capital",Housing Strategy,
All Different All Equal,03889419,23/07/2010,"1,000.00",Supplies and Services,Grants and Subscriptions,Strategy & Governance,Communities & Equality,
Allied Estates (South Eastern) Ltd,0037693,14/07/2010,600.00,Premises Related,Rents Payable,"Housing, Culture & Capital",Housing Strategy,
Allied Estates (South Eastern) Ltd,0037756,16/07/2010,619.00,Premises Related,Rents Payable,"Housing, Culture & Capital",Housing Strategy,
Allied Estates (South Eastern) Ltd,0038065,28/07/2010,740.17,Premises Related,Rents Payable,"Housing, Culture & Capital",Housing Strategy,
Allied Healthcare Brighton Domicillary,CF01390121,07/07/2010,526.30,Third Party Payments,Other Establishments,Adult Social Care,Adult Social Care,
Allied Healthcare Brighton Domicillary,CF01393603,09/07/2010,536.87,Third Party Payments,Other Establishments,Adult Social Care,Adult Social Care,
Allied Healthcare Brighton Domicillary,CF01405589,21/07/2010,569.01,Third Party Payments,Other Establishments,Adult Social Care,Adult Social Care,
Allied Healthcare Brighton Domicillary,CF01410097,23/07/2010,528.45,Third Party Payments,Other Establishments,Adult Social Care,Adult Social Care,
Allied Healthcare Brighton Domicillary,CF01416816,30/07/2010,526.30,Third Party Payments,Other Establishments,Adult Social Care,Adult Social Care,
Allsaved Ltd t/a Allfire,03840063,07/07/2010,714.60,Premises Related,Repair Maintenance and Alterations,Environment,Leisure,
Allsop Residential Investment Management (ARIM),0037718,14/07/2010,715.00,Premises Related,Rents Payable,"Housing, Culture & Capital",Housing Strategy,
Allsorts Youth Project,03845709,09/07/2010,"5,500.00",Supplies and Services,Grants and Subscriptions,Strategy & Governance,Communities & Equality,
Alphaguard K9 Ltd,03889985,23/07/2010,"2,150.00",Supplies and Services,Services,Environment,Public Safety,
Amaze Brighton & Hove,03889150,23/07/2010,"20,000.00",Third Party Payments,Other Establishments,Chilren & Young People's Trust,Learning Schools & Skills,
Amaze Brighton & Hove,03899616,28/07/2010,"1,370.00",Third Party Payments,Other Establishments,Section 75 Adult Social Care,Contrib to S31 Partnership,
Amey OW Limited,03855061,21/07/2010,"2,871.38",Supplies and Services,Services,Environment,Sustainable Transport&Planning,
Amey OW Limited,03859384,21/07/2010,"19,523.29",New Construction and Conversion,,Environment,Sustainable Transport&Planning,
Amiante Ltd,03872015,16/07/2010,"1,525.00",New Construction and Conversion,,"Housing, Culture & Capital",Housing Management,
Amigos Pre-School Playgroup,UL01390978,07/07/2010,"1,415.00",Supplies and Services,Grants and Subscriptions,Chilren & Young People's Trust,Area Integrated Working,
AM Security Ltd t/a AM Fire & Security Group,03857098,28/07/2010,"4,692.00",Premises Related,Repair Maintenance and Alterations,Environment,Waste,
AM Security Ltd t/a AM Fire & Security Group,03857108,28/07/2010,"5,100.00",Premises Related,Repair Maintenance and Alterations,Environment,Waste,
AM Security Ltd t/a AM Fire & Security Group,03879610,21/07/2010,689.78,Third Party Payments,Private Contractors,Environment,Waste,
AM Security Ltd t/a AM Fire & Security Group,03879649,21/07/2010,689.78,Third Party Payments,Private Contractors,Environment,Waste,
AM Security Ltd t/a AM Fire & Security Group,03879827,21/07/2010,"3,234.38",Third Party Payments,Private Contractors,Environment,Waste,
Amstech Contracts Ltd,03835421,07/07/2010,"1,500.00",New Construction and Conversion,,"Housing, Culture & Capital",Housing Management,
Amstech Contracts Ltd,03835434,07/07/2010,"2,699.00",New Construction and Conversion,,"Housing, Culture & Capital",Housing Management,
Amstech Contracts Ltd,03835450,07/07/2010,720.00,New Construction and Conversion,,"Housing, Culture & Capital",Housing Management,
Amstech Contracts Ltd,03859753,14/07/2010,"1,614.00",New Construction and Conversion,,Chilren & Young People's Trust,Director Childrens Services,
Payment to Individual,03846643,08/07/2010,"5,437.50",Indirect Employees,Miscellaneous Employee Costs,Strategy & Governance,Human Resources,
ANA Treatment Centres Ltd,CF01393063,09/07/2010,-43.15,Customer and Client Receipts,Fees and Charges,Section 75 Sussex Partnership,Contrib to S31 Partnership,
ANA Treatment Centres Ltd,CF01393063,09/07/2010,610.00,Third Party Payments,Other Establishments,Section 75 Sussex Partnership,Contrib to S31 Partnership,
Anchor Trust,03842948,09/07/2010,656.43,Capital Grants,,"Housing, Culture & Capital",Housing Strategy,
Anchor Trust,03842951,09/07/2010,720.65,Capital Grants,,"Housing, Culture & Capital",Housing Strategy,
Anchor Trust,03842964,09/07/2010,"1,870.00",Capital Grants,,"Housing, Culture & Capital",Housing Strategy,
Anchor Trust,03842977,09/07/2010,"1,564.20",Capital Grants,,"Housing, Culture & Capital",Housing Strategy,
Anchor Trust,03842993,09/07/2010,"1,810.95",Capital Grants,,"Housing, Culture & Capital",Housing Strategy,
Anchor Trust,CS01396823,14/07/2010,"2,451.54",Transfer Payments,Supporting People,"Housing, Culture & Capital",Housing Strategy,
Anchor Trust,CS01396824,14/07/2010,"2,451.54",Transfer Payments,Supporting People,"Housing, Culture & Capital",Housing Strategy,
Anchor Trust,CS01396825,14/07/2010,"2,451.54",Transfer Payments,Supporting People,"Housing, Culture & Capital",Housing Strategy,
Anchor Trust,CS01396826,14/07/2010,"2,451.54",Transfer Payments,Supporting People,"Housing, Culture & Capital",Housing Strategy,
Anchor Trust Homes (Partridge House),CF01413033,28/07/2010,"28,553.20",Third Party Payments,Other Establishments,Section 75 Sussex Partnership,Contrib to S31 Partnership,
Anchor Trust Homes (Partridge House),CF01413034,28/07/2010,"28,553.20",Third Party Payments,Other Establishments,Section 75 Sussex Partnership,Contrib to S31 Partnership,
Anchor Trust Homes (Partridge House),CF01413035,28/07/2010,"28,553.20",Third Party Payments,Other Establishments,Section 75 Sussex Partnership,Contrib to S31 Partnership,
Anchor Trust Homes (Partridge House),CF01413036,28/07/2010,"28,553.20",Third Party Payments,Other Establishments,Section 75 Sussex Partnership,Contrib to S31 Partnership,
Anchor Trust Homes (Sycamore Court),CF01413895,28/07/2010,"4,172.40",Third Party Payments,Other Establishments,Adult Social Care,Adult Social Care,
Anchor Trust Homes (Sycamore Court),CF01413896,28/07/2010,"4,172.40",Third Party Payments,Other Establishments,Adult Social Care,Adult Social Care,
Anchor Trust Homes (Sycamore Court),CF01413897,28/07/2010,"4,172.40",Third Party Payments,Other Establishments,Adult Social Care,Adult Social Care,
Anchor Trust Homes (Sycamore Court),CF01413898,28/07/2010,"4,172.40",Third Party Payments,Other Establishments,Adult Social Care,Adult Social Care,
Anchor Trust Homes (Sycamore Court),CF01413968,28/07/2010,"21,420.80",Third Party Payments,Other Establishments,Adult Social Care,Adult Social Care,
Anchor Trust Homes (Sycamore Court),CF01413969,28/07/2010,"21,420.80",Third Party Payments,Other Establishments,Adult Social Care,Adult Social Care,
Anchor Trust Homes (Sycamore Court),CF01413970,28/07/2010,"21,420.80",Third Party Payments,Other Establishments,Adult Social Care,Adult Social Care,
Anchor Trust Homes (Sycamore Court),CF01413971,28/07/2010,"21,420.80",Third Party Payments,Other Establishments,Adult Social Care,Adult Social Care,
Anderida Adolescent Care Ltd,CF01393824,08/07/2010,"4,033.49",Third Party Payments,Other Establishments,Chilren & Young People's Trust,Commissioning & Governance,
Anderida Adolescent Care Ltd,CF01393825,08/07/2010,"2,204.34",Third Party Payments,Other Establishments,Chilren & Young People's Trust,Commissioning & Governance,
Anderida Adolescent Care Ltd,CF01393826,08/07/2010,"5,143.46",Third Party Payments,Other Establishments,Chilren & Young People's Trust,Commissioning & Governance,
Anderida Adolescent Care Ltd,CF01393827,08/07/2010,"3,673.90",Third Party Payments,Other Establishments,Chilren & Young People's Trust,Commissioning & Governance,
Anderida Adolescent Care Ltd,CF01393828,08/07/2010,"1,267.31",Third Party Payments,Other Establishments,Chilren & Young People's Trust,Commissioning & Governance,
Anderida Adolescent Care Ltd,CF01393829,08/07/2010,"4,435.58",Third Party Payments,Other Establishments,Chilren & Young People's Trust,Commissioning & Governance,
Anderida Adolescent Care Ltd,CF01393830,08/07/2010,"4,435.58",Third Party Payments,Other Establishments,Chilren & Young People's Trust,Commissioning & Governance,
Anderida Adolescent Care Ltd,CF01393831,08/07/2010,"4,435.58",Third Party Payments,Other Establishments,Chilren & Young People's Trust,Commissioning & Governance,
Anderson Acoustics Limited,03911280,30/07/2010,950.00,New Construction and Conversion,,Chilren & Young People's Trust,Director Childrens Services,
Payment to Individual,0037989,23/07/2010,850.00,Premises Related,Rents Payable,"Housing, Culture & Capital",Housing Strategy,
Payment to Individual,CF01407302,23/07/2010,-273.37,Customer and Client Receipts,Fees and Charges,Section 75 Adult Social Care,Contrib to S31 Partnership,
Payment to Individual,CF01407302,23/07/2010,814.92,Third Party Payments,Other Establishments,Section 75 Adult Social Care,Contrib to S31 Partnership,
Payment to Individual,CF01407303,23/07/2010,-273.37,Customer and Client Receipts,Fees and Charges,Section 75 Adult Social Care,Contrib to S31 Partnership,
Payment to Individual,CF01407303,23/07/2010,814.92,Third Party Payments,Other Establishments,Section 75 Adult Social Care,Contrib to S31 Partnership,
Payment to Individual,CF01407304,23/07/2010,-273.37,Customer and Client Receipts,Fees and Charges,Section 75 Adult Social Care,Contrib to S31 Partnership,
Payment to Individual,CF01407304,23/07/2010,814.92,Third Party Payments,Other Establishments,Section 75 Adult Social Care,Contrib to S31 Partnership,
Payment to Individual,CF01407305,23/07/2010,-273.37,Customer and Client Receipts,Fees and Charges,Section 75 Adult Social Care,Contrib to S31 Partnership,
Payment to Individual,CF01407305,23/07/2010,814.92,Third Party Payments,Other Establishments,Section 75 Adult Social Care,Contrib to S31 Partnership,
Payment to Individual,0037673,14/07/2010,550.00,Premises Related,Rents Payable,"Housing, Culture & Capital",Housing Strategy,
Andus Print Limited,03867606,16/07/2010,815.00,Supplies and Services,Print Stationery & General Office Expenses,Strategy & Governance,Communications,
Andus Print Limited,03867622,16/07/2010,620.00,Supplies and Services,Print Stationery & General Office Expenses,Strategy & Governance,Communications,
Andus Print Limited,03892309,23/07/2010,986.00,Supplies and Services,Print Stationery & General Office Expenses,Strategy & Governance,Communications,
Andus Print Limited,03906486,30/07/2010,"2,080.00",Supplies and Services,Print Stationery & General Office Expenses,Strategy & Governance,Communications,
Angmering Day Nurseries Ltd,03911358,30/07/2010,"2,190.00",Supplies and Services,Services,Chilren & Young People's Trust,Learning Schools & Skills,
Angmering Day Nurseries Ltd,UL01390957,07/07/2010,"1,548.00",Supplies and Services,Grants and Subscriptions,Chilren & Young People's Trust,Area Integrated Working,
Payment to Individual,03881938,15/07/2010,"1,912.50",Indirect Employees,Miscellaneous Employee Costs,Strategy & Governance,Human Resources,
Payment to Individual,03889684,23/07/2010,930.00,Third Party Payments,Other Establishments,Chilren & Young People's Trust,Area Integrated Working,
Payment to Individual,0037970,23/07/2010,700.00,Premises Related,Rents Payable,"Housing, Culture & Capital",Housing Strategy,
Ann Bridgland Education Services,03899658,28/07/2010,"1,140.20",Supplies and Services,Miscellaneous Expenses,Chilren & Young People's Trust,Learning Schools & Skills,
Payment to Individual,0038264,30/07/2010,715.00,Premises Related,Rents Payable,"Housing, Culture & Capital",Housing Strategy,
Payment to Individual,0037569,07/07/2010,700.00,Premises Related,Rents Payable,"Housing, Culture & Capital",Housing Strategy,
Payment to Individual,0037570,07/07/2010,700.00,Premises Related,Rents Payable,"Housing, Culture & Capital",Housing Strategy,
Payment to Individual,0037571,07/07/2010,700.00,Premises Related,Rents Payable,"Housing, Culture & Capital",Housing Strategy,
Payment to Individual,0037652,09/07/2010,740.00,Premises Related,Rents Payable,"Housing, Culture & Capital",Housing Strategy,
Payment to Individual,0037890,21/07/2010,685.00,Premises Related,Rents Payable,"Housing, Culture & Capital",Housing Strategy,
Payment to Individual,0037983,23/07/2010,750.00,Premises Related,Rents Payable,"Housing, Culture & Capital",Housing Strategy,
Apogee Corporation Limited,03805998,07/07/2010,24.75,Premises Related,Repair Maintenance and Alterations,"Housing, Culture & Capital",Culture & Economy,
Apogee Corporation Limited,03805998,07/07/2010,971.60,Supplies and Services,Equipment Furniture and Materials,"Housing, Culture & Capital",Culture & Economy,
Applegate Properties Ltd,0037611,09/07/2010,765.00,Premises Related,Rents Payable,"Housing, Culture & Capital",Housing Strategy,
Applegate Properties Ltd,0037717,14/07/2010,"1,200.00",Premises Related,Rents Payable,"Housing, Culture & Capital",Housing Strategy,
APT Skidata Ltd,03843455,09/07/2010,684.35,Supplies and Services,Equipment Furniture and Materials,Environment,Sustainable Transport&Planning,
APT Skidata Ltd,03893382,23/07/2010,"4,833.75",Supplies and Services,Equipment Furniture and Materials,Environment,Sustainable Transport&Planning,
APT Skidata Ltd,03893395,23/07/2010,"1,836.90",Supplies and Services,Equipment Furniture and Materials,Environment,Sustainable Transport&Planning,
APT Skidata Ltd,03902765,28/07/2010,"3,468.20",Supplies and Services,Equipment Furniture and Materials,Environment,Sustainable Transport&Planning,
ARC Adventure (Sussex) Ltd,CF01404942,30/07/2010,"3,500.00",Third Party Payments,Other Establishments,Chilren & Young People's Trust,Commissioning & Governance,
ARC Adventure (Sussex) Ltd,CF01404943,30/07/2010,"3,500.00",Third Party Payments,Other Establishments,Chilren & Young People's Trust,Commissioning & Governance,
ARC Adventure (Sussex) Ltd,CF01404944,30/07/2010,"3,500.00",Third Party Payments,Other Establishments,Chilren & Young People's Trust,Commissioning & Governance,
ARC Adventure (Sussex) Ltd,CF01404945,30/07/2010,"5,000.00",Third Party Payments,Other Establishments,Chilren & Young People's Trust,Commissioning & Governance,
ARC Adventure (Sussex) Ltd,CF01404946,30/07/2010,"3,500.00",Third Party Payments,Other Establishments,Chilren & Young People's Trust,Commissioning & Governance,
ARC Adventure (Sussex) Ltd,CF01404947,30/07/2010,"3,500.00",Third Party Payments,Other Establishments,Chilren & Young People's Trust,Commissioning & Governance,
ARC Adventure (Sussex) Ltd,CF01404948,30/07/2010,"3,500.00",Third Party Payments,Other Establishments,Chilren & Young People's Trust,Commissioning & Governance,
ARC Adventure (Sussex) Ltd,CF01404949,30/07/2010,"5,000.00",Third Party Payments,Other Establishments,Chilren & Young People's Trust,Commissioning & Governance,
ARC Adventure (Sussex) Ltd,CF01404950,30/07/2010,"3,500.00",Third Party Payments,Other Establishments,Chilren & Young People's Trust,Commissioning & Governance,
ARC Adventure (Sussex) Ltd,CF01404951,30/07/2010,"3,500.00",Third Party Payments,Other Establishments,Chilren & Young People's Trust,Commissioning & Governance,
ARC Adventure (Sussex) Ltd,CF01404952,30/07/2010,"3,500.00",Third Party Payments,Other Establishments,Chilren & Young People's Trust,Commissioning & Governance,
ARC Adventure (Sussex) Ltd,CF01404953,30/07/2010,"5,000.00",Third Party Payments,Other Establishments,Chilren & Young People's Trust,Commissioning & Governance,
Arena Events Serv Grp Ltd t/a Arena Seating,03841224,07/07/2010,"18,483.00",Supplies and Services,Equipment Furniture and Materials,"Housing, Culture & Capital",Tourism & Venues,
Argos B S - Corporate Link,03870460,16/07/2010,571.88,Transfer Payments,Other Transfer Payments,Chilren & Young People's Trust,Area Integrated Working,
Argos B S - Corporate Link,03871964,23/07/2010,521.47,Transfer Payments,Other Transfer Payments,Chilren & Young People's Trust,Area Integrated Working,
Ark Housing Consultancy LLP,03876697,21/07/2010,"14,700.00",Supplies and Services,Services,Adult Social Care,Housing Management,
Arundel Domiciliary Care Services,CF01391534,09/07/2010,942.86,Third Party Payments,Other Establishments,Section 75 Adult Social Care,Contrib to S31 Partnership,
Arundel Domiciliary Care Services,CF01391535,09/07/2010,"1,100.00",Third Party Payments,Other Establishments,Section 75 Adult Social Care,Contrib to S31 Partnership,
Arundel Domiciliary Care Services,CF01391536,09/07/2010,"1,100.00",Third Party Payments,Other Establishments,Section 75 Adult Social Care,Contrib to S31 Partnership,
Arundel Domiciliary Care Services,CF01391537,09/07/2010,"1,100.00",Third Party Payments,Other Establishments,Section 75 Adult Social Care,Contrib to S31 Partnership,
Arundel Domiciliary Care Services,CF01391538,09/07/2010,"1,100.00",Third Party Payments,Other Establishments,Section 75 Adult Social Care,Contrib to S31 Partnership,
Arundel Domiciliary Care Services,CF01391540,09/07/2010,"1,100.00",Third Party Payments,Other Establishments,Section 75 Adult Social Care,Contrib to S31 Partnership,
Arundel Domiciliary Care Services,CF01391541,09/07/2010,"1,100.00",Third Party Payments,Other Establishments,Section 75 Adult Social Care,Contrib to S31 Partnership,
Arundel Domiciliary Care Services,CF01391542,09/07/2010,"1,100.00",Third Party Payments,Other Establishments,Section 75 Adult Social Care,Contrib to S31 Partnership,
Arundel Domiciliary Care Services,CF01391543,09/07/2010,900.00,Third Party Payments,Other Establishments,Section 75 Adult Social Care,Contrib to S31 Partnership,
Arundel Domiciliary Care Services,CF01393150,09/07/2010,900.00,Third Party Payments,Other Establishments,Section 75 Adult Social Care,Contrib to S31 Partnership,
Arundel Domiciliary Care Services,CF01393151,09/07/2010,"1,100.00",Third Party Payments,Other Establishments,Section 75 Adult Social Care,Contrib to S31 Partnership,
Arundel Domiciliary Care Services,CF01393152,09/07/2010,"1,100.00",Third Party Payments,Other Establishments,Section 75 Adult Social Care,Contrib to S31 Partnership,
Arundel Domiciliary Care Services,CF01393153,09/07/2010,"1,100.00",Third Party Payments,Other Establishments,Section 75 Adult Social Care,Contrib to S31 Partnership,
Arundel Domiciliary Care Services,CF01404721,21/07/2010,"1,050.00",Third Party Payments,Other Establishments,Section 75 Adult Social Care,Contrib to S31 Partnership,
Arundel Domiciliary Care Services,CF01404722,21/07/2010,"1,050.00",Third Party Payments,Other Establishments,Section 75 Adult Social Care,Contrib to S31 Partnership,
Arundel Domiciliary Care Services,CF01404723,21/07/2010,"1,050.00",Third Party Payments,Other Establishments,Section 75 Adult Social Care,Contrib to S31 Partnership,
Arundel Domiciliary Care Services,CF01404724,21/07/2010,"1,050.00",Third Party Payments,Other Establishments,Section 75 Adult Social Care,Contrib to S31 Partnership,
Arundel Domiciliary Care Services,CF01404726,21/07/2010,634.68,Third Party Payments,Other Establishments,Section 75 Adult Social Care,Contrib to S31 Partnership,
Arundel Domiciliary Care Services,CF01404727,21/07/2010,635.44,Third Party Payments,Other Establishments,Section 75 Adult Social Care,Contrib to S31 Partnership,
Arundel Domiciliary Care Services,CF01404728,21/07/2010,635.44,Third Party Payments,Other Establishments,Section 75 Adult Social Care,Contrib to S31 Partnership,
Arundel Domiciliary Care Services,CF01404729,21/07/2010,635.44,Third Party Payments,Other Establishments,Section 75 Adult Social Care,Contrib to S31 Partnership,
ARVAL PHH,03836226,07/07/2010,714.73,Transport Related,Direct Transport Costs,Adult Social Care,Housing Management,
ARVAL PHH,03855252,14/07/2010,"2,904.15",Transport Related,Direct Transport Costs,Environment,Quality of Life & Green Spaces,
Ascendit Lifts Ltd,03846960,09/07/2010,"2,020.00",Capital Grants,,"Housing, Culture & Capital",Housing Strategy,
Ascendit Lifts Ltd,03871155,16/07/2010,"1,480.00",New Construction and Conversion,,"Housing, Culture & Capital",Housing Management,
ASD Unique Services Ltd,CF01389019,07/07/2010,-71.15,Customer and Client Receipts,Fees and Charges,Section 75 Adult Social Care,Contrib to S31 Partnership,
ASD Unique Services Ltd,CF01389019,07/07/2010,"1,121.55",Third Party Payments,Other Establishments,Section 75 Adult Social Care,Contrib to S31 Partnership,
ASD Unique Services Ltd,CF01389020,07/07/2010,-71.15,Customer and Client Receipts,Fees and Charges,Section 75 Adult Social Care,Contrib to S31 Partnership,
ASD Unique Services Ltd,CF01389020,07/07/2010,"1,121.55",Third Party Payments,Other Establishments,Section 75 Adult Social Care,Contrib to S31 Partnership,
ASD Unique Services Ltd,CF01389021,07/07/2010,-71.15,Customer and Client Receipts,Fees and Charges,Section 75 Adult Social Care,Contrib to S31 Partnership,
ASD Unique Services Ltd,CF01389021,07/07/2010,"1,121.55",Third Party Payments,Other Establishments,Section 75 Adult Social Care,Contrib to S31 Partnership,
ASD Unique Services Ltd,CF01389022,07/07/2010,-71.15,Customer and Client Receipts,Fees and Charges,Section 75 Adult Social Care,Contrib to S31 Partnership,
ASD Unique Services Ltd,CF01389022,07/07/2010,"1,121.55",Third Party Payments,Other Establishments,Section 75 Adult Social Care,Contrib to S31 Partnership,
Ashdown NH - Newcare Homes Ltd,CF01411375,28/07/2010,644.40,Third Party Payments,Other Establishments,Adult Social Care,Adult Social Care,
Ashdown NH - Newcare Homes Ltd,CF01411376,28/07/2010,644.40,Third Party Payments,Other Establishments,Adult Social Care,Adult Social Care,
Ashdown NH - Newcare Homes Ltd,CF01411377,28/07/2010,644.40,Third Party Payments,Other Establishments,Adult Social Care,Adult Social Care,
Ashdown NH - Newcare Homes Ltd,CF01411378,28/07/2010,644.40,Third Party Payments,Other Establishments,Adult Social Care,Adult Social Care,
Ashdown NH - Newcare Homes Ltd,CF01411379,28/07/2010,-124.05,Customer and Client Receipts,Fees and Charges,Section 75 Sussex Partnership,Contrib to S31 Partnership,
Ashdown NH - Newcare Homes Ltd,CF01411379,28/07/2010,629.40,Third Party Payments,Other Establishments,Section 75 Sussex Partnership,Contrib to S31 Partnership,
Ashdown NH - Newcare Homes Ltd,CF01411380,28/07/2010,-124.05,Customer and Client Receipts,Fees and Charges,Section 75 Sussex Partnership,Contrib to S31 Partnership,
Ashdown NH - Newcare Homes Ltd,CF01411380,28/07/2010,629.40,Third Party Payments,Other Establishments,Section 75 Sussex Partnership,Contrib to S31 Partnership,
Ashdown NH - Newcare Homes Ltd,CF01411381,28/07/2010,-124.05,Customer and Client Receipts,Fees and Charges,Section 75 Sussex Partnership,Contrib to S31 Partnership,
Ashdown NH - Newcare Homes Ltd,CF01411381,28/07/2010,629.40,Third Party Payments,Other Establishments,Section 75 Sussex Partnership,Contrib to S31 Partnership,
Ashdown NH - Newcare Homes Ltd,CF01411382,28/07/2010,-124.05,Customer and Client Receipts,Fees and Charges,Section 75 Sussex Partnership,Contrib to S31 Partnership,
Ashdown NH - Newcare Homes Ltd,CF01411382,28/07/2010,629.40,Third Party Payments,Other Establishments,Section 75 Sussex Partnership,Contrib to S31 Partnership,
Ashdown NH - Newcare Homes Ltd,CF01411383,28/07/2010,668.40,Third Party Payments,Other Establishments,Section 75 Sussex Partnership,Contrib to S31 Partnership,
Ashdown NH - Newcare Homes Ltd,CF01411384,28/07/2010,668.40,Third Party Payments,Other Establishments,Section 75 Sussex Partnership,Contrib to S31 Partnership,
Ashdown NH - Newcare Homes Ltd,CF01411385,28/07/2010,668.40,Third Party Payments,Other Establishments,Section 75 Sussex Partnership,Contrib to S31 Partnership,
Ashdown NH - Newcare Homes Ltd,CF01411386,28/07/2010,668.40,Third Party Payments,Other Establishments,Section 75 Sussex Partnership,Contrib to S31 Partnership,
Ashdown NH - Newcare Homes Ltd,CF01411387,28/07/2010,617.40,Third Party Payments,Other Establishments,Adult Social Care,Adult Social Care,
Ashdown NH - Newcare Homes Ltd,CF01411388,28/07/2010,617.40,Third Party Payments,Other Establishments,Adult Social Care,Adult Social Care,
Ashdown NH - Newcare Homes Ltd,CF01411389,28/07/2010,617.40,Third Party Payments,Other Establishments,Adult Social Care,Adult Social Care,
Ashdown NH - Newcare Homes Ltd,CF01411390,28/07/2010,617.40,Third Party Payments,Other Establishments,Adult Social Care,Adult Social Care,
Ashdown NH - Newcare Homes Ltd,CF01411391,28/07/2010,553.20,Third Party Payments,Other Establishments,Adult Social Care,Adult Social Care,
Ashdown NH - Newcare Homes Ltd,CF01411392,28/07/2010,553.20,Third Party Payments,Other Establishments,Adult Social Care,Adult Social Care,
Ashdown NH - Newcare Homes Ltd,CF01411393,28/07/2010,553.20,Third Party Payments,Other Establishments,Adult Social Care,Adult Social Care,
Ashdown NH - Newcare Homes Ltd,CF01411394,28/07/2010,553.20,Third Party Payments,Other Establishments,Adult Social Care,Adult Social Care,
Ashdown NH - Newcare Homes Ltd,CF01411395,28/07/2010,553.20,Third Party Payments,Other Establishments,Section 75 Sussex Partnership,Contrib to S31 Partnership,
Ashdown NH - Newcare Homes Ltd,CF01411396,28/07/2010,553.20,Third Party Payments,Other Establishments,Section 75 Sussex Partnership,Contrib to S31 Partnership,
Ashdown NH - Newcare Homes Ltd,CF01411397,28/07/2010,553.20,Third Party Payments,Other Establishments,Section 75 Sussex Partnership,Contrib to S31 Partnership,
Ashdown NH - Newcare Homes Ltd,CF01411398,28/07/2010,553.20,Third Party Payments,Other Establishments,Section 75 Sussex Partnership,Contrib to S31 Partnership,
Payment to Individual,0038106,28/07/2010,925.00,Premises Related,Rents Payable,"Housing, Culture & Capital",Housing Strategy,
Ashton House,CF01414202,28/07/2010,-110.30,Customer and Client Receipts,Fees and Charges,Section 75 Sussex Partnership,Contrib to S31 Partnership,
Ashton House,CF01414202,28/07/2010,748.40,Third Party Payments,Other Establishments,Section 75 Sussex Partnership,Contrib to S31 Partnership,
Ashton House,CF01414203,28/07/2010,-110.30,Customer and Client Receipts,Fees and Charges,Section 75 Sussex Partnership,Contrib to S31 Partnership,
Ashton House,CF01414203,28/07/2010,748.40,Third Party Payments,Other Establishments,Section 75 Sussex Partnership,Contrib to S31 Partnership,
Ashton House,CF01414204,28/07/2010,-110.30,Customer and Client Receipts,Fees and Charges,Section 75 Sussex Partnership,Contrib to S31 Partnership,
Ashton House,CF01414204,28/07/2010,748.40,Third Party Payments,Other Establishments,Section 75 Sussex Partnership,Contrib to S31 Partnership,
Ashton House,CF01414205,28/07/2010,-110.30,Customer and Client Receipts,Fees and Charges,Section 75 Sussex Partnership,Contrib to S31 Partnership,
Ashton House,CF01414205,28/07/2010,748.40,Third Party Payments,Other Establishments,Section 75 Sussex Partnership,Contrib to S31 Partnership,
Ashton House,CF01414206,28/07/2010,-121.09,Customer and Client Receipts,Fees and Charges,Section 75 Sussex Partnership,Contrib to S31 Partnership,
Ashton House,CF01414206,28/07/2010,748.40,Third Party Payments,Other Establishments,Section 75 Sussex Partnership,Contrib to S31 Partnership,
Ashton House,CF01414207,28/07/2010,-121.09,Customer and Client Receipts,Fees and Charges,Section 75 Sussex Partnership,Contrib to S31 Partnership,
Ashton House,CF01414207,28/07/2010,748.40,Third Party Payments,Other Establishments,Section 75 Sussex Partnership,Contrib to S31 Partnership,
Ashton House,CF01414208,28/07/2010,-121.09,Customer and Client Receipts,Fees and Charges,Section 75 Sussex Partnership,Contrib to S31 Partnership,
Ashton House,CF01414208,28/07/2010,748.40,Third Party Payments,Other Establishments,Section 75 Sussex Partnership,Contrib to S31 Partnership,
Ashton House,CF01414209,28/07/2010,-121.09,Customer and Client Receipts,Fees and Charges,Section 75 Sussex Partnership,Contrib to S31 Partnership,
Ashton House,CF01414209,28/07/2010,748.40,Third Party Payments,Other Establishments,Section 75 Sussex Partnership,Contrib to S31 Partnership,
Ashton House,CF01414218,28/07/2010,-136.48,Customer and Client Receipts,Fees and Charges,Section 75 Sussex Partnership,Contrib to S31 Partnership,
Ashton House,CF01414218,28/07/2010,802.40,Third Party Payments,Other Establishments,Section 75 Sussex Partnership,Contrib to S31 Partnership,
Ashton House,CF01414219,28/07/2010,-136.48,Customer and Client Receipts,Fees and Charges,Section 75 Sussex Partnership,Contrib to S31 Partnership,
Ashton House,CF01414219,28/07/2010,802.40,Third Party Payments,Other Establishments,Section 75 Sussex Partnership,Contrib to S31 Partnership,
Ashton House,CF01414220,28/07/2010,-136.48,Customer and Client Receipts,Fees and Charges,Section 75 Sussex Partnership,Contrib to S31 Partnership,
Ashton House,CF01414220,28/07/2010,802.40,Third Party Payments,Other Establishments,Section 75 Sussex Partnership,Contrib to S31 Partnership,
Ashton House,CF01414221,28/07/2010,-136.48,Customer and Client Receipts,Fees and Charges,Section 75 Sussex Partnership,Contrib to S31 Partnership,
Ashton House,CF01414221,28/07/2010,802.40,Third Party Payments,Other Establishments,Section 75 Sussex Partnership,Contrib to S31 Partnership,
Ashton House,CF01414222,28/07/2010,626.40,Third Party Payments,Other Establishments,Section 75 Sussex Partnership,Contrib to S31 Partnership,
Ashton House,CF01414223,28/07/2010,626.40,Third Party Payments,Other Establishments,Section 75 Sussex Partnership,Contrib to S31 Partnership,
Ashton House,CF01414224,28/07/2010,626.40,Third Party Payments,Other Establishments,Section 75 Sussex Partnership,Contrib to S31 Partnership,
Ashton House,CF01414225,28/07/2010,626.40,Third Party Payments,Other Establishments,Section 75 Sussex Partnership,Contrib to S31 Partnership,
Aspen Arboricultural Ltd,03853241,14/07/2010,"1,050.00",Third Party Payments,Private Contractors,Environment,Quality of Life & Green Spaces,
Asphaleia Ltd,CF01403491,21/07/2010,958.20,Third Party Payments,Other Establishments,Chilren & Young People's Trust,Commissioning & Governance,
Asphaleia Ltd,CF01403492,21/07/2010,862.44,Third Party Payments,Other Establishments,Chilren & Young People's Trust,Commissioning & Governance,
Asphaleia Ltd,CF01403493,21/07/2010,670.72,Third Party Payments,Other Establishments,Chilren & Young People's Trust,Commissioning & Governance,
Asphaleia Ltd,CF01403494,21/07/2010,670.72,Third Party Payments,Other Establishments,Chilren & Young People's Trust,Commissioning & Governance,
Asphaleia Ltd,CF01403495,21/07/2010,670.72,Third Party Payments,Other Establishments,Chilren & Young People's Trust,Commissioning & Governance,
Aspirations Active,CF01389580,07/07/2010,538.15,Third Party Payments,Other Establishments,Section 75 Adult Social Care,Contrib to S31 Partnership,
Aspirations Active,CF01389581,07/07/2010,538.15,Third Party Payments,Other Establishments,Section 75 Adult Social Care,Contrib to S31 Partnership,
Aspirations Active,CF01389582,07/07/2010,538.15,Third Party Payments,Other Establishments,Section 75 Adult Social Care,Contrib to S31 Partnership,
Aspirations Active,CF01389600,07/07/2010,559.90,Third Party Payments,Other Establishments,Section 75 Adult Social Care,Contrib to S31 Partnership,
Aspirations Active,CF01389601,07/07/2010,559.90,Third Party Payments,Other Establishments,Section 75 Adult Social Care,Contrib to S31 Partnership,
Aspirations Active,CF01389602,07/07/2010,559.90,Third Party Payments,Other Establishments,Section 75 Adult Social Care,Contrib to S31 Partnership,
Aspirations Active,CF01389615,07/07/2010,582.60,Third Party Payments,Other Establishments,Section 75 Adult Social Care,Contrib to S31 Partnership,
Aspirations Active,CF01389616,07/07/2010,582.60,Third Party Payments,Other Establishments,Section 75 Adult Social Care,Contrib to S31 Partnership,
Aspirations Active,CF01389617,07/07/2010,582.60,Third Party Payments,Other Establishments,Section 75 Adult Social Care,Contrib to S31 Partnership,
Aspirations Active,CF01389620,07/07/2010,559.90,Third Party Payments,Other Establishments,Section 75 Adult Social Care,Contrib to S31 Partnership,
Aspirations Active,CF01389621,07/07/2010,559.90,Third Party Payments,Other Establishments,Section 75 Adult Social Care,Contrib to S31 Partnership,
Aspirations Active,CF01389622,07/07/2010,559.90,Third Party Payments,Other Establishments,Section 75 Adult Social Care,Contrib to S31 Partnership,
Assessment in Care Ltd,CF01393841,14/07/2010,"3,556.30",Third Party Payments,Other Establishments,Chilren & Young People's Trust,Commissioning & Governance,
Asset Advantage Limited,03841839,07/07/2010,800.00,Capital Financing Costs,Capital Financing Costs,Finance & Resources,Financing Costs,
AssetCo Rental No2 Ltd,03838994,07/07/2010,512.19,Capital Financing Costs,Capital Financing Costs,Finance & Resources,Financing Costs,
AssetCo Rental No2 Ltd,03869714,16/07/2010,512.19,Capital Financing Costs,Capital Financing Costs,Finance & Resources,Financing Costs,
Associated Taxis Southwick T/A Taxilink,03901753,28/07/2010,"3,083.00",Transport Related,Other Transport Costs,Chilren & Young People's Trust,Learning Schools & Skills,
A TAD Ltd t/a Carewatch (Brighton & Hove),CF01399801,16/07/2010,-30.00,Customer and Client Receipts,Fees and Charges,Adult Social Care,Adult Social Care,
A TAD Ltd t/a Carewatch (Brighton & Hove),CF01399801,16/07/2010,607.41,Third Party Payments,Other Establishments,Adult Social Care,Adult Social Care,
A TAD Ltd t/a Carewatch (Brighton & Hove),CF01399802,16/07/2010,-30.00,Customer and Client Receipts,Fees and Charges,Adult Social Care,Adult Social Care,
A TAD Ltd t/a Carewatch (Brighton & Hove),CF01399802,16/07/2010,607.41,Third Party Payments,Other Establishments,Adult Social Care,Adult Social Care,
A TAD Ltd t/a Carewatch (Brighton & Hove),CF01399824,16/07/2010,-30.00,Customer and Client Receipts,Fees and Charges,Adult Social Care,Adult Social Care,
A TAD Ltd t/a Carewatch (Brighton & Hove),CF01399824,16/07/2010,597.94,Third Party Payments,Other Establishments,Adult Social Care,Adult Social Care,
A TAD Ltd t/a Carewatch (Brighton & Hove),CF01399825,16/07/2010,-30.00,Customer and Client Receipts,Fees and Charges,Adult Social Care,Adult Social Care,
A TAD Ltd t/a Carewatch (Brighton & Hove),CF01399825,16/07/2010,597.95,Third Party Payments,Other Establishments,Adult Social Care,Adult Social Care,
A TAD Ltd t/a Carewatch (Brighton & Hove),CF01400920,16/07/2010,"2,395.77",Third Party Payments,Other Establishments,Section 75 Sussex Partnership,Contrib to S31 Partnership,
A TAD Ltd t/a Carewatch (Brighton & Hove),CF01400922,16/07/2010,842.80,Third Party Payments,Other Establishments,Section 75 Sussex Partnership,Contrib to S31 Partnership,
A TAD Ltd t/a Carewatch (Brighton & Hove),CF01400929,16/07/2010,560.05,Third Party Payments,Other Establishments,Section 75 Sussex Partnership,Contrib to S31 Partnership,
A TAD Ltd t/a Carewatch (Brighton & Hove),CF01400930,16/07/2010,842.80,Third Party Payments,Other Establishments,Section 75 Sussex Partnership,Contrib to S31 Partnership,
A TAD Ltd t/a Carewatch (Brighton & Hove),CF01400937,16/07/2010,571.14,Third Party Payments,Other Establishments,Section 75 Sussex Partnership,Contrib to S31 Partnership,
A TAD Ltd t/a Carewatch (Brighton & Hove),CF01400938,16/07/2010,574.99,Third Party Payments,Other Establishments,Section 75 Sussex Partnership,Contrib to S31 Partnership,
A TAD Ltd t/a Carewatch (Brighton & Hove),CF01400939,16/07/2010,842.80,Third Party Payments,Other Establishments,Section 75 Sussex Partnership,Contrib to S31 Partnership,
A TAD Ltd t/a Carewatch (Brighton & Hove),CF01400947,16/07/2010,579.61,Third Party Payments,Other Establishments,Section 75 Sussex Partnership,Contrib to S31 Partnership,
A TAD Ltd t/a Carewatch (Brighton & Hove),CF01400962,16/07/2010,602.00,Third Party Payments,Other Establishments,Section 75 Sussex Partnership,Contrib to S31 Partnership,
A TAD Ltd t/a Carewatch (Brighton & Hove),CF01400966,16/07/2010,"1,527.33",Third Party Payments,Other Establishments,Section 75 Sussex Partnership,Contrib to S31 Partnership,
A TAD Ltd t/a Carewatch (Brighton & Hove),CF01400968,16/07/2010,624.10,Third Party Payments,Other Establishments,Section 75 Sussex Partnership,Contrib to S31 Partnership,
A TAD Ltd t/a Carewatch (Brighton & Hove),CF01400973,16/07/2010,842.80,Third Party Payments,Other Establishments,Section 75 Sussex Partnership,Contrib to S31 Partnership,
A TAD Ltd t/a Carewatch (Brighton & Hove),CF01402301,16/07/2010,-26.00,Customer and Client Receipts,Fees and Charges,Adult Social Care,Adult Social Care,
A TAD Ltd t/a Carewatch (Brighton & Hove),CF01402301,16/07/2010,637.84,Third Party Payments,Other Establishments,Adult Social Care,Adult Social Care,
A TAD Ltd t/a Carewatch (Brighton & Hove),CF01402344,16/07/2010,714.27,Third Party Payments,Other Establishments,Adult Social Care,Adult Social Care,
A TAD Ltd t/a Carewatch (Brighton & Hove),CF01402345,16/07/2010,759.00,Third Party Payments,Other Establishments,Adult Social Care,Adult Social Care,
A TAD Ltd t/a Carewatch (Brighton & Hove),CF01402659,16/07/2010,842.80,Third Party Payments,Other Establishments,Adult Social Care,Adult Social Care,
A TAD Ltd t/a Carewatch (Brighton & Hove),CF01402754,16/07/2010,569.92,Third Party Payments,Other Establishments,Section 75 Sussex Partnership,Contrib to S31 Partnership,
A TAD Ltd t/a Carewatch (Brighton & Hove),CF01402755,16/07/2010,842.80,Third Party Payments,Other Establishments,Section 75 Sussex Partnership,Contrib to S31 Partnership,
A TAD Ltd t/a Carewatch (Brighton & Hove),CF01403279,16/07/2010,508.93,Third Party Payments,Other Establishments,Adult Social Care,Adult Social Care,
A TAD Ltd t/a Carewatch (Brighton & Hove),CF01403280,16/07/2010,508.93,Third Party Payments,Other Establishments,Adult Social Care,Adult Social Care,
A TAD Ltd t/a Carewatch (Brighton & Hove),CF01403299,16/07/2010,"1,025.64",Third Party Payments,Other Establishments,Section 75 Adult Social Care,Contrib to S31 Partnership,
A TAD Ltd t/a Carewatch (Brighton & Hove),CF01403300,16/07/2010,936.84,Third Party Payments,Other Establishments,Section 75 Adult Social Care,Contrib to S31 Partnership,
A TAD Ltd t/a Carewatch (Brighton & Hove),CF01403358,16/07/2010,-38.00,Customer and Client Receipts,Fees and Charges,Adult Social Care,Adult Social Care,
A TAD Ltd t/a Carewatch (Brighton & Hove),CF01403358,16/07/2010,539.59,Third Party Payments,Other Establishments,Adult Social Care,Adult Social Care,
A TAD Ltd t/a Carewatch (Brighton & Hove),CF01414716,28/07/2010,637.84,Third Party Payments,Other Establishments,Adult Social Care,Adult Social Care,
A TAD Ltd t/a Carewatch (Brighton & Hove),CF01414738,28/07/2010,637.84,Third Party Payments,Other Establishments,Adult Social Care,Adult Social Care,
A TAD Ltd t/a Carewatch (Brighton & Hove),CF01414755,28/07/2010,637.84,Third Party Payments,Other Establishments,Adult Social Care,Adult Social Care,
A TAD Ltd t/a Carewatch (Brighton & Hove),CF01414756,28/07/2010,637.84,Third Party Payments,Other Establishments,Adult Social Care,Adult Social Care,
A TAD Ltd t/a Carewatch (Brighton & Hove),CF01414758,28/07/2010,789.19,Third Party Payments,Other Establishments,Adult Social Care,Adult Social Care,
A TAD Ltd t/a Carewatch (Brighton & Hove),CF01414762,28/07/2010,637.84,Third Party Payments,Other Establishments,Adult Social Care,Adult Social Care,
A TAD Ltd t/a Carewatch (Brighton & Hove),CF01414788,28/07/2010,637.84,Third Party Payments,Other Establishments,Adult Social Care,Adult Social Care,
A TAD Ltd t/a Carewatch (Brighton & Hove),CF01414855,28/07/2010,637.84,Third Party Payments,Other Establishments,Adult Social Care,Adult Social Care,
A TAD Ltd t/a Carewatch (Brighton & Hove),CF01414859,28/07/2010,637.84,Third Party Payments,Other Establishments,Adult Social Care,Adult Social Care,
A TAD Ltd t/a Carewatch (Brighton & Hove),CF01414860,28/07/2010,567.23,Third Party Payments,Other Establishments,Adult Social Care,Adult Social Care,
A TAD Ltd t/a Carewatch (Brighton & Hove),CF01414861,28/07/2010,637.84,Third Party Payments,Other Establishments,Adult Social Care,Adult Social Care,
A TAD Ltd t/a Carewatch (Brighton & Hove),CF01416847,30/07/2010,-38.00,Customer and Client Receipts,Fees and Charges,Adult Social Care,Adult Social Care,
A TAD Ltd t/a Carewatch (Brighton & Hove),CF01416847,30/07/2010,539.53,Third Party Payments,Other Establishments,Adult Social Care,Adult Social Care,
A TAD Ltd t/a Carewatch (Brighton & Hove),CF01416848,30/07/2010,-38.00,Customer and Client Receipts,Fees and Charges,Adult Social Care,Adult Social Care,
A TAD Ltd t/a Carewatch (Brighton & Hove),CF01416848,30/07/2010,539.59,Third Party Payments,Other Establishments,Adult Social Care,Adult Social Care,
A TAD Ltd t/a Carewatch (Brighton & Hove),CF01416907,30/07/2010,"1,025.64",Third Party Payments,Other Establishments,Section 75 Adult Social Care,Contrib to S31 Partnership,
A TAD Ltd t/a Carewatch (Brighton & Hove),CF01416908,30/07/2010,936.84,Third Party Payments,Other Establishments,Section 75 Adult Social Care,Contrib to S31 Partnership,
A TAD Ltd t/a Carewatch (Brighton & Hove),CF01417016,30/07/2010,539.59,Third Party Payments,Other Establishments,Adult Social Care,Adult Social Care,
A TAD Ltd t/a Carewatch (Brighton & Hove),CF01417017,30/07/2010,536.85,Third Party Payments,Other Establishments,Adult Social Care,Adult Social Care,
Atkins Ltd/Faithful & Gould Ltd,03844234,21/07/2010,"2,370.00",New Construction and Conversion,,"Housing, Culture & Capital",Major Projects & Regeneration,
Atkins Ltd/Faithful & Gould Ltd,03901368,28/07/2010,"4,847.00",New Construction and Conversion,,"Housing, Culture & Capital",Housing Management,
Atlantic Shopping,03869057,16/07/2010,"1,574.47",Supplies and Services,Equipment Furniture and Materials,"Housing, Culture & Capital",Tourism & Venues,
ATS Euromaster Ltd,03896020,28/07/2010,151.25,Transport Related,Contract Hire and Operating Leas,Environment,Waste,
ATS Euromaster Ltd,03896020,28/07/2010,"3,896.68",Transport Related,Direct Transport Costs,Environment,Quality of Life & Green Spaces,
ATS Euromaster Ltd,03896020,28/07/2010,"2,641.40",Transport Related,Direct Transport Costs,Environment,Waste,
Audioactive 2,03905937,30/07/2010,"1,000.00",Supplies and Services,Miscellaneous Expenses,Chilren & Young People's Trust,Area Integrated Working,
Audioactive 2,03911840,30/07/2010,"1,000.00",Supplies and Services,Miscellaneous Expenses,Environment,Public Safety,
Audit Commission,03900194,28/07/2010,"32,458.00",Supplies and Services,Services,Finance & Resources,Financial Services,
Audit Commission,03908808,30/07/2010,"23,239.70",Supplies and Services,Services,Finance & Resources,Financial Services,
Auto Windscreens Ltd,03869947,16/07/2010,522.06,Transport Related,Direct Transport Costs,Environment,Waste,
Aviation Projects Ltd,03885329,21/07/2010,"1,500.00",Supplies and Services,Services,Finance & Resources,ICT,
Aviation Projects Ltd,03885332,21/07/2010,"1,750.00",Supplies and Services,Services,Finance & Resources,ICT,
Avon Estates (London) Ltd,0037696,14/07/2010,500.00,Premises Related,Rents Payable,"Housing, Culture & Capital",Housing Strategy,
Avon Estates (London) Ltd,0038221,30/07/2010,850.00,Premises Related,Rents Payable,"Housing, Culture & Capital",Housing Strategy,
AVT Ltd,03836158,07/07/2010,"1,458.89",Supplies and Services,Miscellaneous Expenses,Chilren & Young People's Trust,Learning Schools & Skills,
AWCFA Limited,03872552,16/07/2010,"1,147.00",Supplies and Services,Services,Finance & Resources,ICT,
A.W. Matthews Ornamental Fabrication,03866898,16/07/2010,864.00,Premises Related,Repair Maintenance and Alterations,"Housing, Culture & Capital",Tourism & Venues,
Baby Ducks Playgroup,UL01390924,07/07/2010,"2,909.00",Supplies and Services,Grants and Subscriptions,Chilren & Young People's Trust,Area Integrated Working,
Baby Ducks Playgroup,UL01398178,14/07/2010,"2,964.00",Third Party Payments,Other Establishments,Chilren & Young People's Trust,Learning Schools & Skills,
Bailey Partnership,03904093,28/07/2010,514.55,New Construction and Conversion,,Finance & Resources,Property & Design,
BandBazi,03855359,14/07/2010,"1,000.00",Supplies and Services,Grants and Subscriptions,Strategy & Governance,Communities & Equality,
BAPEN,03819609,21/07/2010,"1,000.00",Supplies and Services,Miscellaneous Expenses,Strategy & Governance,Human Resources,
Baqus Group Plc t/a Baqus Boxall Sayer ,03885947,21/07/2010,525.00,Premises Related,Repair Maintenance and Alterations,Finance & Resources,Property & Design,
Payment to Individual,0037666,14/07/2010,560.00,Premises Related,Rents Payable,"Housing, Culture & Capital",Housing Strategy,
Barbara Miller Consultancy Limited,03880450,21/07/2010,"1,750.00",Supplies and Services,Services,Chilren & Young People's Trust,Learning Schools & Skills,
Payment to Individual,0037994,23/07/2010,765.00,Premises Related,Rents Payable,"Housing, Culture & Capital",Housing Strategy,
Payment to Individual,0037995,23/07/2010,615.00,Premises Related,Rents Payable,"Housing, Culture & Capital",Housing Strategy,
Payment to Individual,0037996,23/07/2010,915.00,Premises Related,Rents Payable,"Housing, Culture & Capital",Housing Strategy,
Payment to Individual,0037997,23/07/2010,615.00,Premises Related,Rents Payable,"Housing, Culture & Capital",Housing Strategy,
Barchester Healthcare Homes Ltd,CF01391150,07/07/2010,-138.53,Customer and Client Receipts,Fees and Charges,Adult Social Care,Adult Social Care,
Barchester Healthcare Homes Ltd,CF01391150,07/07/2010,999.00,Third Party Payments,Other Establishments,Adult Social Care,Adult Social Care,
Barchester Healthcare Homes Ltd,CF01391151,07/07/2010,-138.53,Customer and Client Receipts,Fees and Charges,Adult Social Care,Adult Social Care,
Barchester Healthcare Homes Ltd,CF01391151,07/07/2010,"1,001.40",Third Party Payments,Other Establishments,Adult Social Care,Adult Social Care,
Barchester Healthcare Homes Ltd,CF01391152,07/07/2010,-141.43,Customer and Client Receipts,Fees and Charges,Adult Social Care,Adult Social Care,
Barchester Healthcare Homes Ltd,CF01391152,07/07/2010,"1,078.92",Third Party Payments,Other Establishments,Adult Social Care,Adult Social Care,
Barchester Healthcare Homes Ltd,CF01391153,07/07/2010,-141.43,Customer and Client Receipts,Fees and Charges,Adult Social Care,Adult Social Care,
Barchester Healthcare Homes Ltd,CF01391153,07/07/2010,"1,078.92",Third Party Payments,Other Establishments,Adult Social Care,Adult Social Care,
Barchester Healthcare Homes Ltd,CF01391154,07/07/2010,-141.43,Customer and Client Receipts,Fees and Charges,Adult Social Care,Adult Social Care,
Barchester Healthcare Homes Ltd,CF01391154,07/07/2010,"1,078.92",Third Party Payments,Other Establishments,Adult Social Care,Adult Social Care,
Barchester Healthcare Homes Ltd,CF01391155,07/07/2010,-141.43,Customer and Client Receipts,Fees and Charges,Adult Social Care,Adult Social Care,
Barchester Healthcare Homes Ltd,CF01391155,07/07/2010,"1,078.92",Third Party Payments,Other Establishments,Adult Social Care,Adult Social Care,
Barchester Healthcare Homes Ltd,CF01391156,07/07/2010,-141.43,Customer and Client Receipts,Fees and Charges,Adult Social Care,Adult Social Care,
Barchester Healthcare Homes Ltd,CF01391156,07/07/2010,"1,078.92",Third Party Payments,Other Establishments,Adult Social Care,Adult Social Care,
Barchester Healthcare Homes Ltd,CF01391157,07/07/2010,-141.43,Customer and Client Receipts,Fees and Charges,Adult Social Care,Adult Social Care,
Barchester Healthcare Homes Ltd,CF01391157,07/07/2010,"1,078.92",Third Party Payments,Other Establishments,Adult Social Care,Adult Social Care,
Barchester Healthcare Homes Ltd,CF01391158,07/07/2010,-141.43,Customer and Client Receipts,Fees and Charges,Adult Social Care,Adult Social Care,
Barchester Healthcare Homes Ltd,CF01391158,07/07/2010,"1,078.92",Third Party Payments,Other Establishments,Adult Social Care,Adult Social Care,
Barchester Healthcare Homes Ltd,CF01391159,07/07/2010,-141.43,Customer and Client Receipts,Fees and Charges,Adult Social Care,Adult Social Care,
Barchester Healthcare Homes Ltd,CF01391159,07/07/2010,"1,078.92",Third Party Payments,Other Establishments,Adult Social Care,Adult Social Care,
Barchester Healthcare Homes Ltd,CF01391160,07/07/2010,-141.43,Customer and Client Receipts,Fees and Charges,Adult Social Care,Adult Social Care,
Barchester Healthcare Homes Ltd,CF01391160,07/07/2010,"1,078.92",Third Party Payments,Other Establishments,Adult Social Care,Adult Social Care,
Barchester Healthcare Homes Ltd,CF01409848,23/07/2010,-141.43,Customer and Client Receipts,Fees and Charges,Adult Social Care,Adult Social Care,
Barchester Healthcare Homes Ltd,CF01409848,23/07/2010,"1,078.92",Third Party Payments,Other Establishments,Adult Social Care,Adult Social Care,
Barchester Healthcare Homes Ltd,CF01409849,23/07/2010,-141.43,Customer and Client Receipts,Fees and Charges,Adult Social Care,Adult Social Care,
Barchester Healthcare Homes Ltd,CF01409849,23/07/2010,"1,078.92",Third Party Payments,Other Establishments,Adult Social Care,Adult Social Care,
Barchester Healthcare Homes Ltd,CF01409850,23/07/2010,-141.43,Customer and Client Receipts,Fees and Charges,Adult Social Care,Adult Social Care,
Barchester Healthcare Homes Ltd,CF01409850,23/07/2010,"1,078.92",Third Party Payments,Other Establishments,Adult Social Care,Adult Social Care,
Barchester Healthcare Homes Ltd,CF01409851,23/07/2010,-141.43,Customer and Client Receipts,Fees and Charges,Adult Social Care,Adult Social Care,
Barchester Healthcare Homes Ltd,CF01409851,23/07/2010,"1,078.92",Third Party Payments,Other Establishments,Adult Social Care,Adult Social Care,
Barchester Healthcare t/a Dudwell St Mary,CF01414298,28/07/2010,-352.96,Customer and Client Receipts,Fees and Charges,Section 75 Sussex Partnership,Contrib to S31 Partnership,
Barchester Healthcare t/a Dudwell St Mary,CF01414298,28/07/2010,891.40,Third Party Payments,Other Establishments,Section 75 Sussex Partnership,Contrib to S31 Partnership,
Barchester Healthcare t/a Dudwell St Mary,CF01414299,28/07/2010,-352.96,Customer and Client Receipts,Fees and Charges,Section 75 Sussex Partnership,Contrib to S31 Partnership,
Barchester Healthcare t/a Dudwell St Mary,CF01414299,28/07/2010,891.40,Third Party Payments,Other Establishments,Section 75 Sussex Partnership,Contrib to S31 Partnership,
Barchester Healthcare t/a Dudwell St Mary,CF01414300,28/07/2010,-352.96,Customer and Client Receipts,Fees and Charges,Section 75 Sussex Partnership,Contrib to S31 Partnership,
Barchester Healthcare t/a Dudwell St Mary,CF01414300,28/07/2010,891.40,Third Party Payments,Other Establishments,Section 75 Sussex Partnership,Contrib to S31 Partnership,
Barchester Healthcare t/a Dudwell St Mary,CF01414301,28/07/2010,-352.96,Customer and Client Receipts,Fees and Charges,Section 75 Sussex Partnership,Contrib to S31 Partnership,
Barchester Healthcare t/a Dudwell St Mary,CF01414301,28/07/2010,891.40,Third Party Payments,Other Establishments,Section 75 Sussex Partnership,Contrib to S31 Partnership,
Barnardos,03895393,28/07/2010,"15,000.00",Third Party Payments,Other Establishments,Chilren & Young People's Trust,Learning Schools & Skills,
Barnardos,03900262,28/07/2010,"65,553.00",Third Party Payments,Other Establishments,Chilren & Young People's Trust,Learning Schools & Skills,
Bartram Mowers Limited,03908109,30/07/2010,"1,075.07",Transport Related,Direct Transport Costs,Environment,Quality of Life & Green Spaces,
Bates Wells & Braithwaite London LLP,03888711,23/07/2010,"5,760.00",New Construction and Conversion,,"Housing, Culture & Capital",Culture & Economy,
Beach House Kingsdown Ltd,CF01389925,07/07/2010,-71.15,Customer and Client Receipts,Fees and Charges,Section 75 Adult Social Care,Contrib to S31 Partnership,
Beach House Kingsdown Ltd,CF01389925,07/07/2010,814.98,Third Party Payments,Other Establishments,Section 75 Adult Social Care,Contrib to S31 Partnership,
Beach House Kingsdown Ltd,CF01389926,07/07/2010,-71.15,Customer and Client Receipts,Fees and Charges,Section 75 Adult Social Care,Contrib to S31 Partnership,
Beach House Kingsdown Ltd,CF01389926,07/07/2010,814.98,Third Party Payments,Other Establishments,Section 75 Adult Social Care,Contrib to S31 Partnership,
Beach House Kingsdown Ltd,CF01389927,07/07/2010,-71.15,Customer and Client Receipts,Fees and Charges,Section 75 Adult Social Care,Contrib to S31 Partnership,
Beach House Kingsdown Ltd,CF01389927,07/07/2010,814.98,Third Party Payments,Other Establishments,Section 75 Adult Social Care,Contrib to S31 Partnership,
Beach House Kingsdown Ltd,CF01389928,07/07/2010,-71.15,Customer and Client Receipts,Fees and Charges,Section 75 Adult Social Care,Contrib to S31 Partnership,
Beach House Kingsdown Ltd,CF01389928,07/07/2010,814.98,Third Party Payments,Other Establishments,Section 75 Adult Social Care,Contrib to S31 Partnership,
BeCCA Playgroup,03897689,28/07/2010,916.65,Supplies and Services,Miscellaneous Expenses,Chilren & Young People's Trust,Area Integrated Working,
BeCCA Playgroup,UL01390925,07/07/2010,691.00,Supplies and Services,Grants and Subscriptions,Chilren & Young People's Trust,Area Integrated Working,
Beech Lodge,CF01396095,14/07/2010,-84.10,Customer and Client Receipts,Fees and Charges,Section 75 Adult Social Care,Contrib to S31 Partnership,
Beech Lodge,CF01396095,14/07/2010,"1,594.93",Third Party Payments,Other Establishments,Section 75 Adult Social Care,Contrib to S31 Partnership,
Beech Lodge,CF01396096,14/07/2010,-84.10,Customer and Client Receipts,Fees and Charges,Section 75 Adult Social Care,Contrib to S31 Partnership,
Beech Lodge,CF01396096,14/07/2010,"1,594.93",Third Party Payments,Other Establishments,Section 75 Adult Social Care,Contrib to S31 Partnership,
Beech Lodge,CF01396097,14/07/2010,-84.10,Customer and Client Receipts,Fees and Charges,Section 75 Adult Social Care,Contrib to S31 Partnership,
Beech Lodge,CF01396097,14/07/2010,"1,594.93",Third Party Payments,Other Establishments,Section 75 Adult Social Care,Contrib to S31 Partnership,
Beech Lodge,CF01396498,14/07/2010,-84.10,Customer and Client Receipts,Fees and Charges,Section 75 Adult Social Care,Contrib to S31 Partnership,
Beech Lodge,CF01396498,14/07/2010,"1,594.93",Third Party Payments,Other Establishments,Section 75 Adult Social Care,Contrib to S31 Partnership,
BemroseBooth Ltd,03832291,09/07/2010,"2,495.00",Supplies and Services,Print Stationery & General Office Expenses,Environment,Sustainable Transport&Planning,
BemroseBooth Ltd,03832301,16/07/2010,750.00,Supplies and Services,Print Stationery & General Office Expenses,Environment,Sustainable Transport&Planning,
BemroseBooth Ltd,03869565,23/07/2010,"1,125.00",Supplies and Services,Print Stationery & General Office Expenses,Environment,Sustainable Transport&Planning,
Payment to Individual,0038269,30/07/2010,825.00,Premises Related,Rents Payable,"Housing, Culture & Capital",Housing Strategy,
Payment to Individual,03881983,15/07/2010,"10,050.00",Indirect Employees,Miscellaneous Employee Costs,Strategy & Governance,Human Resources,
BHAFC Albion in the Community,03839786,07/07/2010,"2,382.12",Supplies and Services,Miscellaneous Expenses,"Housing, Culture & Capital",Culture & Economy,
BHAFC Albion in the Community,03839812,07/07/2010,"2,632.12",Supplies and Services,Miscellaneous Expenses,"Housing, Culture & Capital",Culture & Economy,
BHAFC Albion in the Community,03846740,09/07/2010,"3,750.00",Supplies and Services,Grants and Subscriptions,Strategy & Governance,Communities & Equality,
BHAFC Albion in the Community,03909807,30/07/2010,"3,000.00",Supplies and Services,Contributions to Provisions,Chilren & Young People's Trust,Area Integrated Working,
BHASVIC,03893418,28/07/2010,568.75,Premises Related,Rents Payable,Chilren & Young People's Trust,Learning Schools & Skills,
B & H Blatchington Mill School Curr Acc,03893421,28/07/2010,"1,902.00",Premises Related,Rents Payable,Chilren & Young People's Trust,Learning Schools & Skills,
B & H Business Community Partnership,03848777,09/07/2010,"3,750.00",Supplies and Services,Grants and Subscriptions,Strategy & Governance,Communities & Equality,
B & H Business Community Partnership,03871029,16/07/2010,"8,820.00",Third Party Payments,Other Establishments,Chilren & Young People's Trust,Learning Schools & Skills,
Bike for Life,03859669,14/07/2010,"5,000.00",Supplies and Services,Grants and Subscriptions,Strategy & Governance,Communities & Equality,
Bike for Life,03878598,28/07/2010,"1,060.00",Supplies and Services,Services,Environment,Sustainable Transport&Planning,
Birchgrove Healthcare (Sussex) Ltd,CF01389634,07/07/2010,-110.30,Customer and Client Receipts,Fees and Charges,Section 75 Sussex Partnership,Contrib to S31 Partnership,
Birchgrove Healthcare (Sussex) Ltd,CF01389634,07/07/2010,868.06,Third Party Payments,Other Establishments,Section 75 Sussex Partnership,Contrib to S31 Partnership,
Birchgrove Healthcare (Sussex) Ltd,CF01411559,28/07/2010,591.20,Third Party Payments,Other Establishments,Section 75 Sussex Partnership,Contrib to S31 Partnership,
Birchgrove Healthcare (Sussex) Ltd,CF01411560,28/07/2010,591.20,Third Party Payments,Other Establishments,Section 75 Sussex Partnership,Contrib to S31 Partnership,
Birchgrove Healthcare (Sussex) Ltd,CF01411561,28/07/2010,591.20,Third Party Payments,Other Establishments,Section 75 Sussex Partnership,Contrib to S31 Partnership,
Birchgrove Healthcare (Sussex) Ltd,CF01411562,28/07/2010,591.20,Third Party Payments,Other Establishments,Section 75 Sussex Partnership,Contrib to S31 Partnership,
Birchgrove Healthcare (Sussex) Ltd,CF01411563,28/07/2010,734.40,Third Party Payments,Other Establishments,Section 75 Sussex Partnership,Contrib to S31 Partnership,
Birchgrove Healthcare (Sussex) Ltd,CF01411564,28/07/2010,734.40,Third Party Payments,Other Establishments,Section 75 Sussex Partnership,Contrib to S31 Partnership,
Birchgrove Healthcare (Sussex) Ltd,CF01411565,28/07/2010,734.40,Third Party Payments,Other Establishments,Section 75 Sussex Partnership,Contrib to S31 Partnership,
Birchgrove Healthcare (Sussex) Ltd,CF01411566,28/07/2010,734.40,Third Party Payments,Other Establishments,Section 75 Sussex Partnership,Contrib to S31 Partnership,
Birchgrove Healthcare (Sussex) Ltd,CF01411571,28/07/2010,516.30,Third Party Payments,Other Establishments,Adult Social Care,Adult Social Care,
Birchgrove Healthcare (Sussex) Ltd,CF01411572,28/07/2010,516.30,Third Party Payments,Other Establishments,Adult Social Care,Adult Social Care,
Birchgrove Healthcare (Sussex) Ltd,CF01411573,28/07/2010,516.30,Third Party Payments,Other Establishments,Adult Social Care,Adult Social Care,
Birchgrove Healthcare (Sussex) Ltd,CF01411574,28/07/2010,516.30,Third Party Payments,Other Establishments,Adult Social Care,Adult Social Care,
Birchgrove Healthcare (Sussex) Ltd,CF01411579,28/07/2010,594.30,Third Party Payments,Other Establishments,Section 75 Sussex Partnership,Contrib to S31 Partnership,
Birchgrove Healthcare (Sussex) Ltd,CF01411580,28/07/2010,594.30,Third Party Payments,Other Establishments,Section 75 Sussex Partnership,Contrib to S31 Partnership,
Birchgrove Healthcare (Sussex) Ltd,CF01411581,28/07/2010,594.30,Third Party Payments,Other Establishments,Section 75 Sussex Partnership,Contrib to S31 Partnership,
Birchgrove Healthcare (Sussex) Ltd,CF01411582,28/07/2010,594.30,Third Party Payments,Other Establishments,Section 75 Sussex Partnership,Contrib to S31 Partnership,
Birchgrove Healthcare (Sussex) Ltd,CF01411587,28/07/2010,720.40,Third Party Payments,Other Establishments,Adult Social Care,Adult Social Care,
Birchgrove Healthcare (Sussex) Ltd,CF01411588,28/07/2010,720.40,Third Party Payments,Other Establishments,Adult Social Care,Adult Social Care,
Birchgrove Healthcare (Sussex) Ltd,CF01411589,28/07/2010,720.40,Third Party Payments,Other Establishments,Adult Social Care,Adult Social Care,
Birchgrove Healthcare (Sussex) Ltd,CF01411590,28/07/2010,720.40,Third Party Payments,Other Establishments,Adult Social Care,Adult Social Care,
Birchgrove Healthcare (Sussex) Ltd,CF01411591,28/07/2010,-110.30,Customer and Client Receipts,Fees and Charges,Section 75 Sussex Partnership,Contrib to S31 Partnership,
Birchgrove Healthcare (Sussex) Ltd,CF01411591,28/07/2010,624.30,Third Party Payments,Other Establishments,Section 75 Sussex Partnership,Contrib to S31 Partnership,
Birchgrove Healthcare (Sussex) Ltd,CF01411592,28/07/2010,-110.30,Customer and Client Receipts,Fees and Charges,Section 75 Sussex Partnership,Contrib to S31 Partnership,
Birchgrove Healthcare (Sussex) Ltd,CF01411592,28/07/2010,624.30,Third Party Payments,Other Establishments,Section 75 Sussex Partnership,Contrib to S31 Partnership,
Birchgrove Healthcare (Sussex) Ltd,CF01411593,28/07/2010,-110.30,Customer and Client Receipts,Fees and Charges,Section 75 Sussex Partnership,Contrib to S31 Partnership,
Birchgrove Healthcare (Sussex) Ltd,CF01411593,28/07/2010,624.30,Third Party Payments,Other Establishments,Section 75 Sussex Partnership,Contrib to S31 Partnership,
Birchgrove Healthcare (Sussex) Ltd,CF01411594,28/07/2010,-110.30,Customer and Client Receipts,Fees and Charges,Section 75 Sussex Partnership,Contrib to S31 Partnership,
Birchgrove Healthcare (Sussex) Ltd,CF01411594,28/07/2010,624.30,Third Party Payments,Other Establishments,Section 75 Sussex Partnership,Contrib to S31 Partnership,
Birchgrove Healthcare (Sussex) Ltd,CF01411595,28/07/2010,549.40,Third Party Payments,Other Establishments,Section 75 Sussex Partnership,Contrib to S31 Partnership,
Birchgrove Healthcare (Sussex) Ltd,CF01411596,28/07/2010,549.40,Third Party Payments,Other Establishments,Section 75 Sussex Partnership,Contrib to S31 Partnership,
Birchgrove Healthcare (Sussex) Ltd,CF01411597,28/07/2010,549.40,Third Party Payments,Other Establishments,Section 75 Sussex Partnership,Contrib to S31 Partnership,
Birchgrove Healthcare (Sussex) Ltd,CF01411598,28/07/2010,549.40,Third Party Payments,Other Establishments,Section 75 Sussex Partnership,Contrib to S31 Partnership,
Birchgrove Healthcare (Sussex) Ltd,CF01411607,28/07/2010,552.40,Third Party Payments,Other Establishments,Section 75 Sussex Partnership,Contrib to S31 Partnership,
Birchgrove Healthcare (Sussex) Ltd,CF01411608,28/07/2010,552.40,Third Party Payments,Other Establishments,Section 75 Sussex Partnership,Contrib to S31 Partnership,
Birchgrove Healthcare (Sussex) Ltd,CF01411609,28/07/2010,552.40,Third Party Payments,Other Establishments,Section 75 Sussex Partnership,Contrib to S31 Partnership,
Birchgrove Healthcare (Sussex) Ltd,CF01411610,28/07/2010,552.40,Third Party Payments,Other Establishments,Section 75 Sussex Partnership,Contrib to S31 Partnership,
Birchgrove Healthcare (Sussex) Ltd,CF01411611,28/07/2010,559.30,Third Party Payments,Other Establishments,Section 75 Sussex Partnership,Contrib to S31 Partnership,
Birchgrove Healthcare (Sussex) Ltd,CF01411612,28/07/2010,559.30,Third Party Payments,Other Establishments,Section 75 Sussex Partnership,Contrib to S31 Partnership,
Birchgrove Healthcare (Sussex) Ltd,CF01411613,28/07/2010,559.30,Third Party Payments,Other Establishments,Section 75 Sussex Partnership,Contrib to S31 Partnership,
Birchgrove Healthcare (Sussex) Ltd,CF01411614,28/07/2010,559.30,Third Party Payments,Other Establishments,Section 75 Sussex Partnership,Contrib to S31 Partnership,
Birchgrove Healthcare (Sussex) Ltd,CF01411627,28/07/2010,897.00,Third Party Payments,Other Establishments,Section 75 Adult Social Care,Contrib to S31 Partnership,
Birchgrove Healthcare (Sussex) Ltd,CF01411628,28/07/2010,897.00,Third Party Payments,Other Establishments,Section 75 Adult Social Care,Contrib to S31 Partnership,
Birchgrove Healthcare (Sussex) Ltd,CF01411629,28/07/2010,897.00,Third Party Payments,Other Establishments,Section 75 Adult Social Care,Contrib to S31 Partnership,
Birchgrove Healthcare (Sussex) Ltd,CF01411630,28/07/2010,897.00,Third Party Payments,Other Establishments,Section 75 Adult Social Care,Contrib to S31 Partnership,
Birchgrove Healthcare (Sussex) Ltd,CF01411631,28/07/2010,"1,045.00",Third Party Payments,Other Establishments,Section 75 Adult Social Care,Contrib to S31 Partnership,
Birchgrove Healthcare (Sussex) Ltd,CF01411632,28/07/2010,"1,045.00",Third Party Payments,Other Establishments,Section 75 Adult Social Care,Contrib to S31 Partnership,
Birchgrove Healthcare (Sussex) Ltd,CF01411633,28/07/2010,"1,045.00",Third Party Payments,Other Establishments,Section 75 Adult Social Care,Contrib to S31 Partnership,
Birchgrove Healthcare (Sussex) Ltd,CF01411634,28/07/2010,"1,045.00",Third Party Payments,Other Establishments,Section 75 Adult Social Care,Contrib to S31 Partnership,
Birchgrove Healthcare (Sussex) Ltd,CF01411643,28/07/2010,995.00,Third Party Payments,Other Establishments,Section 75 Adult Social Care,Contrib to S31 Partnership,
Birchgrove Healthcare (Sussex) Ltd,CF01411644,28/07/2010,995.00,Third Party Payments,Other Establishments,Section 75 Adult Social Care,Contrib to S31 Partnership,
Birchgrove Healthcare (Sussex) Ltd,CF01411645,28/07/2010,995.00,Third Party Payments,Other Establishments,Section 75 Adult Social Care,Contrib to S31 Partnership,
Birchgrove Healthcare (Sussex) Ltd,CF01411646,28/07/2010,995.00,Third Party Payments,Other Establishments,Section 75 Adult Social Care,Contrib to S31 Partnership,
Birchgrove Healthcare (Sussex) Ltd,CF01411668,28/07/2010,559.30,Third Party Payments,Other Establishments,Section 75 Sussex Partnership,Contrib to S31 Partnership,
Birchgrove Healthcare (Sussex) Ltd,CF01411669,28/07/2010,559.30,Third Party Payments,Other Establishments,Section 75 Sussex Partnership,Contrib to S31 Partnership,
Birchgrove Healthcare (Sussex) Ltd,CF01411670,28/07/2010,559.30,Third Party Payments,Other Establishments,Section 75 Sussex Partnership,Contrib to S31 Partnership,
Birchgrove Healthcare (Sussex) Ltd,CF01411671,28/07/2010,559.30,Third Party Payments,Other Establishments,Section 75 Sussex Partnership,Contrib to S31 Partnership,
Birchgrove Healthcare (Sussex) Ltd,CF01411672,28/07/2010,559.30,Third Party Payments,Other Establishments,Section 75 Sussex Partnership,Contrib to S31 Partnership,
Birchgrove Healthcare (Sussex) Ltd,CF01411673,28/07/2010,559.30,Third Party Payments,Other Establishments,Section 75 Sussex Partnership,Contrib to S31 Partnership,
Birchgrove Healthcare (Sussex) Ltd,CF01411674,28/07/2010,559.30,Third Party Payments,Other Establishments,Section 75 Sussex Partnership,Contrib to S31 Partnership,
Birchgrove Healthcare (Sussex) Ltd,CF01411675,28/07/2010,559.30,Third Party Payments,Other Establishments,Section 75 Sussex Partnership,Contrib to S31 Partnership,
Birchgrove Healthcare (Sussex) Ltd,CF01411676,28/07/2010,639.20,Third Party Payments,Other Establishments,Adult Social Care,Adult Social Care,
Birchgrove Healthcare (Sussex) Ltd,CF01411677,28/07/2010,-89.50,Customer and Client Receipts,Fees and Charges,Adult Social Care,Adult Social Care,
Birchgrove Healthcare (Sussex) Ltd,CF01411677,28/07/2010,597.06,Third Party Payments,Other Establishments,Adult Social Care,Adult Social Care,
Birchgrove Healthcare (Sussex) Ltd,CF01411678,28/07/2010,-89.50,Customer and Client Receipts,Fees and Charges,Adult Social Care,Adult Social Care,
Birchgrove Healthcare (Sussex) Ltd,CF01411678,28/07/2010,597.06,Third Party Payments,Other Establishments,Adult Social Care,Adult Social Care,
Birchgrove Healthcare (Sussex) Ltd,CF01411679,28/07/2010,-89.50,Customer and Client Receipts,Fees and Charges,Adult Social Care,Adult Social Care,
Birchgrove Healthcare (Sussex) Ltd,CF01411679,28/07/2010,597.06,Third Party Payments,Other Establishments,Adult Social Care,Adult Social Care,
Birchgrove Healthcare (Sussex) Ltd,CF01411680,28/07/2010,-89.50,Customer and Client Receipts,Fees and Charges,Adult Social Care,Adult Social Care,
Birchgrove Healthcare (Sussex) Ltd,CF01411680,28/07/2010,597.06,Third Party Payments,Other Establishments,Adult Social Care,Adult Social Care,
Birmingham City University ,03815263,07/07/2010,"3,225.00",Transfer Payments,Other Transfer Payments,Chilren & Young People's Trust,Area Integrated Working,
Bishop`s Move,03883224,21/07/2010,911.60,Supplies and Services,Miscellaneous Expenses,"Housing, Culture & Capital",Housing Strategy,
Bishop`s Move,03883240,21/07/2010,"2,622.00",Supplies and Services,Miscellaneous Expenses,"Housing, Culture & Capital",Housing Strategy,
Bizspace Ltd,03837283,07/07/2010,"4,566.71",Premises Related,Rents Payable,"Housing, Culture & Capital",Culture & Economy,
Bizspace Ltd,03837296,07/07/2010,"12,739.32",Premises Related,Rents Payable,"Housing, Culture & Capital",Culture & Economy,
B & J G Richardson Business Account,CF01400827,16/07/2010,"-1,054.82",Customer and Client Receipts,Fees and Charges,Adult Social Care,Adult Social Care,
B & J G Richardson Business Account,CF01400827,16/07/2010,"1,827.53",Third Party Payments,Other Establishments,Adult Social Care,Adult Social Care,
B & J G Richardson Business Account,CF01400828,16/07/2010,"-1,054.82",Customer and Client Receipts,Fees and Charges,Adult Social Care,Adult Social Care,
B & J G Richardson Business Account,CF01400828,16/07/2010,"1,827.53",Third Party Payments,Other Establishments,Adult Social Care,Adult Social Care,
B & J G Richardson Business Account,CF01400829,16/07/2010,"-1,054.82",Customer and Client Receipts,Fees and Charges,Adult Social Care,Adult Social Care,
B & J G Richardson Business Account,CF01400829,16/07/2010,"1,827.53",Third Party Payments,Other Establishments,Adult Social Care,Adult Social Care,
B & J G Richardson Business Account,CF01400830,16/07/2010,"-1,054.82",Customer and Client Receipts,Fees and Charges,Adult Social Care,Adult Social Care,
B & J G Richardson Business Account,CF01400830,16/07/2010,"1,827.53",Third Party Payments,Other Establishments,Adult Social Care,Adult Social Care,
B & J G Richardson Business Account,CF01400831,16/07/2010,"-1,054.82",Customer and Client Receipts,Fees and Charges,Adult Social Care,Adult Social Care,
B & J G Richardson Business Account,CF01400831,16/07/2010,"1,827.53",Third Party Payments,Other Establishments,Adult Social Care,Adult Social Care,
Blendworth Trailer Centre,03885439,21/07/2010,"2,485.00",Plant Machinery and Equipment,,Environment,Sustainable Transport&Planning,
Blockbusters Contracts Ltd,03860360,14/07/2010,"7,325.00",Premises Related,Repair Maintenance and Alterations,Finance & Resources,Property & Design,
Blueberry Nursery & Early Learning Organisation Ld,UL01391000,07/07/2010,"7,902.00",Supplies and Services,Grants and Subscriptions,Chilren & Young People's Trust,Area Integrated Working,
Blue Sky Fostering Limited,CF01403441,21/07/2010,"1,043.10",Third Party Payments,Other Establishments,Chilren & Young People's Trust,Commissioning & Governance,
Blue Sky Fostering Limited,CF01403442,21/07/2010,811.30,Third Party Payments,Other Establishments,Chilren & Young People's Trust,Commissioning & Governance,
Blue Sky Fostering Limited,CF01403443,21/07/2010,811.30,Third Party Payments,Other Establishments,Chilren & Young People's Trust,Commissioning & Governance,
Blue Sky Fostering Limited,CF01403444,21/07/2010,811.30,Third Party Payments,Other Establishments,Chilren & Young People's Trust,Commissioning & Governance,
Blue Sky Fostering Limited,CF01403445,21/07/2010,"1,043.10",Third Party Payments,Other Establishments,Chilren & Young People's Trust,Commissioning & Governance,
Blue Sky Fostering Limited,CF01403446,21/07/2010,811.30,Third Party Payments,Other Establishments,Chilren & Young People's Trust,Commissioning & Governance,
Blue Sky Fostering Limited,CF01403447,21/07/2010,811.30,Third Party Payments,Other Establishments,Chilren & Young People's Trust,Commissioning & Governance,
Blue Sky Fostering Limited,CF01403448,21/07/2010,811.30,Third Party Payments,Other Establishments,Chilren & Young People's Trust,Commissioning & Governance,
Bonners Music Superstore-Bonners Ltd,03847532,14/07/2010,765.95,Supplies and Services,Equipment Furniture and Materials,Chilren & Young People's Trust,Learning Schools & Skills,
Bookpoint Limited,03849682,14/07/2010,603.20,Indirect Employees,Training,Chilren & Young People's Trust,Learning Schools & Skills,
Boomerang Kids,UL01390926,07/07/2010,"5,736.00",Supplies and Services,Grants and Subscriptions,Chilren & Young People's Trust,Area Integrated Working,
Brackley Educational Consultancy,03880421,21/07/2010,"1,050.00",Supplies and Services,Services,Chilren & Young People's Trust,Learning Schools & Skills,
Brackley Educational Consultancy,03880434,21/07/2010,"2,475.00",Supplies and Services,Services,Chilren & Young People's Trust,Learning Schools & Skills,
Brackley Educational Consultancy,03904284,28/07/2010,700.00,Supplies and Services,Services,Chilren & Young People's Trust,Learning Schools & Skills,
Bracknell Forest Borough Council,03857535,14/07/2010,"11,424.00",Supplies and Services,Grants and Subscriptions,Chilren & Young People's Trust,Learning Schools & Skills,
Bradfield House,CF01410445,28/07/2010,-71.15,Customer and Client Receipts,Fees and Charges,Section 75 Adult Social Care,Contrib to S31 Partnership,
Bradfield House,CF01410445,28/07/2010,"1,515.00",Third Party Payments,Other Establishments,Section 75 Adult Social Care,Contrib to S31 Partnership,
Bradfield House,CF01410446,28/07/2010,-71.15,Customer and Client Receipts,Fees and Charges,Section 75 Adult Social Care,Contrib to S31 Partnership,
Bradfield House,CF01410446,28/07/2010,"1,515.00",Third Party Payments,Other Establishments,Section 75 Adult Social Care,Contrib to S31 Partnership,
Bradfield House,CF01410447,28/07/2010,-71.15,Customer and Client Receipts,Fees and Charges,Section 75 Adult Social Care,Contrib to S31 Partnership,
Bradfield House,CF01410447,28/07/2010,"1,515.00",Third Party Payments,Other Establishments,Section 75 Adult Social Care,Contrib to S31 Partnership,
Bradfield House,CF01410448,28/07/2010,-71.15,Customer and Client Receipts,Fees and Charges,Section 75 Adult Social Care,Contrib to S31 Partnership,
Bradfield House,CF01410448,28/07/2010,"1,515.00",Third Party Payments,Other Establishments,Section 75 Adult Social Care,Contrib to S31 Partnership,
Bramber Nursing Home Ltd,CF01411689,28/07/2010,676.40,Third Party Payments,Other Establishments,Section 75 Sussex Partnership,Contrib to S31 Partnership,
Bramber Nursing Home Ltd,CF01411690,28/07/2010,676.40,Third Party Payments,Other Establishments,Section 75 Sussex Partnership,Contrib to S31 Partnership,
Bramber Nursing Home Ltd,CF01411691,28/07/2010,676.40,Third Party Payments,Other Establishments,Section 75 Sussex Partnership,Contrib to S31 Partnership,
Bramber Nursing Home Ltd,CF01411692,28/07/2010,676.40,Third Party Payments,Other Establishments,Section 75 Sussex Partnership,Contrib to S31 Partnership,
Bramble Care Homes Ltd,CF01411697,28/07/2010,-118.70,Customer and Client Receipts,Fees and Charges,Adult Social Care,Adult Social Care,
Bramble Care Homes Ltd,CF01411697,28/07/2010,635.00,Third Party Payments,Other Establishments,Adult Social Care,Adult Social Care,
Bramble Care Homes Ltd,CF01411698,28/07/2010,-118.70,Customer and Client Receipts,Fees and Charges,Adult Social Care,Adult Social Care,
Bramble Care Homes Ltd,CF01411698,28/07/2010,635.00,Third Party Payments,Other Establishments,Adult Social Care,Adult Social Care,
Bramble Care Homes Ltd,CF01411699,28/07/2010,-118.70,Customer and Client Receipts,Fees and Charges,Adult Social Care,Adult Social Care,
Bramble Care Homes Ltd,CF01411699,28/07/2010,635.00,Third Party Payments,Other Establishments,Adult Social Care,Adult Social Care,
Bramble Care Homes Ltd,CF01411700,28/07/2010,-118.70,Customer and Client Receipts,Fees and Charges,Adult Social Care,Adult Social Care,
Bramble Care Homes Ltd,CF01411700,28/07/2010,635.00,Third Party Payments,Other Establishments,Adult Social Care,Adult Social Care,
Brambles Respite Care Hotel,CF01410527,28/07/2010,604.16,Third Party Payments,Other Establishments,Adult Social Care,Adult Social Care,
Breyer Group Plc,03882869,21/07/2010,"195,852.88",New Construction and Conversion,,"Housing, Culture & Capital",Housing Management,
Bricks 2 Mortar Construction Company Ltd,03849417,09/07/2010,"9,104.00",New Construction and Conversion,,Chilren & Young People's Trust,Director Childrens Services,
Bridge Community Education Centre,03858013,14/07/2010,544.04,Supplies and Services,Miscellaneous Expenses,"Housing, Culture & Capital",Culture & Economy,
Bridge Community Education Centre,03882898,21/07/2010,"15,000.00",Supplies and Services,Miscellaneous Expenses,Adult Social Care,Housing Strategy,
Bridge Community Education Centre,03896512,28/07/2010,"12,500.00",Third Party Payments,Other Agencies,Chilren & Young People's Trust,Learning Schools & Skills,
Bridge Community Education Centre,03906910,30/07/2010,"2,672.00",Supplies and Services,Miscellaneous Expenses,Chilren & Young People's Trust,Learning Schools & Skills,
Bridge Community Education Centre,03908950,30/07/2010,"3,712.50",Third Party Payments,Other Establishments,Chilren & Young People's Trust,Learning Schools & Skills,
Brighter Futures Foster Care Ltd,CF01403449,21/07/2010,977.14,Third Party Payments,Other Establishments,Chilren & Young People's Trust,Commissioning & Governance,
Brighter Futures Foster Care Ltd,CF01403450,21/07/2010,760.00,Third Party Payments,Other Establishments,Chilren & Young People's Trust,Commissioning & Governance,
Brighter Futures Foster Care Ltd,CF01403451,21/07/2010,760.00,Third Party Payments,Other Establishments,Chilren & Young People's Trust,Commissioning & Governance,
Brighter Futures Foster Care Ltd,CF01403452,21/07/2010,760.00,Third Party Payments,Other Establishments,Chilren & Young People's Trust,Commissioning & Governance,
Brighter Futures Foster Care Ltd,CF01403453,21/07/2010,977.14,Third Party Payments,Other Establishments,Chilren & Young People's Trust,Commissioning & Governance,
Brighter Futures Foster Care Ltd,CF01403454,21/07/2010,760.00,Third Party Payments,Other Establishments,Chilren & Young People's Trust,Commissioning & Governance,
Brighter Futures Foster Care Ltd,CF01403455,21/07/2010,760.00,Third Party Payments,Other Establishments,Chilren & Young People's Trust,Commissioning & Governance,
Brighter Futures Foster Care Ltd,CF01403456,21/07/2010,760.00,Third Party Payments,Other Establishments,Chilren & Young People's Trust,Commissioning & Governance,
Brighter Futures Foster Care Ltd,CF01403459,21/07/2010,798.02,Third Party Payments,Other Establishments,Chilren & Young People's Trust,Commissioning & Governance,
Brighter Futures Foster Care Ltd,CF01403460,21/07/2010,620.66,Third Party Payments,Other Establishments,Chilren & Young People's Trust,Commissioning & Governance,
Brighter Futures Foster Care Ltd,CF01403461,21/07/2010,620.66,Third Party Payments,Other Establishments,Chilren & Young People's Trust,Commissioning & Governance,
Brighter Futures Foster Care Ltd,CF01403462,21/07/2010,620.66,Third Party Payments,Other Establishments,Chilren & Young People's Trust,Commissioning & Governance,
Brighter Futures Foster Care Ltd,CF01403463,21/07/2010,798.02,Third Party Payments,Other Establishments,Chilren & Young People's Trust,Commissioning & Governance,
Brighter Futures Foster Care Ltd,CF01403464,21/07/2010,620.66,Third Party Payments,Other Establishments,Chilren & Young People's Trust,Commissioning & Governance,
Brighter Futures Foster Care Ltd,CF01403465,21/07/2010,620.66,Third Party Payments,Other Establishments,Chilren & Young People's Trust,Commissioning & Governance,
Brighter Futures Foster Care Ltd,CF01403466,21/07/2010,620.66,Third Party Payments,Other Establishments,Chilren & Young People's Trust,Commissioning & Governance,
Brighter Futures Foster Care Ltd,CF01403467,21/07/2010,798.02,Third Party Payments,Other Establishments,Chilren & Young People's Trust,Commissioning & Governance,
Brighter Futures Foster Care Ltd,CF01403468,21/07/2010,620.66,Third Party Payments,Other Establishments,Chilren & Young People's Trust,Commissioning & Governance,
Brighter Futures Foster Care Ltd,CF01403469,21/07/2010,620.66,Third Party Payments,Other Establishments,Chilren & Young People's Trust,Commissioning & Governance,
Brighter Futures Foster Care Ltd,CF01403470,21/07/2010,620.66,Third Party Payments,Other Establishments,Chilren & Young People's Trust,Commissioning & Governance,
Brighter Futures Foster Care Ltd,CF01403471,21/07/2010,798.02,Third Party Payments,Other Establishments,Chilren & Young People's Trust,Commissioning & Governance,
Brighter Futures Foster Care Ltd,CF01403472,21/07/2010,620.66,Third Party Payments,Other Establishments,Chilren & Young People's Trust,Commissioning & Governance,
Brighter Futures Foster Care Ltd,CF01403473,21/07/2010,620.66,Third Party Payments,Other Establishments,Chilren & Young People's Trust,Commissioning & Governance,
Brighter Futures Foster Care Ltd,CF01403474,21/07/2010,620.66,Third Party Payments,Other Establishments,Chilren & Young People's Trust,Commissioning & Governance,
Brighter Futures Foster Care Ltd,CF01403475,21/07/2010,798.02,Third Party Payments,Other Establishments,Chilren & Young People's Trust,Commissioning & Governance,
Brighter Futures Foster Care Ltd,CF01403476,21/07/2010,620.66,Third Party Payments,Other Establishments,Chilren & Young People's Trust,Commissioning & Governance,
Brighter Futures Foster Care Ltd,CF01403477,21/07/2010,620.66,Third Party Payments,Other Establishments,Chilren & Young People's Trust,Commissioning & Governance,
Brighter Futures Foster Care Ltd,CF01403478,21/07/2010,620.66,Third Party Payments,Other Establishments,Chilren & Young People's Trust,Commissioning & Governance,
Brighter Futures Foster Care Ltd,CF01403479,21/07/2010,798.02,Third Party Payments,Other Establishments,Chilren & Young People's Trust,Commissioning & Governance,
Brighter Futures Foster Care Ltd,CF01403480,21/07/2010,620.66,Third Party Payments,Other Establishments,Chilren & Young People's Trust,Commissioning & Governance,
Brighter Futures Foster Care Ltd,CF01403481,21/07/2010,620.66,Third Party Payments,Other Establishments,Chilren & Young People's Trust,Commissioning & Governance,
Brighter Futures Foster Care Ltd,CF01403482,21/07/2010,620.66,Third Party Payments,Other Establishments,Chilren & Young People's Trust,Commissioning & Governance,
Brighter Futures Foster Care Ltd,CF01414497,28/07/2010,834.29,Third Party Payments,Other Establishments,Chilren & Young People's Trust,Commissioning & Governance,
Brighter Futures Foster Care Ltd,CF01414498,28/07/2010,860.00,Third Party Payments,Other Establishments,Chilren & Young People's Trust,Commissioning & Governance,
Brighter Futures Foster Care Ltd,CF01414499,28/07/2010,860.00,Third Party Payments,Other Establishments,Chilren & Young People's Trust,Commissioning & Governance,
Brighter Futures Foster Care Ltd,CF01414500,28/07/2010,860.00,Third Party Payments,Other Establishments,Chilren & Young People's Trust,Commissioning & Governance,
Brighter Futures Foster Care Ltd,CF01414501,28/07/2010,860.00,Third Party Payments,Other Establishments,Chilren & Young People's Trust,Commissioning & Governance,
Brighthelm Church & Community Centre Trust Ltd,03871605,16/07/2010,"1,120.00",Premises Related,Rents Payable,Environment,Public Safety,
Brighthelm Church & Community Centre Trust Ltd,03871605,16/07/2010,967.00,Supplies and Services,Catering,Environment,Public Safety,
Brighthelm Church & Community Centre Trust Ltd,03871605,16/07/2010,53.00,Supplies and Services,Services,Environment,Public Safety,
Brighthelm Church & Community Centre Trust Ltd,03886331,23/07/2010,940.00,Supplies and Services,Services,Chilren & Young People's Trust,Learning Schools & Skills,
Brighthelm Church & Community Centre Trust Ltd,03905678,30/07/2010,713.00,Premises Related,Rents Payable,Finance & Resources,Customer Services,
Brighthelm Church & Community Centre Trust Ltd,UL01390968,07/07/2010,590.00,Supplies and Services,Grants and Subscriptions,Chilren & Young People's Trust,Area Integrated Working,
Brighton and Hove Crisis Fareshare,03849734,09/07/2010,"3,000.00",Supplies and Services,Grants and Subscriptions,Strategy & Governance,Communities & Equality,
Brighton College,UL01391010,07/07/2010,"5,763.00",Supplies and Services,Grants and Subscriptions,Chilren & Young People's Trust,Area Integrated Working,
Brighton Cougars Basketball Club,03889972,23/07/2010,800.00,Supplies and Services,Equipment Furniture and Materials,Chilren & Young People's Trust,Area Integrated Working,
Brighton Day Nursery,UL01390923,07/07/2010,877.00,Supplies and Services,Grants and Subscriptions,Chilren & Young People's Trust,Area Integrated Working,
Brighton Dome & Festival Ltd,03909687,30/07/2010,569.71,Premises Related,Water Services,"Housing, Culture & Capital",Royal Pavilion & Museums,
Brighton Dome & Festival Ltd,03909690,30/07/2010,"1,219.85",Premises Related,Water Services,"Housing, Culture & Capital",Royal Pavilion & Museums,
Brighton Dome & Festival Ltd,03909713,30/07/2010,"1,767.11",Premises Related,Water Services,"Housing, Culture & Capital",Royal Pavilion & Museums,
Brighton Dome & Festival Ltd,03909739,30/07/2010,"1,773.18",Premises Related,Energy Costs,"Housing, Culture & Capital",Royal Pavilion & Museums,
Brighton Festival Fringe Limited,03846708,09/07/2010,"2,500.00",Supplies and Services,Grants and Subscriptions,Strategy & Governance,Communities & Equality,
Brighton Housing Trust,03845712,09/07/2010,"5,000.00",Supplies and Services,Grants and Subscriptions,Strategy & Governance,Communities & Equality,
Brighton Housing Trust,03845738,09/07/2010,"17,500.00",Supplies and Services,Grants and Subscriptions,Strategy & Governance,Communities & Equality,
Brighton Housing Trust,03845770,09/07/2010,"5,000.00",Supplies and Services,Grants and Subscriptions,Strategy & Governance,Communities & Equality,
Brighton Housing Trust,03897650,28/07/2010,"1,346.00",Third Party Payments,Other Establishments,Chilren & Young People's Trust,Learning Schools & Skills,
Brighton Housing Trust,03908112,30/07/2010,"4,146.50",Third Party Payments,Other Establishments,Section 75 Sussex Partnership,Contrib to S31 Partnership,
Brighton Housing Trust,CS01398002,14/07/2010,"2,631.30",Transfer Payments,Supporting People,"Housing, Culture & Capital",Housing Strategy,
Brighton Housing Trust,CS01398003,14/07/2010,"2,631.30",Transfer Payments,Supporting People,"Housing, Culture & Capital",Housing Strategy,
Brighton Housing Trust,CS01398004,14/07/2010,"2,631.30",Transfer Payments,Supporting People,"Housing, Culture & Capital",Housing Strategy,
Brighton Housing Trust,CS01398005,14/07/2010,"2,631.30",Transfer Payments,Supporting People,"Housing, Culture & Capital",Housing Strategy,
Brighton Housing Trust,CS01398006,14/07/2010,"3,774.26",Transfer Payments,Supporting People,"Housing, Culture & Capital",Housing Strategy,
Brighton Housing Trust,CS01398007,14/07/2010,"3,774.26",Transfer Payments,Supporting People,"Housing, Culture & Capital",Housing Strategy,
Brighton Housing Trust,CS01398008,14/07/2010,"3,774.26",Transfer Payments,Supporting People,"Housing, Culture & Capital",Housing Strategy,
Brighton Housing Trust,CS01398009,14/07/2010,"3,774.26",Transfer Payments,Supporting People,"Housing, Culture & Capital",Housing Strategy,
Brighton Housing Trust,CS01398022,14/07/2010,"2,055.34",Transfer Payments,Supporting People,"Housing, Culture & Capital",Housing Strategy,
Brighton Housing Trust,CS01398023,14/07/2010,"2,055.34",Transfer Payments,Supporting People,"Housing, Culture & Capital",Housing Strategy,
Brighton Housing Trust,CS01398024,14/07/2010,"2,055.34",Transfer Payments,Supporting People,"Housing, Culture & Capital",Housing Strategy,
Brighton Housing Trust,CS01398025,14/07/2010,"2,055.34",Transfer Payments,Supporting People,"Housing, Culture & Capital",Housing Strategy,
Brighton Housing Trust,CS01398026,14/07/2010,"10,015.60",Transfer Payments,Supporting People,"Housing, Culture & Capital",Housing Strategy,
Brighton Housing Trust,CS01398027,14/07/2010,"10,015.60",Transfer Payments,Supporting People,"Housing, Culture & Capital",Housing Strategy,
Brighton Housing Trust,CS01398028,14/07/2010,"10,015.60",Transfer Payments,Supporting People,"Housing, Culture & Capital",Housing Strategy,
Brighton Housing Trust,CS01398029,14/07/2010,"10,015.60",Transfer Payments,Supporting People,"Housing, Culture & Capital",Housing Strategy,
Brighton Housing Trust,CS01398030,14/07/2010,"1,807.40",Transfer Payments,Supporting People,"Housing, Culture & Capital",Housing Strategy,
Brighton Housing Trust,CS01398031,14/07/2010,"1,807.40",Transfer Payments,Supporting People,"Housing, Culture & Capital",Housing Strategy,
Brighton Housing Trust,CS01398032,14/07/2010,"1,807.40",Transfer Payments,Supporting People,"Housing, Culture & Capital",Housing Strategy,
Brighton Housing Trust,CS01398033,14/07/2010,"1,807.40",Transfer Payments,Supporting People,"Housing, Culture & Capital",Housing Strategy,
Brighton Housing Trust,CS01398034,14/07/2010,"1,342.46",Transfer Payments,Supporting People,"Housing, Culture & Capital",Housing Strategy,
Brighton Housing Trust,CS01398035,14/07/2010,"1,342.46",Transfer Payments,Supporting People,"Housing, Culture & Capital",Housing Strategy,
Brighton Housing Trust,CS01398036,14/07/2010,"1,342.46",Transfer Payments,Supporting People,"Housing, Culture & Capital",Housing Strategy,
Brighton Housing Trust,CS01398037,14/07/2010,"1,342.46",Transfer Payments,Supporting People,"Housing, Culture & Capital",Housing Strategy,
Brighton Housing Trust,CS01398038,14/07/2010,"1,984.99",Transfer Payments,Supporting People,"Housing, Culture & Capital",Housing Strategy,
Brighton Housing Trust,CS01398039,14/07/2010,"1,984.99",Transfer Payments,Supporting People,"Housing, Culture & Capital",Housing Strategy,
Brighton Housing Trust,CS01398040,14/07/2010,"1,984.99",Transfer Payments,Supporting People,"Housing, Culture & Capital",Housing Strategy,
Brighton Housing Trust,CS01398041,14/07/2010,"1,984.99",Transfer Payments,Supporting People,"Housing, Culture & Capital",Housing Strategy,
Brighton Housing Trust,CS01398042,14/07/2010,"10,162.88",Transfer Payments,Supporting People,"Housing, Culture & Capital",Housing Strategy,
Brighton Housing Trust,CS01398043,14/07/2010,"10,162.88",Transfer Payments,Supporting People,"Housing, Culture & Capital",Housing Strategy,
Brighton Housing Trust,CS01398044,14/07/2010,"10,162.88",Transfer Payments,Supporting People,"Housing, Culture & Capital",Housing Strategy,
Brighton Housing Trust,CS01398045,14/07/2010,"10,162.88",Transfer Payments,Supporting People,"Housing, Culture & Capital",Housing Strategy,
Brighton Housing Trust,CS01398046,14/07/2010,"8,821.89",Transfer Payments,Supporting People,"Housing, Culture & Capital",Housing Strategy,
Brighton Housing Trust,CS01398047,14/07/2010,"8,821.89",Transfer Payments,Supporting People,"Housing, Culture & Capital",Housing Strategy,
Brighton Housing Trust,CS01398048,14/07/2010,"8,821.89",Transfer Payments,Supporting People,"Housing, Culture & Capital",Housing Strategy,
Brighton Housing Trust,CS01398049,14/07/2010,"8,821.89",Transfer Payments,Supporting People,"Housing, Culture & Capital",Housing Strategy,
Brighton & Hove Bus & Coach Co Ltd,03839346,07/07/2010,770.00,Transport Related,Public Transport,Chilren & Young People's Trust,Area Integrated Working,
Brighton & Hove Bus & Coach Co Ltd,03839359,07/07/2010,703.20,Transport Related,Public Transport,"Housing, Culture & Capital",Housing Strategy,
Brighton & Hove Bus & Coach Co Ltd,03843840,09/07/2010,"1,074.95",Transfer Payments,Other Transfer Payments,Chilren & Young People's Trust,Area Integrated Working,
Brighton & Hove Bus & Coach Co Ltd,03865792,14/07/2010,"44,845.25",Transport Related,Public Transport,Finance & Resources,Corporate Management,
Brighton & Hove Bus & Coach Co Ltd,03869992,16/07/2010,862.00,Transport Related,Contract Hire and Operating Leas,Environment,Waste,
Brighton & Hove Bus & Coach Co Ltd,03873302,16/07/2010,784.00,Transport Related,Contract Hire and Operating Leas,Environment,Waste,
Brighton & Hove Bus & Coach Co Ltd,03876891,21/07/2010,"9,315.46",Third Party Payments,Private Contractors,Finance & Resources,Strategic Finance Procurement,
Brighton & Hove Bus & Coach Co Ltd,03880544,21/07/2010,770.00,Transfer Payments,Other Transfer Payments,Chilren & Young People's Trust,Area Integrated Working,
Brighton & Hove Bus & Coach Co Ltd,03884663,21/07/2010,"6,200.00",Third Party Payments,Private Contractors,Environment,Sustainable Transport&Planning,
Brighton & Hove Bus & Coach Co Ltd,03885219,21/07/2010,"110,310.42",Third Party Payments,Private Contractors,Environment,Sustainable Transport&Planning,
Brighton & Hove Bus & Coach Co Ltd,03886221,21/07/2010,"1,400.00",Third Party Payments,Private Contractors,Environment,Sustainable Transport&Planning,
Brighton & Hove Bus & Coach Co Ltd,03896884,28/07/2010,"1,742.75",Transfer Payments,Other Transfer Payments,Chilren & Young People's Trust,Area Integrated Working,
Brighton & Hove Bus & Coach Co Ltd,03897058,28/07/2010,770.00,Third Party Payments,Other Establishments,Chilren & Young People's Trust,Area Integrated Working,
Brighton & Hove Bus & Coach Co Ltd,03905775,30/07/2010,"647,640.49",Transport Related,Public Transport,Finance & Resources,Corporate Management,
Brighton & Hove Bus & Coach Co Ltd,03910993,30/07/2010,784.00,Transport Related,Contract Hire and Operating Leas,Environment,Waste,
Brighton & Hove Bus & Coach Co Ltd,03911002,30/07/2010,"1,013.88",Transport Related,Contract Hire and Operating Leas,Environment,Waste,
Brighton & Hove Business Show ,03850231,09/07/2010,750.00,Supplies and Services,Miscellaneous Expenses,"Housing, Culture & Capital",Tourism & Venues,
Brighton & Hove Citizens Advice Bureau,03845725,09/07/2010,"25,000.00",Supplies and Services,Grants and Subscriptions,Strategy & Governance,Communities & Equality,
Brighton & Hove Citizens Advice Bureau,03877146,21/07/2010,"5,319.50",Third Party Payments,Other Establishments,Section 75 South Downs Health,Contrib to S31 Partnership,
Brighton & Hove City Council,03874796,21/07/2010,764.69,Premises Related,Rates,Adult Social Care,Housing Management,
Brighton & Hove City Teaching PCT,03849556,09/07/2010,"19,028.85",Direct Employees,Salaries,Adult Social Care,Adult Social Care,
Brighton & Hove City Teaching PCT,03866982,16/07/2010,"4,731.32",Direct Employees,Salaries,Adult Social Care,Adult Social Care,
Brighton & Hove City Teaching PCT,03867004,16/07/2010,"8,516.36",Direct Employees,Salaries,Adult Social Care,Adult Social Care,
Brighton & Hove City Teaching PCT,03867017,16/07/2010,"1,566.63",Direct Employees,Salaries,Adult Social Care,Adult Social Care,
Brighton & Hove City Teaching PCT,03867020,16/07/2010,"3,311.89",Direct Employees,Salaries,Adult Social Care,Adult Social Care,
Brighton & Hove City Teaching PCT,03867033,16/07/2010,"8,434.68",Direct Employees,Salaries,Adult Social Care,Adult Social Care,
Brighton & Hove City Teaching PCT,CF01411130,28/07/2010,"4,310.16",Third Party Payments,Other Establishments,Chilren & Young People's Trust,Commissioning & Governance,
Brighton & Hove City Teaching PCT,CF01411131,28/07/2010,"2,448.22",Third Party Payments,Other Establishments,Chilren & Young People's Trust,Commissioning & Governance,
Brighton & Hove City Teaching PCT,CF01411132,28/07/2010,"2,448.22",Third Party Payments,Other Establishments,Chilren & Young People's Trust,Commissioning & Governance,
Brighton & Hove City Teaching PCT,CF01411133,28/07/2010,"2,448.22",Third Party Payments,Other Establishments,Chilren & Young People's Trust,Commissioning & Governance,
Brighton & Hove City Teaching PCT,CF01411134,28/07/2010,"2,448.22",Third Party Payments,Other Establishments,Chilren & Young People's Trust,Commissioning & Governance,
Brighton & Hove City Teaching PCT,CF01411135,28/07/2010,"2,448.22",Third Party Payments,Other Establishments,Chilren & Young People's Trust,Commissioning & Governance,
Brighton & Hove City Teaching PCT,CF01411136,28/07/2010,"2,448.22",Third Party Payments,Other Establishments,Chilren & Young People's Trust,Commissioning & Governance,
Brighton & Hove City Teaching PCT,CF01411137,28/07/2010,"2,448.22",Third Party Payments,Other Establishments,Chilren & Young People's Trust,Commissioning & Governance,
Brighton & Hove City Teaching PCT,CF01411138,28/07/2010,"2,448.22",Third Party Payments,Other Establishments,Chilren & Young People's Trust,Commissioning & Governance,
Brighton & Hove City Teaching PCT,CF01411139,28/07/2010,"2,448.22",Third Party Payments,Other Establishments,Chilren & Young People's Trust,Commissioning & Governance,
Brighton & Hove City Teaching PCT,CF01411140,28/07/2010,"2,448.22",Third Party Payments,Other Establishments,Chilren & Young People's Trust,Commissioning & Governance,
Brighton & Hove City Teaching PCT,CF01411141,28/07/2010,"2,448.22",Third Party Payments,Other Establishments,Chilren & Young People's Trust,Commissioning & Governance,
Brighton & Hove City Teaching PCT,CF01411142,28/07/2010,"2,448.22",Third Party Payments,Other Establishments,Chilren & Young People's Trust,Commissioning & Governance,
Brighton & Hove City Teaching PCT,03857409,14/07/2010,"2,000.00",Supplies and Services,Miscellaneous Expenses,"Housing, Culture & Capital",Culture & Economy,
Brighton & Hove Crossroads - Caring for Carers,03841156,07/07/2010,"54,822.00",Third Party Payments,Other Establishments,Adult Social Care,Adult Social Care,
Brighton & Hove Federation of Disabled People ,03844933,09/07/2010,"5,000.00",Supplies and Services,Grants and Subscriptions,Strategy & Governance,Communities & Equality,
Brighton & Hove Federation of Disabled People ,03859559,14/07/2010,"40,875.75",Third Party Payments,Other Establishments,Adult Social Care,Adult Social Care,
Brighton & Hove Federation of Disabled People ,03867761,16/07/2010,"5,250.00",Supplies and Services,Grants and Subscriptions,Strategy & Governance,Communities & Equality,
Brighton & Hove Federation of Disabled People ,03869769,16/07/2010,500.00,Third Party Payments,Other Establishments,Adult Social Care,Adult Social Care,
Brighton & Hove Federation of Disabled People ,03885633,21/07/2010,"4,102.00",Third Party Payments,Other Establishments,Adult Social Care,Adult Social Care,
Brighton & Hove Food Partnership,03844412,09/07/2010,"5,000.00",Third Party Payments,Other Establishments,Chilren & Young People's Trust,Learning Schools & Skills,
Brighton & Hove High School- Junior Dept,UL01390927,07/07/2010,"3,288.00",Supplies and Services,Grants and Subscriptions,Chilren & Young People's Trust,Area Integrated Working,
Brighton & Hove Impetus,03844946,09/07/2010,"6,250.00",Supplies and Services,Grants and Subscriptions,Strategy & Governance,Communities & Equality,
Brighton & Hove Impetus,03844988,09/07/2010,"5,750.00",Supplies and Services,Grants and Subscriptions,Strategy & Governance,Communities & Equality,
Brighton & Hove Impetus,03894051,28/07/2010,"2,355.00",Third Party Payments,Other Establishments,Adult Social Care,Adult Social Care,
Brighton & Hove Impetus,03894459,28/07/2010,"4,085.00",Third Party Payments,Other Establishments,Section 75 Adult Social Care,Contrib to S31 Partnership,
Brighton & Hove Inclusion Project,03846685,09/07/2010,"1,250.00",Supplies and Services,Grants and Subscriptions,Strategy & Governance,Communities & Equality,
Brighton & Hove Independent Mediation Service,03845851,09/07/2010,"1,250.00",Supplies and Services,Grants and Subscriptions,Strategy & Governance,Communities & Equality,
Brighton & Hove LGBT Switchboard,03845123,09/07/2010,"7,000.00",Supplies and Services,Grants and Subscriptions,Strategy & Governance,Communities & Equality,
Brighton & Hove Mencap,CS01396867,14/07/2010,"3,613.96",Transfer Payments,Supporting People,"Housing, Culture & Capital",Housing Strategy,
Brighton & Hove Mencap,CS01396868,14/07/2010,"3,613.96",Transfer Payments,Supporting People,"Housing, Culture & Capital",Housing Strategy,
Brighton & Hove Mencap,CS01396869,14/07/2010,"3,613.96",Transfer Payments,Supporting People,"Housing, Culture & Capital",Housing Strategy,
Brighton & Hove Mencap,CS01396870,14/07/2010,"3,613.96",Transfer Payments,Supporting People,"Housing, Culture & Capital",Housing Strategy,
Brighton & Hove Montessori School,UL01390928,07/07/2010,"4,194.00",Supplies and Services,Grants and Subscriptions,Chilren & Young People's Trust,Area Integrated Working,
Brighton & Hove Pre-School Lrng Alliance,03842731,09/07/2010,"2,500.00",Supplies and Services,Grants and Subscriptions,Strategy & Governance,Communities & Equality,
Brighton & Hove Pre-School Lrng Alliance,03842757,09/07/2010,"2,500.00",Supplies and Services,Grants and Subscriptions,Strategy & Governance,Communities & Equality,
Brighton & Hove Radio Cabs Ltd,03837843,07/07/2010,"1,787.20",Transport Related,Other Transport Costs,Chilren & Young People's Trust,Learning Schools & Skills,
Brighton & Hove Radio Cabs Ltd,03841075,07/07/2010,793.17,Transport Related,Public Transport,"Housing, Culture & Capital",Tourism & Venues,
Brighton & Hove Radio Cabs Ltd,03842854,07/07/2010,"2,199.10",Transport Related,Other Transport Costs,Chilren & Young People's Trust,Learning Schools & Skills,
Brighton & Hove Radio Cabs Ltd,03876419,21/07/2010,"3,072.70",Transport Related,Other Transport Costs,Chilren & Young People's Trust,Learning Schools & Skills,
Brighton & Hove Radio Cabs Ltd,03876422,21/07/2010,"12,531.60",Transport Related,Other Transport Costs,Chilren & Young People's Trust,Learning Schools & Skills,
Brighton & Hove Radio Cabs Ltd,03880272,21/07/2010,655.29,Transport Related,Public Transport,"Housing, Culture & Capital",Tourism & Venues,
Brighton & Hove Radio Cabs Ltd,03882377,21/07/2010,809.00,Transport Related,Public Transport,Finance & Resources,Corporate Management,
Brighton & Hove Radio Cabs Ltd,03888928,23/07/2010,"1,830.40",Transport Related,Other Transport Costs,Chilren & Young People's Trust,Learning Schools & Skills,
Brighton & Hove Radio Cabs Ltd,03906512,30/07/2010,"1,753.90",Transport Related,Other Transport Costs,Chilren & Young People's Trust,Learning Schools & Skills,
Brighton & Hove Social Welfare Educational Trust,03845165,09/07/2010,"22,500.00",Supplies and Services,Grants and Subscriptions,Strategy & Governance,Communities & Equality,
Brighton & Hove Social Welfare Educational Trust,03873810,16/07/2010,939.19,Supplies and Services,Grants and Subscriptions,Adult Social Care,Housing Management,
Brighton & Hove Speak Out,03859685,14/07/2010,"5,000.00",Supplies and Services,Grants and Subscriptions,Strategy & Governance,Communities & Equality,
Brighton & Hove Speak Out,03866542,16/07/2010,"3,750.00",Supplies and Services,Grants and Subscriptions,Strategy & Governance,Communities & Equality,
Brighton & Hove Speak Out,03907029,30/07/2010,"10,810.00",Third Party Payments,Other Establishments,Section 75 Adult Social Care,Contrib to S31 Partnership,
Brighton & Hove Streamline Taxis Ltd,03849970,09/07/2010,"5,304.59",Transport Related,Other Transport Costs,Chilren & Young People's Trust,Learning Schools & Skills,
Brighton & Hove Streamline Taxis Ltd,03850008,09/07/2010,"5,320.61",Transport Related,Other Transport Costs,Chilren & Young People's Trust,Learning Schools & Skills,
Brighton & Hove Streamline Taxis Ltd,03854855,14/07/2010,"5,365.74",Transport Related,Other Transport Costs,Chilren & Young People's Trust,Learning Schools & Skills,
Brighton & Hove Streamline Taxis Ltd,03871841,16/07/2010,856.35,Transport Related,Public Transport,Adult Social Care,Housing Management,
Brighton & Hove Streamline Taxis Ltd,03883703,21/07/2010,"5,365.88",Transport Related,Other Transport Costs,Chilren & Young People's Trust,Learning Schools & Skills,
Brighton & Hove Streamline Taxis Ltd,03901805,28/07/2010,"5,274.13",Transport Related,Other Transport Costs,Chilren & Young People's Trust,Learning Schools & Skills,
Brighton & Hove Streamline Taxis Ltd,03902066,28/07/2010,"2,430.90",Transport Related,Public Transport,Finance & Resources,Corporate Management,
Brighton & Hove Streamline Taxis Ltd,03911743,30/07/2010,"5,138.42",Transport Related,Other Transport Costs,Chilren & Young People's Trust,Learning Schools & Skills,
Brighton & Hove Working Together Project,03855841,14/07/2010,"4,000.00",Supplies and Services,Grants and Subscriptions,Strategy & Governance,Communities & Equality,
Brighton & Hove Working Together Project,03866351,16/07/2010,"5,250.00",Supplies and Services,Grants and Subscriptions,Strategy & Governance,Communities & Equality,
Brighton Oasis Project,03845217,09/07/2010,"5,000.00",Supplies and Services,Grants and Subscriptions,Strategy & Governance,Communities & Equality,
Brighton Oasis Project,03900246,28/07/2010,"24,386.00",Third Party Payments,Other Establishments,Chilren & Young People's Trust,Area Integrated Working,
Brighton Oasis Project,03900482,28/07/2010,"5,568.50",Supplies and Services,Grants and Subscriptions,Environment,Public Safety,
Brighton Peace & Environment Centre,03846847,09/07/2010,"1,250.00",Supplies and Services,Grants and Subscriptions,Strategy & Governance,Communities & Equality,
Brighton Photo Biennial,03840319,07/07/2010,"4,000.00",Supplies and Services,Grants and Subscriptions,Strategy & Governance,Communities & Equality,
Brighton Racecourse Co Ltd,03894129,28/07/2010,"2,600.00",Premises Related,Rents Payable,Chilren & Young People's Trust,Learning Schools & Skills,
Brighton Steiner School Ltd,UL01390929,07/07/2010,"3,379.00",Supplies and Services,Grants and Subscriptions,Chilren & Young People's Trust,Area Integrated Working,
Brighton & Sussex University Hospitals NHS Trust,03861026,14/07/2010,"17,000.00",Supplies and Services,Miscellaneous Expenses,"Housing, Culture & Capital",Culture & Economy,
Brighton & Sussex University Hospitals NHS Trust,03883790,30/07/2010,"3,286.17",Third Party Payments,Other Establishments,Adult Social Care,Adult Social Care,
Brighton & Sussex University Hospitals NHS Trust,UL01390967,07/07/2010,"2,893.00",Supplies and Services,Grants and Subscriptions,Chilren & Young People's Trust,Area Integrated Working,
Brighton & Sussex University Hospitals NHS Trust,UL01398189,14/07/2010,"3,580.00",Third Party Payments,Other Establishments,Chilren & Young People's Trust,Learning Schools & Skills,
Brighton Unemployed Ctr Families Project,03845233,09/07/2010,"10,750.00",Supplies and Services,Grants and Subscriptions,Strategy & Governance,Communities & Equality,
Brighton Women`s Centre Ltd/BWC Toybox,03839951,07/07/2010,"1,088.00",Third Party Payments,Other Establishments,Chilren & Young People's Trust,Area Integrated Working,
Brighton Women`s Centre Ltd/BWC Toybox,03846889,09/07/2010,"2,500.00",Supplies and Services,Grants and Subscriptions,Strategy & Governance,Communities & Equality,
Brighton Women`s Centre Ltd/BWC Toybox,03886535,23/07/2010,"3,000.00",Supplies and Services,Grants and Subscriptions,Strategy & Governance,Communities & Equality,
Brighton YMCA,CS01397442,14/07/2010,584.71,Transfer Payments,Supporting People,"Housing, Culture & Capital",Housing Strategy,
Brighton YMCA,CS01397443,14/07/2010,584.71,Transfer Payments,Supporting People,"Housing, Culture & Capital",Housing Strategy,
Brighton YMCA,CS01397444,14/07/2010,584.71,Transfer Payments,Supporting People,"Housing, Culture & Capital",Housing Strategy,
Brighton YMCA,CS01397445,14/07/2010,584.71,Transfer Payments,Supporting People,"Housing, Culture & Capital",Housing Strategy,
Brighton YMCA,CS01397446,14/07/2010,"1,176.28",Transfer Payments,Supporting People,"Housing, Culture & Capital",Housing Strategy,
Brighton YMCA,CS01397447,14/07/2010,"1,176.28",Transfer Payments,Supporting People,"Housing, Culture & Capital",Housing Strategy,
Brighton YMCA,CS01397448,14/07/2010,"1,176.28",Transfer Payments,Supporting People,"Housing, Culture & Capital",Housing Strategy,
Brighton YMCA,CS01397449,14/07/2010,"1,176.28",Transfer Payments,Supporting People,"Housing, Culture & Capital",Housing Strategy,
Brighton YMCA,CS01397450,14/07/2010,"1,932.35",Transfer Payments,Supporting People,"Housing, Culture & Capital",Housing Strategy,
Brighton YMCA,CS01397451,14/07/2010,"1,932.35",Transfer Payments,Supporting People,"Housing, Culture & Capital",Housing Strategy,
Brighton YMCA,CS01397452,14/07/2010,"1,932.35",Transfer Payments,Supporting People,"Housing, Culture & Capital",Housing Strategy,
Brighton YMCA,CS01397453,14/07/2010,"1,932.35",Transfer Payments,Supporting People,"Housing, Culture & Capital",Housing Strategy,
Brighton YMCA,CS01397454,14/07/2010,"1,066.03",Transfer Payments,Supporting People,"Housing, Culture & Capital",Housing Strategy,
Brighton YMCA,CS01397455,14/07/2010,"1,066.03",Transfer Payments,Supporting People,"Housing, Culture & Capital",Housing Strategy,
Brighton YMCA,CS01397456,14/07/2010,"1,066.03",Transfer Payments,Supporting People,"Housing, Culture & Capital",Housing Strategy,
Brighton YMCA,CS01397457,14/07/2010,"1,066.03",Transfer Payments,Supporting People,"Housing, Culture & Capital",Housing Strategy,
Brighton YMCA,CS01397458,14/07/2010,"1,139.53",Transfer Payments,Supporting People,"Housing, Culture & Capital",Housing Strategy,
Brighton YMCA,CS01397459,14/07/2010,"1,139.53",Transfer Payments,Supporting People,"Housing, Culture & Capital",Housing Strategy,
Brighton YMCA,CS01397460,14/07/2010,"1,139.53",Transfer Payments,Supporting People,"Housing, Culture & Capital",Housing Strategy,
Brighton YMCA,CS01397461,14/07/2010,"1,139.53",Transfer Payments,Supporting People,"Housing, Culture & Capital",Housing Strategy,
Brighton YMCA,CS01397462,14/07/2010,"5,462.03",Transfer Payments,Supporting People,"Housing, Culture & Capital",Housing Strategy,
Brighton YMCA,CS01397463,14/07/2010,"5,462.03",Transfer Payments,Supporting People,"Housing, Culture & Capital",Housing Strategy,
Brighton YMCA,CS01397464,14/07/2010,"5,462.03",Transfer Payments,Supporting People,"Housing, Culture & Capital",Housing Strategy,
Brighton YMCA,CS01397465,14/07/2010,"5,462.03",Transfer Payments,Supporting People,"Housing, Culture & Capital",Housing Strategy,
Brighton YMCA,CS01397466,14/07/2010,"1,932.35",Transfer Payments,Supporting People,"Housing, Culture & Capital",Housing Strategy,
Brighton YMCA,CS01397467,14/07/2010,"1,932.35",Transfer Payments,Supporting People,"Housing, Culture & Capital",Housing Strategy,
Brighton YMCA,CS01397468,14/07/2010,"1,932.35",Transfer Payments,Supporting People,"Housing, Culture & Capital",Housing Strategy,
Brighton YMCA,CS01397469,14/07/2010,"1,932.35",Transfer Payments,Supporting People,"Housing, Culture & Capital",Housing Strategy,
Brighton YMCA,CS01397470,14/07/2010,514.57,Transfer Payments,Supporting People,"Housing, Culture & Capital",Housing Strategy,
Brighton YMCA,CS01397471,14/07/2010,514.57,Transfer Payments,Supporting People,"Housing, Culture & Capital",Housing Strategy,
Brighton YMCA,CS01397472,14/07/2010,514.57,Transfer Payments,Supporting People,"Housing, Culture & Capital",Housing Strategy,
Brighton YMCA,CS01397473,14/07/2010,514.57,Transfer Payments,Supporting People,"Housing, Culture & Capital",Housing Strategy,
Brighton Youth Centre,03876914,21/07/2010,"2,750.00",Supplies and Services,Contributions to Provisions,Chilren & Young People's Trust,Area Integrated Working,
Brighton Youth Centre,03899522,28/07/2010,"1,750.00",Third Party Payments,Other Establishments,Chilren & Young People's Trust,Area Integrated Working,
Brighton Youth Centre,03899551,28/07/2010,"3,750.00",Third Party Payments,Other Establishments,Chilren & Young People's Trust,Area Integrated Working,
Brightstone Consulting Ltd,03838198,07/07/2010,"1,165.00",Indirect Employees,Training,Strategy & Governance,Human Resources,
Brightstone Consulting Ltd,03847176,09/07/2010,780.64,Supplies and Services,Services,"Housing, Culture & Capital",Libraries & Information Servic,
Brightstone Consulting Ltd,03873137,16/07/2010,750.00,Indirect Employees,Training,Strategy & Governance,Performance & Analysis,
British Telecommunications Plc,03909975,30/07/2010,"3,107.10",Supplies and Services,Communications and Computing,Adult Social Care,Housing Management,
Payment to Individual,0037742,14/07/2010,560.00,Premises Related,Rents Payable,"Housing, Culture & Capital",Housing Strategy,
BSI Management Systems,03837393,07/07/2010,"1,760.00",Indirect Employees,Training,Strategy & Governance,Human Resources,
BSI Management Systems,03850671,23/07/2010,"1,560.00",Indirect Employees,Miscellaneous Employee Costs,Environment,Waste,
B S Russell Commercials Limited,03812758,07/07/2010,"1,740.66",Transport Related,Direct Transport Costs,Environment,Waste,
B S Russell Commercials Limited,03853474,21/07/2010,514.74,Transport Related,Direct Transport Costs,Environment,Waste,
BTE Plant Sales Limited,03849051,16/07/2010,552.13,Transport Related,Direct Transport Costs,Environment,Quality of Life & Green Spaces,
Bton & Hove City Schools Services Ltd,03859504,14/07/2010,"237,033.70",Supplies and Services,Services,Chilren & Young People's Trust,Director Childrens Services,
Bton & Hove Unwaged Advice & Rights Centre,03876435,21/07/2010,"5,250.00",Indirect Employees,Miscellaneous Employee Costs,Strategy & Governance,Legal and Democratic Services,
BT Openreach,03855090,21/07/2010,649.05,New Construction and Conversion,,Environment,Sustainable Transport&Planning,
Buchanan Computing Ltd,03849802,09/07/2010,800.00,Supplies and Services,Communications and Computing,Environment,Sustainable Transport&Planning,
Bupa Care Homes,CF01404217,21/07/2010,-110.30,Customer and Client Receipts,Fees and Charges,Adult Social Care,Adult Social Care,
Bupa Care Homes,CF01404217,21/07/2010,674.53,Third Party Payments,Other Establishments,Adult Social Care,Adult Social Care,
Bupa Care Homes,CF01404218,21/07/2010,-110.30,Customer and Client Receipts,Fees and Charges,Adult Social Care,Adult Social Care,
Bupa Care Homes,CF01404218,21/07/2010,674.53,Third Party Payments,Other Establishments,Adult Social Care,Adult Social Care,
Bupa Care Homes,CF01404219,21/07/2010,-110.30,Customer and Client Receipts,Fees and Charges,Adult Social Care,Adult Social Care,
Bupa Care Homes,CF01404219,21/07/2010,674.53,Third Party Payments,Other Establishments,Adult Social Care,Adult Social Care,
Bupa Care Homes,CF01404220,21/07/2010,-110.30,Customer and Client Receipts,Fees and Charges,Adult Social Care,Adult Social Care,
Bupa Care Homes,CF01404220,21/07/2010,674.53,Third Party Payments,Other Establishments,Adult Social Care,Adult Social Care,
BUPA Care Services,03901533,28/07/2010,939.31,Supplies and Services,Miscellaneous Expenses,Adult Social Care,Adult Social Care,
BUPA Care Services,CF01412509,28/07/2010,824.40,Third Party Payments,Other Establishments,Adult Social Care,Adult Social Care,
BUPA Care Services,CF01412510,28/07/2010,824.40,Third Party Payments,Other Establishments,Adult Social Care,Adult Social Care,
BUPA Care Services,CF01412511,28/07/2010,824.40,Third Party Payments,Other Establishments,Adult Social Care,Adult Social Care,
BUPA Care Services,CF01412512,28/07/2010,824.40,Third Party Payments,Other Establishments,Adult Social Care,Adult Social Care,
Business Community Partnership,CS01397990,14/07/2010,"1,916.81",Transfer Payments,Supporting People,"Housing, Culture & Capital",Housing Strategy,
Business Community Partnership,CS01397991,14/07/2010,"1,916.81",Transfer Payments,Supporting People,"Housing, Culture & Capital",Housing Strategy,
Business Community Partnership,CS01397992,14/07/2010,"1,916.81",Transfer Payments,Supporting People,"Housing, Culture & Capital",Housing Strategy,
Business Community Partnership,CS01397993,14/07/2010,"1,916.81",Transfer Payments,Supporting People,"Housing, Culture & Capital",Housing Strategy,
Business Partner,03913181,30/07/2010,"5,934.84",Transport Related,Contract Hire and Operating Leas,Finance & Resources,Property & Design,
Butterfly Bay Ltd t/a The Play Station ,UL01391014,07/07/2010,"1,792.00",Supplies and Services,Grants and Subscriptions,Chilren & Young People's Trust,Area Integrated Working,
Butterfly Nursery,UL01390930,07/07/2010,"2,460.00",Supplies and Services,Grants and Subscriptions,Chilren & Young People's Trust,Area Integrated Working,
Byford Roofing Services Ltd,03904747,28/07/2010,"8,785.60",New Construction and Conversion,,Chilren & Young People's Trust,Director Childrens Services,
Cabinet Off Emergency Planning College,03906761,30/07/2010,573.00,Indirect Employees,Training,Environment,Public Safety,
Cabinet Off Emergency Planning College,03906774,30/07/2010,573.00,Indirect Employees,Training,Environment,Public Safety,
C A Goodwin Limited,03839566,07/07/2010,"3,277.23",Premises Related,Repair Maintenance and Alterations,Finance & Resources,Property & Design,
C A Goodwin Limited,03871511,16/07/2010,566.50,Premises Related,Repair Maintenance and Alterations,Finance & Resources,Property & Design,
C A Goodwin Limited,03879209,21/07/2010,"7,132.00",Premises Related,Repair Maintenance and Alterations,Finance & Resources,Property & Design,
C A Goodwin Limited,03879238,21/07/2010,"2,073.39",Premises Related,Repair Maintenance and Alterations,Finance & Resources,Property & Design,
C A Goodwin Limited,03887291,23/07/2010,"4,331.59",Premises Related,Repair Maintenance and Alterations,Finance & Resources,Property & Design,
C A Goodwin Limited,03887327,23/07/2010,665.00,Premises Related,Repair Maintenance and Alterations,Finance & Resources,Property & Design,
C A Goodwin Limited,03895775,28/07/2010,"4,760.26",Premises Related,Repair Maintenance and Alterations,Finance & Resources,Property & Design,
C A Goodwin Limited,03898578,28/07/2010,"6,660.00",Premises Related,Repair Maintenance and Alterations,Finance & Resources,Property & Design,
C A Goodwin Limited,03901957,28/07/2010,"15,093.13",Premises Related,Repair Maintenance and Alterations,Adult Social Care,Housing Management,
C A Goodwin Limited,03901960,28/07/2010,"5,591.34",Premises Related,Repair Maintenance and Alterations,Adult Social Care,Housing Management,
C A Goodwin Limited,03901973,28/07/2010,550.00,Premises Related,Repair Maintenance and Alterations,Adult Social Care,Housing Management,
C A Goodwin Limited,03901999,28/07/2010,550.00,Premises Related,Repair Maintenance and Alterations,Adult Social Care,Housing Management,
C A Goodwin Limited,03902024,28/07/2010,"1,100.00",Premises Related,Repair Maintenance and Alterations,Adult Social Care,Housing Management,
C A Goodwin Limited,03902079,28/07/2010,550.00,Premises Related,Repair Maintenance and Alterations,Adult Social Care,Housing Management,
C A Goodwin Limited,03902095,28/07/2010,"1,100.00",Premises Related,Repair Maintenance and Alterations,Adult Social Care,Housing Management,
C A Goodwin Limited,03902105,28/07/2010,550.00,Premises Related,Repair Maintenance and Alterations,Adult Social Care,Housing Management,
C A Goodwin Limited,03902121,28/07/2010,"1,100.00",Premises Related,Repair Maintenance and Alterations,Adult Social Care,Housing Management,
C A Goodwin Limited,03902134,28/07/2010,"1,100.00",Premises Related,Repair Maintenance and Alterations,Adult Social Care,Housing Management,
C A Goodwin Limited,03902147,28/07/2010,550.00,Premises Related,Repair Maintenance and Alterations,Adult Social Care,Housing Management,
C A Goodwin Limited,03902163,28/07/2010,550.00,Premises Related,Repair Maintenance and Alterations,Adult Social Care,Housing Management,
C A Goodwin Limited,03902189,28/07/2010,"1,100.00",Premises Related,Repair Maintenance and Alterations,Adult Social Care,Housing Management,
C A Goodwin Limited,03902202,28/07/2010,550.00,Premises Related,Repair Maintenance and Alterations,Adult Social Care,Housing Management,
C A Goodwin Limited,03903382,28/07/2010,"2,661.60",Premises Related,Repair Maintenance and Alterations,Finance & Resources,Property & Design,
C A Goodwin Limited,03908280,30/07/2010,825.00,Premises Related,Repair Maintenance and Alterations,Finance & Resources,Property & Design,
C A Goodwin Limited,03908387,30/07/2010,"1,925.00",Premises Related,Repair Maintenance and Alterations,Finance & Resources,Property & Design,
C A Goodwin Limited,03908413,30/07/2010,"1,815.00",Premises Related,Repair Maintenance and Alterations,Finance & Resources,Property & Design,
C A Goodwin Limited,03908439,30/07/2010,935.00,Premises Related,Repair Maintenance and Alterations,Finance & Resources,Property & Design,
C A Goodwin Limited,03908455,30/07/2010,"1,815.00",Premises Related,Repair Maintenance and Alterations,Finance & Resources,Property & Design,
C A Goodwin Limited,03908497,30/07/2010,"2,420.00",Premises Related,Repair Maintenance and Alterations,Finance & Resources,Property & Design,
C A Goodwin Limited,03911633,30/07/2010,"1,296.81",New Construction and Conversion,,Environment,Director of Environment,
Caldecott Foundation,CF01404900,21/07/2010,"1,723.97",Third Party Payments,Other Establishments,Chilren & Young People's Trust,Commissioning & Governance,
Caldecott Foundation,CF01404901,21/07/2010,"3,272.50",Third Party Payments,Other Establishments,Chilren & Young People's Trust,Commissioning & Governance,
Caldecott Foundation,CF01404902,21/07/2010,"3,272.50",Third Party Payments,Other Establishments,Chilren & Young People's Trust,Commissioning & Governance,
Caldecott Foundation,CF01404903,21/07/2010,"3,272.50",Third Party Payments,Other Establishments,Chilren & Young People's Trust,Commissioning & Governance,
Caldecott Foundation,CF01404904,21/07/2010,"3,272.50",Third Party Payments,Other Establishments,Chilren & Young People's Trust,Commissioning & Governance,
Caldecott Foundation,CF01404905,21/07/2010,"3,587.50",Third Party Payments,Other Establishments,Chilren & Young People's Trust,Commissioning & Governance,
Caldecott Foundation,CF01404906,21/07/2010,"3,587.50",Third Party Payments,Other Establishments,Chilren & Young People's Trust,Commissioning & Governance,
Caldecott Foundation,CF01404907,21/07/2010,"3,587.50",Third Party Payments,Other Establishments,Chilren & Young People's Trust,Commissioning & Governance,
Caldecott Foundation,CF01404908,21/07/2010,"5,081.60",Third Party Payments,Other Establishments,Chilren & Young People's Trust,Commissioning & Governance,
Caldecott Foundation,CF01411113,28/07/2010,"1,285.71",Third Party Payments,Other Establishments,Chilren & Young People's Trust,Commissioning & Governance,
Caldecott Foundation,CF01411114,28/07/2010,"1,000.00",Third Party Payments,Other Establishments,Chilren & Young People's Trust,Commissioning & Governance,
Caldecott Foundation,CF01411115,28/07/2010,"1,000.00",Third Party Payments,Other Establishments,Chilren & Young People's Trust,Commissioning & Governance,
Caldecott Foundation,CF01411116,28/07/2010,"1,000.00",Third Party Payments,Other Establishments,Chilren & Young People's Trust,Commissioning & Governance,
Camelot Property Management Ltd,03877900,21/07/2010,506.62,Supplies and Services,Services,Finance & Resources,Property & Design,
Camerons Estate & Letting Agents,03849679,09/07/2010,"1,200.00",Transfer Payments,Other Transfer Payments,Chilren & Young People's Trust,Area Integrated Working,
CAM Management Solutions,03845330,09/07/2010,"1,600.00",Supplies and Services,Equipment Furniture and Materials,"Housing, Culture & Capital",Housing Strategy,
Cancom Ltd,03825570,14/07/2010,"1,281.69",Supplies and Services,Communications and Computing,Strategy & Governance,Communications,
Capital Hygiene/Capital Cleaning,03835939,07/07/2010,673.00,Premises Related,Cleaning and Domestic Supps,Chilren & Young People's Trust,Learning Schools & Skills,
Capital Hygiene/Capital Cleaning,03850684,14/07/2010,"3,335.00",Premises Related,Cleaning and Domestic Supps,Chilren & Young People's Trust,Learning Schools & Skills,
Capital Hygiene/Capital Cleaning,03895717,28/07/2010,618.80,Premises Related,Repair Maintenance and Alterations,Finance & Resources,Property & Design,
Capital Hygiene/Capital Cleaning,03896334,28/07/2010,"2,146.97",Premises Related,Cleaning and Domestic Supps,Chilren & Young People's Trust,Learning Schools & Skills,
Care Co-operatives Ltd,03839207,07/07/2010,"2,110.00",Third Party Payments,Other Establishments,Section 75 Sussex Partnership,Contrib to S31 Partnership,
Care Co-operatives Ltd,03839210,07/07/2010,"3,209.50",Third Party Payments,Other Establishments,Section 75 Sussex Partnership,Contrib to S31 Partnership,
Care Co-operatives Ltd,03841208,07/07/2010,"21,885.50",Third Party Payments,Other Establishments,Section 75 Sussex Partnership,Contrib to S31 Partnership,
Care Co-operatives Ltd,03907579,30/07/2010,"4,383.63",Supplies and Services,Miscellaneous Expenses,Chilren & Young People's Trust,Learning Schools & Skills,
Care Co-operatives Ltd,CS01396851,14/07/2010,"1,367.10",Transfer Payments,Supporting People,"Housing, Culture & Capital",Housing Strategy,
Care Co-operatives Ltd,CS01396852,14/07/2010,"1,367.10",Transfer Payments,Supporting People,"Housing, Culture & Capital",Housing Strategy,
Care Co-operatives Ltd,CS01396853,14/07/2010,"1,367.10",Transfer Payments,Supporting People,"Housing, Culture & Capital",Housing Strategy,
Care Co-operatives Ltd,CS01396854,14/07/2010,"1,367.10",Transfer Payments,Supporting People,"Housing, Culture & Capital",Housing Strategy,
Careers Enterprise Limited,03877832,21/07/2010,"11,078.50",Third Party Payments,Other Establishments,Chilren & Young People's Trust,Learning Schools & Skills,
Care Outlook,CF01396361,14/07/2010,537.08,Third Party Payments,Other Establishments,Adult Social Care,Adult Social Care,
Care Outlook,CF01396362,14/07/2010,537.08,Third Party Payments,Other Establishments,Adult Social Care,Adult Social Care,
Care Outlook,CF01396363,14/07/2010,537.08,Third Party Payments,Other Establishments,Adult Social Care,Adult Social Care,
Carers Centre for Brighton & Hove Ltd,03847901,09/07/2010,"2,750.00",Supplies and Services,Grants and Subscriptions,Strategy & Governance,Communities & Equality,
Carers Centre for Brighton & Hove Ltd,03852653,14/07/2010,"7,196.50",Third Party Payments,Other Establishments,Adult Social Care,Adult Social Care,
Care UK Community Partnerships Ltd,CF01399669,16/07/2010,571.40,Third Party Payments,Other Establishments,Section 75 Sussex Partnership,Contrib to S31 Partnership,
Care UK Community Partnerships Ltd,CF01399670,16/07/2010,786.40,Third Party Payments,Other Establishments,Section 75 Sussex Partnership,Contrib to S31 Partnership,
Care UK Community Partnerships Ltd,CF01399671,16/07/2010,786.40,Third Party Payments,Other Establishments,Section 75 Sussex Partnership,Contrib to S31 Partnership,
Care UK Community Partnerships Ltd,CF01399672,16/07/2010,786.40,Third Party Payments,Other Establishments,Section 75 Sussex Partnership,Contrib to S31 Partnership,
Care UK Community Partnerships Ltd,CF01399673,16/07/2010,786.40,Third Party Payments,Other Establishments,Section 75 Sussex Partnership,Contrib to S31 Partnership,
Care UK Homecare,CF01415210,30/07/2010,637.84,Third Party Payments,Other Establishments,Adult Social Care,Adult Social Care,
Care UK Homecare,CF01415211,30/07/2010,637.84,Third Party Payments,Other Establishments,Adult Social Care,Adult Social Care,
Care UK Homecare,CF01415212,30/07/2010,637.84,Third Party Payments,Other Establishments,Adult Social Care,Adult Social Care,
Caring Lady Funeral Director,03858673,14/07/2010,"2,759.12",Supplies and Services,Miscellaneous Expenses,Section 75 Sussex Partnership,Contrib to S31 Partnership,
Carlisle Staffing Plc,UL01379786,09/07/2010,"12,212.17",Direct Employees,Salaries,Adult Social Care,Adult Social Care,
Carlisle Staffing Plc,UL01379786,09/07/2010,"9,676.39",Direct Employees,Salaries,Adult Social Care,Housing Management,
Carlisle Staffing Plc,UL01379786,09/07/2010,"17,127.90",Direct Employees,Salaries,Chilren & Young People's Trust,Area Integrated Working,
Carlisle Staffing Plc,UL01379786,09/07/2010,309.90,Direct Employees,Salaries,Chilren & Young People's Trust,Commissioning & Governance,
Carlisle Staffing Plc,UL01379786,09/07/2010,403.92,Direct Employees,Salaries,Chilren & Young People's Trust,Director Childrens Services,
Carlisle Staffing Plc,UL01379786,09/07/2010,"1,329.65",Direct Employees,Salaries,Chilren & Young People's Trust,Learning Schools & Skills,
Carlisle Staffing Plc,UL01379786,09/07/2010,321.98,Direct Employees,Salaries,Environment,City Planning,
Carlisle Staffing Plc,UL01379786,09/07/2010,"2,268.20",Direct Employees,Salaries,Environment,Public Safety,
Carlisle Staffing Plc,UL01379786,09/07/2010,"2,536.01",Direct Employees,Salaries,Environment,Quality of Life & Green Spaces,
Carlisle Staffing Plc,UL01379786,09/07/2010,"3,143.67",Direct Employees,Salaries,Environment,Sustainable Transport&Planning,
Carlisle Staffing Plc,UL01379786,09/07/2010,"1,417.15",Direct Employees,Salaries,Environment,Waste,
Carlisle Staffing Plc,UL01379786,09/07/2010,313.51,Direct Employees,Salaries,Finance & Resources,Audit and Business Risk,
Carlisle Staffing Plc,UL01379786,09/07/2010,"3,913.16",Direct Employees,Salaries,Finance & Resources,Customer Services,
Carlisle Staffing Plc,UL01379786,09/07/2010,"2,285.09",Direct Employees,Salaries,Finance & Resources,Financial Services,
Carlisle Staffing Plc,UL01379786,09/07/2010,"2,558.22",Direct Employees,Salaries,Finance & Resources,ICT,
Carlisle Staffing Plc,UL01379786,09/07/2010,77.11,Direct Employees,Salaries,Finance & Resources,Property & Design,
Carlisle Staffing Plc,UL01379786,09/07/2010,301.23,Direct Employees,Salaries,"Housing, Culture & Capital",Cul & Ent Directors Office,
Carlisle Staffing Plc,UL01379786,09/07/2010,91.50,Direct Employees,Salaries,"Housing, Culture & Capital",Culture & Economy,
Carlisle Staffing Plc,UL01379786,09/07/2010,"10,429.01",Direct Employees,Salaries,"Housing, Culture & Capital",Housing Strategy,
Carlisle Staffing Plc,UL01379786,09/07/2010,26.51,Direct Employees,Salaries,"Housing, Culture & Capital",Royal Pavilion & Museums,
Carlisle Staffing Plc,UL01379786,09/07/2010,"4,220.06",Direct Employees,Salaries,Section 75 Adult Social Care,Contrib to S31 Partnership,
Carlisle Staffing Plc,UL01379786,09/07/2010,"1,084.85",Direct Employees,Salaries,Section 75 South Downs Health,Contrib to S31 Partnership,
Carlisle Staffing Plc,UL01379786,09/07/2010,"4,011.22",Direct Employees,Salaries,Section 75 Sussex Partnership,Contrib to S31 Partnership,
Carlisle Staffing Plc,UL01379786,09/07/2010,688.71,Direct Employees,Salaries,Strategy & Governance,Communications,
Carlisle Staffing Plc,UL01379786,09/07/2010,"10,875.20",Direct Employees,Salaries,Strategy & Governance,Human Resources,
Carlisle Staffing Plc,UL01379786,09/07/2010,"3,339.03",Direct Employees,Salaries,Strategy & Governance,Legal and Democratic Services,
Carlisle Staffing Plc,UL01379786,09/07/2010,302.56,Direct Employees,Salaries,Strategy & Governance,Performance & Analysis,
Carlisle Staffing Plc,UL01379786,09/07/2010,406.88,Direct Employees,Salaries,Strategy & Governance,Strategy & Governance,
Carlisle Staffing Plc,UL01379786,09/07/2010,548.83,Direct Employees,Wages,Finance & Resources,Customer Services,
Carlisle Staffing Plc,UL01379786,09/07/2010,471.46,Direct Employees,Wages,"Housing, Culture & Capital",Tourism & Venues,
Carlisle Staffing Plc,UL01379786,09/07/2010,365.69,New Construction and Conversion,,"Housing, Culture & Capital",Housing Strategy,
Carlisle Staffing Plc,UL01379787,16/07/2010,"8,699.48",Direct Employees,Salaries,Adult Social Care,Adult Social Care,
Carlisle Staffing Plc,UL01379787,16/07/2010,"13,454.71",Direct Employees,Salaries,Adult Social Care,Housing Management,
Carlisle Staffing Plc,UL01379787,16/07/2010,"27,940.07",Direct Employees,Salaries,Chilren & Young People's Trust,Area Integrated Working,
Carlisle Staffing Plc,UL01379787,16/07/2010,311.64,Direct Employees,Salaries,Chilren & Young People's Trust,Commissioning & Governance,
Carlisle Staffing Plc,UL01379787,16/07/2010,544.15,Direct Employees,Salaries,Chilren & Young People's Trust,Director Childrens Services,
Carlisle Staffing Plc,UL01379787,16/07/2010,"1,910.35",Direct Employees,Salaries,Chilren & Young People's Trust,Learning Schools & Skills,
Carlisle Staffing Plc,UL01379787,16/07/2010,416.33,Direct Employees,Salaries,Environment,City Planning,
Carlisle Staffing Plc,UL01379787,16/07/2010,"2,337.51",Direct Employees,Salaries,Environment,Public Safety,
Carlisle Staffing Plc,UL01379787,16/07/2010,"1,923.48",Direct Employees,Salaries,Environment,Quality of Life & Green Spaces,
Carlisle Staffing Plc,UL01379787,16/07/2010,"5,739.30",Direct Employees,Salaries,Environment,Sustainable Transport&Planning,
Carlisle Staffing Plc,UL01379787,16/07/2010,"1,777.15",Direct Employees,Salaries,Environment,Waste,
Carlisle Staffing Plc,UL01379787,16/07/2010,337.50,Direct Employees,Salaries,Finance & Resources,Audit and Business Risk,
Carlisle Staffing Plc,UL01379787,16/07/2010,"5,513.38",Direct Employees,Salaries,Finance & Resources,Customer Services,
Carlisle Staffing Plc,UL01379787,16/07/2010,"3,258.74",Direct Employees,Salaries,Finance & Resources,Financial Services,
Carlisle Staffing Plc,UL01379787,16/07/2010,"3,457.03",Direct Employees,Salaries,Finance & Resources,ICT,
Carlisle Staffing Plc,UL01379787,16/07/2010,"2,078.31",Direct Employees,Salaries,Finance & Resources,Property & Design,
Carlisle Staffing Plc,UL01379787,16/07/2010,421.39,Direct Employees,Salaries,"Housing, Culture & Capital",Cul & Ent Directors Office,
Carlisle Staffing Plc,UL01379787,16/07/2010,"16,240.30",Direct Employees,Salaries,"Housing, Culture & Capital",Housing Strategy,
Carlisle Staffing Plc,UL01379787,16/07/2010,22.31,Direct Employees,Salaries,"Housing, Culture & Capital",Royal Pavilion & Museums,
Carlisle Staffing Plc,UL01379787,16/07/2010,"3,176.83",Direct Employees,Salaries,Section 75 Adult Social Care,Contrib to S31 Partnership,
Carlisle Staffing Plc,UL01379787,16/07/2010,"1,311.17",Direct Employees,Salaries,Section 75 South Downs Health,Contrib to S31 Partnership,
Carlisle Staffing Plc,UL01379787,16/07/2010,"5,494.18",Direct Employees,Salaries,Section 75 Sussex Partnership,Contrib to S31 Partnership,
Carlisle Staffing Plc,UL01379787,16/07/2010,866.11,Direct Employees,Salaries,Strategy & Governance,Communications,
Carlisle Staffing Plc,UL01379787,16/07/2010,895.01,Direct Employees,Salaries,Strategy & Governance,Human Resources,
Carlisle Staffing Plc,UL01379787,16/07/2010,"2,544.98",Direct Employees,Salaries,Strategy & Governance,Legal and Democratic Services,
Carlisle Staffing Plc,UL01379787,16/07/2010,376.29,Direct Employees,Salaries,Strategy & Governance,Performance & Analysis,
Carlisle Staffing Plc,UL01379787,16/07/2010,520.80,Direct Employees,Salaries,Strategy & Governance,Strategy & Governance,
Carlisle Staffing Plc,UL01379787,16/07/2010,360.02,Direct Employees,Wages,"Housing, Culture & Capital",Tourism & Venues,
Carlisle Staffing Plc,UL01379787,16/07/2010,460.27,New Construction and Conversion,,"Housing, Culture & Capital",Housing Strategy,
Carlisle Staffing Plc,UL01385964,23/07/2010,"13,594.18",Direct Employees,Salaries,Adult Social Care,Adult Social Care,
Carlisle Staffing Plc,UL01385964,23/07/2010,"19,434.53",Direct Employees,Salaries,Adult Social Care,Housing Management,
Carlisle Staffing Plc,UL01385964,23/07/2010,"18,235.77",Direct Employees,Salaries,Chilren & Young People's Trust,Area Integrated Working,
Carlisle Staffing Plc,UL01385964,23/07/2010,296.92,Direct Employees,Salaries,Chilren & Young People's Trust,Commissioning & Governance,
Carlisle Staffing Plc,UL01385964,23/07/2010,515.87,Direct Employees,Salaries,Chilren & Young People's Trust,Director Childrens Services,
Carlisle Staffing Plc,UL01385964,23/07/2010,"3,531.45",Direct Employees,Salaries,Chilren & Young People's Trust,Learning Schools & Skills,
Carlisle Staffing Plc,UL01385964,23/07/2010,418.39,Direct Employees,Salaries,Environment,City Planning,
Carlisle Staffing Plc,UL01385964,23/07/2010,"2,479.69",Direct Employees,Salaries,Environment,Public Safety,
Carlisle Staffing Plc,UL01385964,23/07/2010,"2,676.38",Direct Employees,Salaries,Environment,Quality of Life & Green Spaces,
Carlisle Staffing Plc,UL01385964,23/07/2010,"6,581.40",Direct Employees,Salaries,Environment,Sustainable Transport&Planning,
Carlisle Staffing Plc,UL01385964,23/07/2010,"2,539.64",Direct Employees,Salaries,Environment,Waste,
Carlisle Staffing Plc,UL01385964,23/07/2010,426.75,Direct Employees,Salaries,Finance & Resources,Audit and Business Risk,
Carlisle Staffing Plc,UL01385964,23/07/2010,"5,032.34",Direct Employees,Salaries,Finance & Resources,Customer Services,
Carlisle Staffing Plc,UL01385964,23/07/2010,"3,643.53",Direct Employees,Salaries,Finance & Resources,Financial Services,
Carlisle Staffing Plc,UL01385964,23/07/2010,"3,565.81",Direct Employees,Salaries,Finance & Resources,ICT,
Carlisle Staffing Plc,UL01385964,23/07/2010,"1,266.70",Direct Employees,Salaries,Finance & Resources,Property & Design,
Carlisle Staffing Plc,UL01385964,23/07/2010,429.93,Direct Employees,Salaries,"Housing, Culture & Capital",Cul & Ent Directors Office,
Carlisle Staffing Plc,UL01385964,23/07/2010,"12,681.41",Direct Employees,Salaries,"Housing, Culture & Capital",Housing Strategy,
Carlisle Staffing Plc,UL01385964,23/07/2010,"5,611.88",Direct Employees,Salaries,"Housing, Culture & Capital",Royal Pavilion & Museums,
Carlisle Staffing Plc,UL01385964,23/07/2010,"1,705.90",Direct Employees,Salaries,Section 75 Adult Social Care,Contrib to S31 Partnership,
Carlisle Staffing Plc,UL01385964,23/07/2010,407.00,Direct Employees,Salaries,Section 75 South Downs Health,Contrib to S31 Partnership,
Carlisle Staffing Plc,UL01385964,23/07/2010,"5,781.15",Direct Employees,Salaries,Section 75 Sussex Partnership,Contrib to S31 Partnership,
Carlisle Staffing Plc,UL01385964,23/07/2010,855.67,Direct Employees,Salaries,Strategy & Governance,Communications,
Carlisle Staffing Plc,UL01385964,23/07/2010,"1,059.07",Direct Employees,Salaries,Strategy & Governance,Human Resources,
Carlisle Staffing Plc,UL01385964,23/07/2010,"5,600.27",Direct Employees,Salaries,Strategy & Governance,Legal and Democratic Services,
Carlisle Staffing Plc,UL01385964,23/07/2010,305.10,Direct Employees,Salaries,Strategy & Governance,Performance & Analysis,
Carlisle Staffing Plc,UL01385964,23/07/2010,511.04,Direct Employees,Salaries,Strategy & Governance,Strategy & Governance,
Carlisle Staffing Plc,UL01385964,23/07/2010,509.60,Direct Employees,Wages,Finance & Resources,Customer Services,
Carlisle Staffing Plc,UL01385964,23/07/2010,626.30,Direct Employees,Wages,"Housing, Culture & Capital",Tourism & Venues,
Carlisle Staffing Plc,UL01385964,23/07/2010,457.11,New Construction and Conversion,,"Housing, Culture & Capital",Housing Strategy,
Carlisle Staffing Plc,UL01391307,30/07/2010,"12,922.87",Direct Employees,Salaries,Adult Social Care,Adult Social Care,
Carlisle Staffing Plc,UL01391307,30/07/2010,"10,308.09",Direct Employees,Salaries,Adult Social Care,Housing Management,
Carlisle Staffing Plc,UL01391307,30/07/2010,607.80,Direct Employees,Salaries,Adult Social Care,Housing Strategy,
Carlisle Staffing Plc,UL01391307,30/07/2010,"22,085.11",Direct Employees,Salaries,Chilren & Young People's Trust,Area Integrated Working,
Carlisle Staffing Plc,UL01391307,30/07/2010,312.83,Direct Employees,Salaries,Chilren & Young People's Trust,Commissioning & Governance,
Carlisle Staffing Plc,UL01391307,30/07/2010,536.57,Direct Employees,Salaries,Chilren & Young People's Trust,Director Childrens Services,
Carlisle Staffing Plc,UL01391307,30/07/2010,"2,305.88",Direct Employees,Salaries,Chilren & Young People's Trust,Learning Schools & Skills,
Carlisle Staffing Plc,UL01391307,30/07/2010,418.33,Direct Employees,Salaries,Environment,City Planning,
Carlisle Staffing Plc,UL01391307,30/07/2010,"2,259.60",Direct Employees,Salaries,Environment,Public Safety,
Carlisle Staffing Plc,UL01391307,30/07/2010,"2,565.14",Direct Employees,Salaries,Environment,Quality of Life & Green Spaces,
Carlisle Staffing Plc,UL01391307,30/07/2010,"7,558.49",Direct Employees,Salaries,Environment,Sustainable Transport&Planning,
Carlisle Staffing Plc,UL01391307,30/07/2010,"2,231.95",Direct Employees,Salaries,Environment,Waste,
Carlisle Staffing Plc,UL01391307,30/07/2010,413.06,Direct Employees,Salaries,Finance & Resources,Audit and Business Risk,
Carlisle Staffing Plc,UL01391307,30/07/2010,"5,081.31",Direct Employees,Salaries,Finance & Resources,Customer Services,
Carlisle Staffing Plc,UL01391307,30/07/2010,"3,147.87",Direct Employees,Salaries,Finance & Resources,Financial Services,
Carlisle Staffing Plc,UL01391307,30/07/2010,"3,168.58",Direct Employees,Salaries,Finance & Resources,ICT,
Carlisle Staffing Plc,UL01391307,30/07/2010,"1,457.95",Direct Employees,Salaries,Finance & Resources,Property & Design,
Carlisle Staffing Plc,UL01391307,30/07/2010,407.83,Direct Employees,Salaries,"Housing, Culture & Capital",Cul & Ent Directors Office,
Carlisle Staffing Plc,UL01391307,30/07/2010,"13,692.41",Direct Employees,Salaries,"Housing, Culture & Capital",Housing Strategy,
Carlisle Staffing Plc,UL01391307,30/07/2010,"1,212.37",Direct Employees,Salaries,"Housing, Culture & Capital",Royal Pavilion & Museums,
Carlisle Staffing Plc,UL01391307,30/07/2010,"2,375.14",Direct Employees,Salaries,Section 75 Adult Social Care,Contrib to S31 Partnership,
Carlisle Staffing Plc,UL01391307,30/07/2010,732.13,Direct Employees,Salaries,Section 75 South Downs Health,Contrib to S31 Partnership,
Carlisle Staffing Plc,UL01391307,30/07/2010,"7,201.96",Direct Employees,Salaries,Section 75 Sussex Partnership,Contrib to S31 Partnership,
Carlisle Staffing Plc,UL01391307,30/07/2010,866.11,Direct Employees,Salaries,Strategy & Governance,Communications,
Carlisle Staffing Plc,UL01391307,30/07/2010,"15,750.00",Direct Employees,Salaries,Strategy & Governance,Executive Office,
Carlisle Staffing Plc,UL01391307,30/07/2010,"56,047.18",Direct Employees,Salaries,Strategy & Governance,Human Resources,
Carlisle Staffing Plc,UL01391307,30/07/2010,"3,310.53",Direct Employees,Salaries,Strategy & Governance,Legal and Democratic Services,
Carlisle Staffing Plc,UL01391307,30/07/2010,381.38,Direct Employees,Salaries,Strategy & Governance,Performance & Analysis,
Carlisle Staffing Plc,UL01391307,30/07/2010,218.09,Direct Employees,Salaries,Strategy & Governance,Strategy & Governance,
Carlisle Staffing Plc,UL01391307,30/07/2010,425.03,Direct Employees,Wages,"Housing, Culture & Capital",Tourism & Venues,
Carlisle Staffing Plc,UL01391307,30/07/2010,375.15,New Construction and Conversion,,"Housing, Culture & Capital",Housing Strategy,
Payment to Individual,CF01390547,07/07/2010,778.00,Third Party Payments,Other Establishments,Chilren & Young People's Trust,Learning Schools & Skills,
Payment to Individual,CF01396471,14/07/2010,778.00,Third Party Payments,Other Establishments,Chilren & Young People's Trust,Learning Schools & Skills,
Payment to Individual,CF01404840,21/07/2010,778.00,Third Party Payments,Other Establishments,Chilren & Young People's Trust,Learning Schools & Skills,
Payment to Individual,CF01414934,28/07/2010,778.00,Third Party Payments,Other Establishments,Chilren & Young People's Trust,Learning Schools & Skills,
Payment to Individual,03881831,15/07/2010,"10,162.50",Indirect Employees,Miscellaneous Employee Costs,Strategy & Governance,Human Resources,
Carousel Ltd,03845288,09/07/2010,"8,000.00",Supplies and Services,Grants and Subscriptions,Strategy & Governance,Communities & Equality,
Carrington Estates,03858738,08/07/2010,"1,190.00",Third Party Payments,Other Establishments,"Housing, Culture & Capital",Housing Strategy,
Castlebeck Care (Teesdale) Ltd,CF01396106,14/07/2010,-71.15,Customer and Client Receipts,Fees and Charges,Section 75 Adult Social Care,Contrib to S31 Partnership,
Castlebeck Care (Teesdale) Ltd,CF01396106,14/07/2010,"2,034.09",Third Party Payments,Other Establishments,Section 75 Adult Social Care,Contrib to S31 Partnership,
Castlebeck Care (Teesdale) Ltd,CF01396107,14/07/2010,-71.15,Customer and Client Receipts,Fees and Charges,Section 75 Adult Social Care,Contrib to S31 Partnership,
Castlebeck Care (Teesdale) Ltd,CF01396107,14/07/2010,"2,034.09",Third Party Payments,Other Establishments,Section 75 Adult Social Care,Contrib to S31 Partnership,
Castlebeck Care (Teesdale) Ltd,CF01396108,14/07/2010,-71.15,Customer and Client Receipts,Fees and Charges,Section 75 Adult Social Care,Contrib to S31 Partnership,
Castlebeck Care (Teesdale) Ltd,CF01396108,14/07/2010,"2,034.09",Third Party Payments,Other Establishments,Section 75 Adult Social Care,Contrib to S31 Partnership,
Castlebeck Care (Teesdale) Ltd,CF01396109,14/07/2010,-71.15,Customer and Client Receipts,Fees and Charges,Section 75 Adult Social Care,Contrib to S31 Partnership,
Castlebeck Care (Teesdale) Ltd,CF01396109,14/07/2010,"2,034.09",Third Party Payments,Other Establishments,Section 75 Adult Social Care,Contrib to S31 Partnership,
Castlebeck Care (Teesdale) Ltd,CF01396110,14/07/2010,-71.15,Customer and Client Receipts,Fees and Charges,Section 75 Adult Social Care,Contrib to S31 Partnership,
Castlebeck Care (Teesdale) Ltd,CF01396110,14/07/2010,"2,034.09",Third Party Payments,Other Establishments,Section 75 Adult Social Care,Contrib to S31 Partnership,
Catch 22-NCAS,03870703,16/07/2010,"3,150.00",Supplies and Services,Miscellaneous Expenses,Chilren & Young People's Trust,Area Integrated Working,
Catercraft Supplies Ltd,03837461,07/07/2010,697.90,Supplies and Services,Equipment Furniture and Materials,Chilren & Young People's Trust,Learning Schools & Skills,
Catercraft Supplies Ltd,03871676,16/07/2010,693.32,Supplies and Services,Equipment Furniture and Materials,Chilren & Young People's Trust,Learning Schools & Skills,
Catercraft Supplies Ltd,03907715,30/07/2010,584.52,Premises Related,Repair Maintenance and Alterations,Chilren & Young People's Trust,Learning Schools & Skills,
Cathedral Works Organisation(Chster)Ltd,03871566,16/07/2010,"4,298.00",New Construction and Conversion,,Finance & Resources,Property & Design,
Payment to Individual,0038127,28/07/2010,800.00,Premises Related,Rents Payable,"Housing, Culture & Capital",Housing Strategy,
Cbabiesafe,UL01390931,07/07/2010,"3,848.00",Supplies and Services,Grants and Subscriptions,Chilren & Young People's Trust,Area Integrated Working,
C Brewer & Sons Ltd,03887916,23/07/2010,"1,011.77",Supplies and Services,Equipment Furniture and Materials,Environment,Waste,
CB Richard Ellis Limited,03899153,28/07/2010,"3,651.47",New Construction and Conversion,,"Housing, Culture & Capital",Major Projects & Regeneration,
Centre for Cities,03899137,28/07/2010,"3,000.00",Supplies and Services,Services,"Housing, Culture & Capital",Culture & Economy,
Centre for Economic and Social Inclusion,03869633,16/07/2010,610.00,Supplies and Services,Expenses,"Housing, Culture & Capital",Culture & Economy,
Centromed UK Limited,03868728,16/07/2010,"2,350.00",Supplies and Services,Equipment Furniture and Materials,Section 75 South Downs Health,Contrib to S31 Partnership,
Cerrig Camu Ltd,CF01403681,21/07/2010,-71.15,Customer and Client Receipts,Fees and Charges,Section 75 Adult Social Care,Contrib to S31 Partnership,
Cerrig Camu Ltd,CF01403681,21/07/2010,"1,267.86",Third Party Payments,Other Establishments,Section 75 Adult Social Care,Contrib to S31 Partnership,
Cerrig Camu Ltd,CF01403682,21/07/2010,-71.15,Customer and Client Receipts,Fees and Charges,Section 75 Adult Social Care,Contrib to S31 Partnership,
Cerrig Camu Ltd,CF01403682,21/07/2010,"1,267.86",Third Party Payments,Other Establishments,Section 75 Adult Social Care,Contrib to S31 Partnership,
Cerrig Camu Ltd,CF01403683,21/07/2010,-71.15,Customer and Client Receipts,Fees and Charges,Section 75 Adult Social Care,Contrib to S31 Partnership,
Cerrig Camu Ltd,CF01403683,21/07/2010,"1,267.86",Third Party Payments,Other Establishments,Section 75 Adult Social Care,Contrib to S31 Partnership,
Cerrig Camu Ltd,CF01403684,21/07/2010,-71.15,Customer and Client Receipts,Fees and Charges,Section 75 Adult Social Care,Contrib to S31 Partnership,
Cerrig Camu Ltd,CF01403684,21/07/2010,"1,267.86",Third Party Payments,Other Establishments,Section 75 Adult Social Care,Contrib to S31 Partnership,
Chailey Heritage School,CF01406160,23/07/2010,536.00,Third Party Payments,Other Establishments,Chilren & Young People's Trust,Learning Schools & Skills,
Chailey Heritage School,CF01406161,23/07/2010,536.00,Third Party Payments,Other Establishments,Chilren & Young People's Trust,Learning Schools & Skills,
Channels & Choices,CF01404921,21/07/2010,"4,700.00",Third Party Payments,Other Establishments,Chilren & Young People's Trust,Commissioning & Governance,
Channels & Choices,CF01404922,21/07/2010,"4,700.00",Third Party Payments,Other Establishments,Chilren & Young People's Trust,Commissioning & Governance,
Channels & Choices,CF01404923,21/07/2010,"4,700.00",Third Party Payments,Other Establishments,Chilren & Young People's Trust,Commissioning & Governance,
Channels & Choices,CF01404924,21/07/2010,"6,714.33",Third Party Payments,Other Establishments,Chilren & Young People's Trust,Commissioning & Governance,
Channel Site Services (Sussex)Ltd,03901384,28/07/2010,"2,002.42",New Construction and Conversion,,"Housing, Culture & Capital",Housing Management,
Payment to Individual,0038128,28/07/2010,775.00,Premises Related,Rents Payable,"Housing, Culture & Capital",Housing Strategy,
Payment to Individual,CF01407929,23/07/2010,712.34,Third Party Payments,Other Establishments,Adult Social Care,Adult Social Care,
Payment to Individual,CF01407930,23/07/2010,712.34,Third Party Payments,Other Establishments,Adult Social Care,Adult Social Care,
Payment to Individual,CF01407931,23/07/2010,712.34,Third Party Payments,Other Establishments,Adult Social Care,Adult Social Care,
Payment to Individual,CF01407932,23/07/2010,712.34,Third Party Payments,Other Establishments,Adult Social Care,Adult Social Care,
Chelfham Priory,03900738,28/07/2010,"40,808.37",Third Party Payments,Other Agencies,Chilren & Young People's Trust,Learning Schools & Skills,
Cherrywood Events Ltd,03843086,09/07/2010,"7,057.44",Supplies and Services,Expenses,Chilren & Young People's Trust,Learning Schools & Skills,
Child Poverty Action Group Ltd,03900628,28/07/2010,"1,268.80",Supplies and Services,Print Stationery & General Office Expenses,Finance & Resources,Customer Services,
Chinese Educational Development Project,03846892,09/07/2010,"1,250.00",Supplies and Services,Grants and Subscriptions,Strategy & Governance,Communities & Equality,
Chloride Electronics Ltd t/a Chloride,03885662,21/07/2010,592.00,Supplies and Services,Communications and Computing,Finance & Resources,ICT,
Christian Education/RE today Services,03882270,21/07/2010,"3,004.61",Supplies and Services,Services,Chilren & Young People's Trust,Learning Schools & Skills,
Payment to Individual,03878132,21/07/2010,"1,600.00",Supplies and Services,Miscellaneous Expenses,Chilren & Young People's Trust,Area Integrated Working,
Payment to Individual,0037988,23/07/2010,750.00,Premises Related,Rents Payable,"Housing, Culture & Capital",Housing Strategy,
Payment to Individual,03855430,14/07/2010,"2,160.00",Indirect Employees,Training,Strategy & Governance,Human Resources,
Payment to Individual,03855443,14/07/2010,"1,620.00",Indirect Employees,Training,Strategy & Governance,Human Resources,
Payment to Individual,0038252,30/07/2010,900.00,Premises Related,Rents Payable,"Housing, Culture & Capital",Housing Strategy,
Payment to Individual,0038019,23/07/2010,875.00,Premises Related,Rents Payable,"Housing, Culture & Capital",Housing Strategy,
Payment to Individual,0037545,07/07/2010,775.00,Premises Related,Rents Payable,"Housing, Culture & Capital",Housing Strategy,
Payment to Individual,0038297,30/07/2010,900.00,Premises Related,Rents Payable,"Housing, Culture & Capital",Housing Strategy,
Payment to Individual,0038257,30/07/2010,800.00,Premises Related,Rents Payable,"Housing, Culture & Capital",Housing Strategy,
Church Hill Playgroup,UL01390932,07/07/2010,"1,098.00",Supplies and Services,Grants and Subscriptions,Chilren & Young People's Trust,Area Integrated Working,
Churchill Associates,03849080,09/07/2010,905.25,Supplies and Services,Miscellaneous Expenses,Chilren & Young People's Trust,Area Integrated Working,
Churchill Square Giftcards,03909742,30/07/2010,"1,381.00",Supplies and Services,Miscellaneous Expenses,Chilren & Young People's Trust,Learning Schools & Skills,
Cinecity The Brighton Film Festival,03846902,09/07/2010,"2,500.00",Supplies and Services,Grants and Subscriptions,Strategy & Governance,Communities & Equality,
CIPFA Business Ltd,03841004,07/07/2010,825.00,Supplies and Services,Expenses,Finance & Resources,Audit and Business Risk,
CIPFA Business Ltd,03843031,09/07/2010,910.00,Indirect Employees,Training,Chilren & Young People's Trust,Director Childrens Services,
CIPFA Business Ltd,03843141,09/07/2010,825.00,Indirect Employees,Training,Finance & Resources,Financial Services,
Circus Pre-School,UL01391007,07/07/2010,"1,890.00",Supplies and Services,Grants and Subscriptions,Chilren & Young People's Trust,Area Integrated Working,
CIT Vendor Finance (UK) Limited,03886027,21/07/2010,673.11,Supplies and Services,Equipment Furniture and Materials,Chilren & Young People's Trust,Area Integrated Working,
City College Brighton and Hove,03809790,07/07/2010,"1,401.80",Third Party Payments,Other Establishments,Chilren & Young People's Trust,Learning Schools & Skills,
City College Brighton and Hove,03874686,21/07/2010,500.00,Indirect Employees,Training,Chilren & Young People's Trust,Area Integrated Working,
City College Brighton and Hove,03875122,21/07/2010,"1,596.80",Third Party Payments,Other Establishments,Chilren & Young People's Trust,Learning Schools & Skills,
City Electrical Factors Ltd,03906952,30/07/2010,569.85,Premises Related,Repair Maintenance and Alterations,Finance & Resources,Property & Design,
Payment to Individual,0037630,09/07/2010,750.00,Premises Related,Rents Payable,"Housing, Culture & Capital",Housing Strategy,
Payment to Individual,03852679,14/07/2010,"1,050.00",Supplies and Services,Services,Chilren & Young People's Trust,Learning Schools & Skills,
C.L.C Contractors Limited,03900615,28/07/2010,"16,857.69",New Construction and Conversion,,Chilren & Young People's Trust,Area Integrated Working,
Cleansing Service Group Ltd,03892134,28/07/2010,584.00,Premises Related,Water Services,Environment,Public Safety,
Cliffords Catering Limited,03837254,07/07/2010,"3,993.32",Supplies and Services,Catering,Chilren & Young People's Trust,Learning Schools & Skills,
Cliffords Catering Limited,03837584,07/07/2010,"3,241.73",Supplies and Services,Catering,Chilren & Young People's Trust,Learning Schools & Skills,
Cliffords Catering Limited,03858990,14/07/2010,"2,219.15",Supplies and Services,Catering,Chilren & Young People's Trust,Learning Schools & Skills,
Cliffords Catering Limited,03885659,21/07/2010,"3,774.58",Supplies and Services,Catering,Chilren & Young People's Trust,Learning Schools & Skills,
Cliffords Catering Limited,03902451,28/07/2010,"4,479.32",Supplies and Services,Catering,Chilren & Young People's Trust,Learning Schools & Skills,
Climate Energy Ltd,03843138,09/07/2010,"4,660.97",Capital Grants,,"Housing, Culture & Capital",Housing Strategy,
Climate Energy Ltd,03843219,09/07/2010,"4,099.20",Capital Grants,,"Housing, Culture & Capital",Housing Strategy,
Climate Energy Ltd,03843345,09/07/2010,548.36,Capital Grants,,"Housing, Culture & Capital",Housing Strategy,
Climate Energy Ltd,03866623,16/07/2010,"1,500.00",Capital Grants,,"Housing, Culture & Capital",Housing Strategy,
Climate Energy Ltd,03866652,16/07/2010,"1,500.00",Capital Grants,,"Housing, Culture & Capital",Housing Strategy,
Climate Energy Ltd,03866681,16/07/2010,"1,500.00",Capital Grants,,"Housing, Culture & Capital",Housing Strategy,
Climate Energy Ltd,03872811,16/07/2010,"3,576.09",Capital Grants,,"Housing, Culture & Capital",Housing Strategy,
Climate Energy Ltd,03872866,16/07/2010,"3,500.00",Capital Grants,,"Housing, Culture & Capital",Housing Strategy,
Climate Energy Ltd,03872950,16/07/2010,"3,150.00",Capital Grants,,"Housing, Culture & Capital",Housing Strategy,
Climate Energy Ltd,03873098,16/07/2010,"3,089.08",Capital Grants,,"Housing, Culture & Capital",Housing Strategy,
Climate Energy Ltd,03873195,16/07/2010,"3,500.00",Capital Grants,,"Housing, Culture & Capital",Housing Strategy,
Climate Energy Ltd,03873344,16/07/2010,"1,990.45",Capital Grants,,"Housing, Culture & Capital",Housing Strategy,
Climate Energy Ltd,03873412,16/07/2010,"2,555.63",Capital Grants,,"Housing, Culture & Capital",Housing Strategy,
Climate Energy Ltd,03873700,16/07/2010,"3,500.00",Capital Grants,,"Housing, Culture & Capital",Housing Strategy,
Climate Energy Ltd,03873726,16/07/2010,"3,500.00",Capital Grants,,"Housing, Culture & Capital",Housing Strategy,
Climate Energy Ltd,03873784,16/07/2010,"3,105.90",Capital Grants,,"Housing, Culture & Capital",Housing Strategy,
Climate Energy Ltd,03878501,21/07/2010,"1,500.00",Capital Grants,,"Housing, Culture & Capital",Housing Strategy,
Climate Energy Ltd,03878569,21/07/2010,"1,500.00",Capital Grants,,"Housing, Culture & Capital",Housing Strategy,
Climate Energy Ltd,03878640,21/07/2010,"1,500.00",Capital Grants,,"Housing, Culture & Capital",Housing Strategy,
Climate Energy Ltd,03878705,21/07/2010,"3,770.55",Capital Grants,,"Housing, Culture & Capital",Housing Strategy,
Climate Energy Ltd,03887709,23/07/2010,"4,118.10",Capital Grants,,"Housing, Culture & Capital",Housing Strategy,
Climate Energy Ltd,03900796,28/07/2010,"1,500.00",Capital Grants,,"Housing, Culture & Capital",Housing Strategy,
Climate Energy Ltd,03900822,28/07/2010,"4,139.10",Capital Grants,,"Housing, Culture & Capital",Housing Strategy,
Cluttons,03883716,21/07/2010,"39,182.94",Third Party Payments,Independent Units of Council,Finance & Resources,Property & Design,
Cluttons LLP (Service Charges/Rent/Imprests),03841871,23/07/2010,114.54,Premises Related,Energy Costs,Finance & Resources,Property & Design,
Cluttons LLP (Service Charges/Rent/Imprests),03841871,23/07/2010,"-11,802.50",Premises Related,Rates,Finance & Resources,Property & Design,
Cluttons LLP (Service Charges/Rent/Imprests),03841871,23/07/2010,71.25,Premises Related,Repair Maintenance and Alterations,Finance & Resources,Property & Design,
Cluttons LLP (Service Charges/Rent/Imprests),03841871,23/07/2010,"5,479.12",Supplies and Services,Services,Finance & Resources,Property & Design,
Cluttons LLP (Service Charges/Rent/Imprests),03841871,23/07/2010,"8,616.07",Third Party Payments,Private Contractors,Finance & Resources,Property & Design,
CMG Limited,CF01391325,09/07/2010,-84.10,Customer and Client Receipts,Fees and Charges,Section 75 Adult Social Care,Contrib to S31 Partnership,
CMG Limited,CF01391325,09/07/2010,"1,149.54",Third Party Payments,Other Establishments,Section 75 Adult Social Care,Contrib to S31 Partnership,
CMG Limited,CF01391326,09/07/2010,-84.10,Customer and Client Receipts,Fees and Charges,Section 75 Adult Social Care,Contrib to S31 Partnership,
CMG Limited,CF01391326,09/07/2010,"1,149.54",Third Party Payments,Other Establishments,Section 75 Adult Social Care,Contrib to S31 Partnership,
CMG Limited,CF01391327,09/07/2010,-84.10,Customer and Client Receipts,Fees and Charges,Section 75 Adult Social Care,Contrib to S31 Partnership,
CMG Limited,CF01391327,09/07/2010,"1,149.54",Third Party Payments,Other Establishments,Section 75 Adult Social Care,Contrib to S31 Partnership,
CMG Limited,CF01391328,09/07/2010,-84.10,Customer and Client Receipts,Fees and Charges,Section 75 Adult Social Care,Contrib to S31 Partnership,
CMG Limited,CF01391328,09/07/2010,"1,149.54",Third Party Payments,Other Establishments,Section 75 Adult Social Care,Contrib to S31 Partnership,
CMG Limited,CF01391341,09/07/2010,-71.15,Customer and Client Receipts,Fees and Charges,Section 75 Adult Social Care,Contrib to S31 Partnership,
CMG Limited,CF01391341,09/07/2010,"1,800.30",Third Party Payments,Other Establishments,Section 75 Adult Social Care,Contrib to S31 Partnership,
CMG Limited,CF01391342,09/07/2010,-71.15,Customer and Client Receipts,Fees and Charges,Section 75 Adult Social Care,Contrib to S31 Partnership,
CMG Limited,CF01391342,09/07/2010,"1,800.30",Third Party Payments,Other Establishments,Section 75 Adult Social Care,Contrib to S31 Partnership,
CMG Limited,CF01391343,09/07/2010,-71.15,Customer and Client Receipts,Fees and Charges,Section 75 Adult Social Care,Contrib to S31 Partnership,
CMG Limited,CF01391343,09/07/2010,"1,800.30",Third Party Payments,Other Establishments,Section 75 Adult Social Care,Contrib to S31 Partnership,
CMG Limited,CF01391344,09/07/2010,-71.15,Customer and Client Receipts,Fees and Charges,Section 75 Adult Social Care,Contrib to S31 Partnership,
CMG Limited,CF01391344,09/07/2010,"1,800.30",Third Party Payments,Other Establishments,Section 75 Adult Social Care,Contrib to S31 Partnership,
CMG Limited,CF01391349,09/07/2010,-84.10,Customer and Client Receipts,Fees and Charges,Section 75 Adult Social Care,Contrib to S31 Partnership,
CMG Limited,CF01391349,09/07/2010,"1,318.86",Third Party Payments,Other Establishments,Section 75 Adult Social Care,Contrib to S31 Partnership,
CMG Limited,CF01391350,09/07/2010,-84.10,Customer and Client Receipts,Fees and Charges,Section 75 Adult Social Care,Contrib to S31 Partnership,
CMG Limited,CF01391350,09/07/2010,"1,318.86",Third Party Payments,Other Establishments,Section 75 Adult Social Care,Contrib to S31 Partnership,
CMG Limited,CF01391351,09/07/2010,-84.10,Customer and Client Receipts,Fees and Charges,Section 75 Adult Social Care,Contrib to S31 Partnership,
CMG Limited,CF01391351,09/07/2010,"1,318.86",Third Party Payments,Other Establishments,Section 75 Adult Social Care,Contrib to S31 Partnership,
CMG Limited,CF01391352,09/07/2010,-84.10,Customer and Client Receipts,Fees and Charges,Section 75 Adult Social Care,Contrib to S31 Partnership,
CMG Limited,CF01391352,09/07/2010,"1,318.86",Third Party Payments,Other Establishments,Section 75 Adult Social Care,Contrib to S31 Partnership,
CMG Limited,CF01391419,09/07/2010,-71.15,Customer and Client Receipts,Fees and Charges,Section 75 Adult Social Care,Contrib to S31 Partnership,
CMG Limited,CF01391419,09/07/2010,"1,305.60",Third Party Payments,Other Establishments,Section 75 Adult Social Care,Contrib to S31 Partnership,
CMG Limited,CF01391420,09/07/2010,-71.15,Customer and Client Receipts,Fees and Charges,Section 75 Adult Social Care,Contrib to S31 Partnership,
CMG Limited,CF01391420,09/07/2010,"1,305.60",Third Party Payments,Other Establishments,Section 75 Adult Social Care,Contrib to S31 Partnership,
CMG Limited,CF01391421,09/07/2010,-71.15,Customer and Client Receipts,Fees and Charges,Section 75 Adult Social Care,Contrib to S31 Partnership,
CMG Limited,CF01391421,09/07/2010,"1,305.60",Third Party Payments,Other Establishments,Section 75 Adult Social Care,Contrib to S31 Partnership,
CMG Limited,CF01391422,09/07/2010,-71.15,Customer and Client Receipts,Fees and Charges,Section 75 Adult Social Care,Contrib to S31 Partnership,
CMG Limited,CF01391422,09/07/2010,"1,305.60",Third Party Payments,Other Establishments,Section 75 Adult Social Care,Contrib to S31 Partnership,
CMG Limited,CF01391449,09/07/2010,-110.30,Customer and Client Receipts,Fees and Charges,Section 75 Adult Social Care,Contrib to S31 Partnership,
CMG Limited,CF01391449,09/07/2010,"1,451.86",Third Party Payments,Other Establishments,Section 75 Adult Social Care,Contrib to S31 Partnership,
CMG Limited,CF01391450,09/07/2010,-110.30,Customer and Client Receipts,Fees and Charges,Section 75 Adult Social Care,Contrib to S31 Partnership,
CMG Limited,CF01391450,09/07/2010,"1,451.86",Third Party Payments,Other Establishments,Section 75 Adult Social Care,Contrib to S31 Partnership,
CMG Limited,CF01391451,09/07/2010,-110.30,Customer and Client Receipts,Fees and Charges,Section 75 Adult Social Care,Contrib to S31 Partnership,
CMG Limited,CF01391451,09/07/2010,"1,451.86",Third Party Payments,Other Establishments,Section 75 Adult Social Care,Contrib to S31 Partnership,
CMG Limited,CF01391452,09/07/2010,-110.30,Customer and Client Receipts,Fees and Charges,Section 75 Adult Social Care,Contrib to S31 Partnership,
CMG Limited,CF01391452,09/07/2010,"1,451.86",Third Party Payments,Other Establishments,Section 75 Adult Social Care,Contrib to S31 Partnership,
CMG Limited,CF01391453,09/07/2010,-110.30,Customer and Client Receipts,Fees and Charges,Section 75 Adult Social Care,Contrib to S31 Partnership,
CMG Limited,CF01391453,09/07/2010,"1,451.86",Third Party Payments,Other Establishments,Section 75 Adult Social Care,Contrib to S31 Partnership,
CMG Limited,CF01391454,09/07/2010,-110.30,Customer and Client Receipts,Fees and Charges,Section 75 Adult Social Care,Contrib to S31 Partnership,
CMG Limited,CF01391454,09/07/2010,"1,451.86",Third Party Payments,Other Establishments,Section 75 Adult Social Care,Contrib to S31 Partnership,
CMG Limited,CF01391455,09/07/2010,-71.15,Customer and Client Receipts,Fees and Charges,Section 75 Adult Social Care,Contrib to S31 Partnership,
CMG Limited,CF01391455,09/07/2010,"1,820.00",Third Party Payments,Other Establishments,Section 75 Adult Social Care,Contrib to S31 Partnership,
CMG Limited,CF01391456,09/07/2010,-71.15,Customer and Client Receipts,Fees and Charges,Section 75 Adult Social Care,Contrib to S31 Partnership,
CMG Limited,CF01391456,09/07/2010,"1,820.00",Third Party Payments,Other Establishments,Section 75 Adult Social Care,Contrib to S31 Partnership,
CMG Limited,CF01391457,09/07/2010,-71.15,Customer and Client Receipts,Fees and Charges,Section 75 Adult Social Care,Contrib to S31 Partnership,
CMG Limited,CF01391457,09/07/2010,"1,820.00",Third Party Payments,Other Establishments,Section 75 Adult Social Care,Contrib to S31 Partnership,
CMG Limited,CF01391458,09/07/2010,-71.15,Customer and Client Receipts,Fees and Charges,Section 75 Adult Social Care,Contrib to S31 Partnership,
CMG Limited,CF01391458,09/07/2010,"1,820.00",Third Party Payments,Other Establishments,Section 75 Adult Social Care,Contrib to S31 Partnership,
CMG Limited,CF01391459,09/07/2010,-71.15,Customer and Client Receipts,Fees and Charges,Section 75 Adult Social Care,Contrib to S31 Partnership,
CMG Limited,CF01391459,09/07/2010,"1,820.00",Third Party Payments,Other Establishments,Section 75 Adult Social Care,Contrib to S31 Partnership,
CMG Limited,CF01391460,09/07/2010,-71.15,Customer and Client Receipts,Fees and Charges,Section 75 Adult Social Care,Contrib to S31 Partnership,
CMG Limited,CF01391460,09/07/2010,"1,820.00",Third Party Payments,Other Establishments,Section 75 Adult Social Care,Contrib to S31 Partnership,
CMG Limited,CF01391466,09/07/2010,-71.15,Customer and Client Receipts,Fees and Charges,Section 75 Adult Social Care,Contrib to S31 Partnership,
CMG Limited,CF01391466,09/07/2010,"1,060.80",Third Party Payments,Other Establishments,Section 75 Adult Social Care,Contrib to S31 Partnership,
CMG Limited,CF01391467,09/07/2010,-71.15,Customer and Client Receipts,Fees and Charges,Section 75 Adult Social Care,Contrib to S31 Partnership,
CMG Limited,CF01391467,09/07/2010,"1,060.80",Third Party Payments,Other Establishments,Section 75 Adult Social Care,Contrib to S31 Partnership,
CMG Limited,CF01391468,09/07/2010,-71.15,Customer and Client Receipts,Fees and Charges,Section 75 Adult Social Care,Contrib to S31 Partnership,
